Inv Transaction,Supplier Name,Headserv Name,Stratdir Name,Account Desription,Paid Date,Sum of Inv Amount
460449,Abbey Healthcare Ltd t/a Farnworth Care Home,Adult Social Care,Adults,Nursing Home Long Stay Fees,27-Apr,"1,867.23"
460449,ANCHOR HANOVER GROUP TAS HATTON GRANGE CARE HOME,Adult Social Care,Adults,Nursing Home Long Stay Fees,27-Apr,"40,153.98"
460449,ASHGROVE HOUSE CARE LTD,Adult Social Care,Adults,Nursing Home Long Stay Fees,27-Apr,"1,989.51"
460449,AUDEN HOUSE RESIDENTIAL HOME,Adult Social Care,Adults,Nursing Home Long Stay Fees,27-Apr,"20,036.32"
460449,Avery Homes Moston Ltd- Acacia Lodge,Adult Social Care,Adults,Nursing Home Long Stay Fees,27-Apr,"1,786.19"
460449,Beeches t/a Meridian Healthcare LTD,Adult Social Care,Adults,Nursing Home Long Stay Fees,27-Apr,"62,212.28"
460449,BELMONT PARKHILL LTD,Adult Social Care,Adults,Nursing Home Long Stay Fees,27-Apr,"54,792.30"
460449,BLACKCLIFFE LTD TAS THE LAKES NURSING HOME,Adult Social Care,Adults,Nursing Home Long Stay Fees,27-Apr,"85,211.94"
460449,BOWERFIELD COURT,Adult Social Care,Adults,Nursing Home Long Stay Fees,27-Apr,"16,677.17"
460449,BROOKFIELD RESIDENTIAL CARE HOME,Adult Social Care,Adults,Nursing Home Long Stay Fees,27-Apr,"2,711.96"
460449,BROOKVALE,Adult Social Care,Adults,Nursing Home Long Stay Fees,27-Apr,"8,497.85"
460449,BROWNLOW HOUSE RESIDENTIAL CARE,Adult Social Care,Adults,Nursing Home Long Stay Fees,27-Apr,"6,627.44"
460449,BURRSWOOD CARE HOME,Adult Social Care,Adults,Nursing Home Long Stay Fees,27-Apr,"2,482.98"
460449,CARE TECH - ALPHA HOUSE CARE HOME,Adult Social Care,Adults,Nursing Home Long Stay Fees,27-Apr,"8,536.03"
460449,CARE UK LTD TAS RIVERSIDE CARE CENTRE,Adult Social Care,Adults,Nursing Home Long Stay Fees,27-Apr,"276,143.42"
460449,CARETECH COMMUNITY SERVICES LIMITED,Adult Social Care,Adults,Nursing Home Long Stay Fees,27-Apr,"3,704.23"
460449,Cartwright Care Balmoral Management Ltd,Adult Social Care,Adults,Nursing Home Long Stay Fees,27-Apr,"38,537.24"
460449,CHADDERTON TOTAL CAREUNIT LTD,Adult Social Care,Adults,Nursing Home Long Stay Fees,27-Apr,"4,494.43"
460449,CHERWOOD HOUSE CARE CENTRE,Adult Social Care,Adults,Nursing Home Long Stay Fees,27-Apr,"1,657.92"
460449,Clarence House Care Home,Adult Social Care,Adults,Nursing Home Long Stay Fees,27-Apr,"11,528.10"
460449,CLARKSON HOUSE,Adult Social Care,Adults,Nursing Home Long Stay Fees,27-Apr,"16,351.71"
460449,CYGNET LEARNING DISABILITIES LTD,Adult Social Care,Adults,Nursing Home Long Stay Fees,27-Apr,"11,484.39"
460449,D R Price Associates Limited t/a Chataway Nursing Home,Adult Social Care,Adults,Nursing Home Long Stay Fees,27-Apr,"3,429.00"
460449,Daisy Nook House t/a Meridian Healthcare LTD,Adult Social Care,Adults,Nursing Home Long Stay Fees,27-Apr,"56,634.77"
460449,DEVONSHIRE CARE LIMITED TAS CHARNLEY HOUSE,Adult Social Care,Adults,Nursing Home Long Stay Fees,27-Apr,"18,912.19"
460449,DOMAIN CARE NORTH WEST LTD,Adult Social Care,Adults,Nursing Home Long Stay Fees,27-Apr,"8,120.74"
460449,DOVES NEST LTD,Adult Social Care,Adults,Nursing Home Long Stay Fees,27-Apr,"3,718.03"
460449,EHC MOSTON GRANGE LTD,Adult Social Care,Adults,Nursing Home Long Stay Fees,27-Apr,"53,446.09"
460449,Elysium Healthcare,Adult Social Care,Adults,Nursing Home Long Stay Fees,27-Apr,"14,520.99"
460449,Equilibrium Healthcare Ltd tas Oakland House Nursing Home,Adult Social Care,Adults,Nursing Home Long Stay Fees,27-Apr,"40,729.62"
460449,FAIRFIELD VIEW CARE LTD,Adult Social Care,Adults,Nursing Home Long Stay Fees,27-Apr,"131,281.06"
460449,FERN BANK THERAPEUTIC COMMUNITY LTD,Adult Social Care,Adults,Nursing Home Long Stay Fees,27-Apr,"24,847.93"
460449,Fir Trees t/a Meridian Healthcare LTD,Adult Social Care,Adults,Nursing Home Long Stay Fees,27-Apr,"92,120.86"
460449,Genesis Care Home,Adult Social Care,Adults,Nursing Home Long Stay Fees,27-Apr,"10,064.19"
460449,GORSEFIELD RESIDENTIAL HOME,Adult Social Care,Adults,Nursing Home Long Stay Fees,27-Apr,"5,228.58"
460449,Greatwood House t/a Meridian Healthcare LTD,Adult Social Care,Adults,Nursing Home Long Stay Fees,27-Apr,"45,762.35"
460449,HC ONE LIMITED - AVERILL HOUSE,Adult Social Care,Adults,Nursing Home Long Stay Fees,27-Apr,562.64
460449,HC ONE OF A KIND - KINGS PARK,Adult Social Care,Adults,Nursing Home Long Stay Fees,27-Apr,"47,768.98"
460449,HC-ONE LIMITED - BROOKDALE VIEW,Adult Social Care,Adults,Nursing Home Long Stay Fees,27-Apr,"1,878.97"
460449,"HC-ONE LTD, Sunnyside Care Home",Adult Social Care,Adults,Nursing Home Long Stay Fees,27-Apr,"90,820.33"
460449,HEATHCOTES M LTD,Adult Social Care,Adults,Nursing Home Long Stay Fees,27-Apr,"26,330.62"
460449,HEATHCOTES THE ROOKERY,Adult Social Care,Adults,Nursing Home Long Stay Fees,27-Apr,"17,920.46"
460449,HEATON LODGE,Adult Social Care,Adults,Nursing Home Long Stay Fees,27-Apr,"3,243.02"
460449,Holme Lea t/a Meridian Healthcare LTD,Adult Social Care,Adults,Nursing Home Long Stay Fees,27-Apr,"102,690.00"
460449,Hurst Hall t/a Meridian Healthcare LTD,Adult Social Care,Adults,Nursing Home Long Stay Fees,27-Apr,"78,579.55"
460449,Hyde Nursing Care Home t/a Meridian Healthcare LTD,Adult Social Care,Adults,Nursing Home Long Stay Fees,27-Apr,"28,636.70"
460449,Ideal Carehomes Number One Limited,Adult Social Care,Adults,Nursing Home Long Stay Fees,27-Apr,"2,942.40"
460449,INSTITUTE OF OUR LADY  OF MERCY,Adult Social Care,Adults,Nursing Home Long Stay Fees,27-Apr,"2,387.31"
460449,L & M HEALTHCARE,Adult Social Care,Adults,Nursing Home Long Stay Fees,27-Apr,"3,104.83"
460449,LAUREL BANK RESIDENTIAL CARE HOME LTD,Adult Social Care,Adults,Nursing Home Long Stay Fees,27-Apr,"6,578.12"
460449,LEONARD CHESHIRE DISABILITY,Adult Social Care,Adults,Nursing Home Long Stay Fees,27-Apr,"12,166.72"
460449,MARPLE DALE HALL LTD,Adult Social Care,Adults,Nursing Home Long Stay Fees,27-Apr,"6,065.83"
460449,MASTERPALM PROPERTIES LTD TAS SPRINGFIELD HOUSE CARE HOME,Adult Social Care,Adults,Nursing Home Long Stay Fees,27-Apr,842.75
460449,MBI SOCIAL CARE LTD TAS DOWNSHAW LODGE CARE HOME,Adult Social Care,Adults,Nursing Home Long Stay Fees,27-Apr,"88,196.87"
460449,MERIDIAN HEALTH CARE LTD TAS GUIDE LANE,Adult Social Care,Adults,Nursing Home Long Stay Fees,27-Apr,"59,058.32"
460449,Millbrook Care Home t/a Meridian Healthcare LTD,Adult Social Care,Adults,Nursing Home Long Stay Fees,27-Apr,"29,391.35"
460449,Minster Care Management -T/A REDHILL,Adult Social Care,Adults,Nursing Home Long Stay Fees,27-Apr,"3,419.15"
460449,MOSS COTTAGE NURSING HOME,Adult Social Care,Adults,Nursing Home Long Stay Fees,27-Apr,"76,155.71"
460449,Northern Healthcare Limited tas Holland House/Montgomery House,Adult Social Care,Adults,Nursing Home Long Stay Fees,27-Apr,"10,175.46"
460449,NYMS SERVICES LTD TAS PENNINE CARE CENTRE,Adult Social Care,Adults,Nursing Home Long Stay Fees,27-Apr,"33,779.82"
460449,OAKDENE CARE HOME T/A OAKDENE CARE HOME LTD,Adult Social Care,Adults,Nursing Home Long Stay Fees,27-Apr,"7,446.73"
460449,OAKWOOD CARE CENTRE,Adult Social Care,Adults,Nursing Home Long Stay Fees,27-Apr,"17,507.31"
460449,PARKVIEW CARE HOME,Adult Social Care,Adults,Nursing Home Long Stay Fees,27-Apr,"12,041.57"
460449,PARTNERSHIP CARING LTD TAS FIRBANK HOUSE NURSING & RESIDENTIAL CARE HOME,Adult Social Care,Adults,Nursing Home Long Stay Fees,27-Apr,"50,852.96"
460449,POLEBANK HALL RESIDENTIAL CARE HOME LTD,Adult Social Care,Adults,Nursing Home Long Stay Fees,27-Apr,"10,204.97"
460449,Postgrad Ltd - Treelands Care Home,Adult Social Care,Adults,Nursing Home Long Stay Fees,27-Apr,"5,809.70"
460449,PROGRESS CARE & EDUCATION LTD,Adult Social Care,Adults,Nursing Home Long Stay Fees,27-Apr,"16,643.96"
460449,Rose Keys (Lifeways),Adult Social Care,Adults,Nursing Home Long Stay Fees,27-Apr,"16,633.91"
460449,SALUTEM LD BIDCO IV LIMITED T/A AMBITO CARE AND EDUCATION,Adult Social Care,Adults,Nursing Home Long Stay Fees,27-Apr,"28,908.69"
460449,Sandon House t/a Meridian Healthcare LTD,Adult Social Care,Adults,Nursing Home Long Stay Fees,27-Apr,"52,773.60"
460449,SOUTHERN CROSS HEALTHCARE,Adult Social Care,Adults,Nursing Home Long Stay Fees,27-Apr,"2,472.94"
460449,SPINAL UNIT ACTION GROUP,Adult Social Care,Adults,Nursing Home Long Stay Fees,27-Apr,"3,106.05"
460449,ST GEORGE'S NURSING HOME (OLDHAM) LTD,Adult Social Care,Adults,Nursing Home Long Stay Fees,27-Apr,"32,961.99"
460449,ST LAWRENCES LODGE,Adult Social Care,Adults,Nursing Home Long Stay Fees,27-Apr,"29,362.00"
460449,STALEY HOUSE EPH,Adult Social Care,Adults,Nursing Home Long Stay Fees,27-Apr,"38,675.63"
460449,Stamford Court Nursing t/a Meridian Healthcare LTD,Adult Social Care,Adults,Nursing Home Long Stay Fees,27-Apr,"84,924.14"
460449,Sun Healthcare T/A Tapton Grove Care Home,Adult Social Care,Adults,Nursing Home Long Stay Fees,27-Apr,"4,654.54"
460449,Thames House t/a Exemplar Health Care Partnerships LTD,Adult Social Care,Adults,Nursing Home Long Stay Fees,27-Apr,"39,438.26"
460449,THE JOSEPH COX CHARITY,Adult Social Care,Adults,Nursing Home Long Stay Fees,27-Apr,"6,467.14"
460449,THE LIGHT HOUSE (Bloomcare Group),Adult Social Care,Adults,Nursing Home Long Stay Fees,27-Apr,"49,833.66"
460449,The Sycamores t/a Meridian Health Care LTD,Adult Social Care,Adults,Nursing Home Long Stay Fees,27-Apr,"112,466.16"
460449,THE VICARAGE RESIDENTIAL CARE HOME,Adult Social Care,Adults,Nursing Home Long Stay Fees,27-Apr,"24,095.18"
460449,THORNCLIFFE GRANGE NURSING HOME,Adult Social Care,Adults,Nursing Home Long Stay Fees,27-Apr,"80,470.73"
460449,WOODLAND CARE HOME,Adult Social Care,Adults,Nursing Home Long Stay Fees,27-Apr,"6,164.92"
460449,Woodrow House ( Cygnet Healthcare),Adult Social Care,Adults,Nursing Home Long Stay Fees,27-Apr,"15,835.31"
460449,Yew Trees t/a Meridian Healthcare LTD,Adult Social Care,Adults,Nursing Home Long Stay Fees,27-Apr,"106,807.15"
460449,ZZ DUP - The Coach House,Adult Social Care,Adults,Nursing Home Long Stay Fees,27-Apr,"40,468.84"
460450,HURST HALL CARE HOME LTD,Adult Social Care,Adults,Nursing Home Long Stay Fees,23-May,"62,680.56"
460451,Abbey Healthcare Ltd t/a Farnworth Care Home,Adult Social Care,Adults,Nursing Home Long Stay Fees,27-May,"1,699.07"
460451,Advinia Care Homes Ltd,Adult Social Care,Adults,Nursing Home Long Stay Fees,27-May,"4,137.98"
460451,ANCHOR HANOVER GROUP TAS HATTON GRANGE CARE HOME,Adult Social Care,Adults,Nursing Home Long Stay Fees,27-May,"45,262.25"
460451,ASHGROVE HOUSE CARE LTD,Adult Social Care,Adults,Nursing Home Long Stay Fees,27-May,"1,816.76"
460451,AUDEN HOUSE RESIDENTIAL HOME,Adult Social Care,Adults,Nursing Home Long Stay Fees,27-May,"22,877.70"
460451,Beeches t/a Meridian Healthcare LTD,Adult Social Care,Adults,Nursing Home Long Stay Fees,27-May,"70,437.84"
460451,BELMONT PARKHILL LTD,Adult Social Care,Adults,Nursing Home Long Stay Fees,27-May,"67,444.43"
460451,BLACKCLIFFE LTD TAS THE LAKES NURSING HOME,Adult Social Care,Adults,Nursing Home Long Stay Fees,27-May,"98,275.83"
460451,BOROUGH CARE LTD,Adult Social Care,Adults,Nursing Home Long Stay Fees,27-May,"10,080.57"
460451,BOURNE HOUSE RESIDENTIAL HOME,Adult Social Care,Adults,Nursing Home Long Stay Fees,27-May,"5,913.69"
460451,BOWERFIELD COURT,Adult Social Care,Adults,Nursing Home Long Stay Fees,27-May,"17,233.07"
460451,BROOKFIELD RESIDENTIAL CARE HOME,Adult Social Care,Adults,Nursing Home Long Stay Fees,27-May,"2,802.36"
460451,BROOKVALE,Adult Social Care,Adults,Nursing Home Long Stay Fees,27-May,"7,800.90"
460451,BROWNLOW HOUSE RESIDENTIAL CARE,Adult Social Care,Adults,Nursing Home Long Stay Fees,27-May,"6,196.31"
460451,BURRSWOOD CARE HOME,Adult Social Care,Adults,Nursing Home Long Stay Fees,27-May,"2,291.27"
460451,CARE TECH - ALPHA HOUSE CARE HOME,Adult Social Care,Adults,Nursing Home Long Stay Fees,27-May,"8,820.57"
460451,CARE UK LTD TAS RIVERSIDE CARE CENTRE,Adult Social Care,Adults,Nursing Home Long Stay Fees,27-May,"37,208.79"
460451,CARETECH COMMUNITY SERVICES LIMITED,Adult Social Care,Adults,Nursing Home Long Stay Fees,27-May,"3,827.70"
460451,Cartwright Care Balmoral Management Ltd,Adult Social Care,Adults,Nursing Home Long Stay Fees,27-May,"88,194.04"
460451,CHADDERTON TOTAL CAREUNIT LTD,Adult Social Care,Adults,Nursing Home Long Stay Fees,27-May,"4,832.38"
460451,CHERWOOD HOUSE CARE CENTRE,Adult Social Care,Adults,Nursing Home Long Stay Fees,27-May,"1,493.40"
460451,Clarence House Care Home,Adult Social Care,Adults,Nursing Home Long Stay Fees,27-May,"11,912.37"
460451,CLARKSON HOUSE,Adult Social Care,Adults,Nursing Home Long Stay Fees,27-May,"16,524.26"
460451,CYGNET LEARNING DISABILITIES LTD,Adult Social Care,Adults,Nursing Home Long Stay Fees,27-May,"11,113.93"
460451,Daisy Nook House t/a Meridian Healthcare LTD,Adult Social Care,Adults,Nursing Home Long Stay Fees,27-May,"52,218.99"
460451,Dell Care Ltd t/a Dell Care Home,Adult Social Care,Adults,Nursing Home Long Stay Fees,27-May,"2,318.30"
460451,DEVONSHIRE CARE LIMITED TAS CHARNLEY HOUSE,Adult Social Care,Adults,Nursing Home Long Stay Fees,27-May,"46,975.99"
460451,DOMAIN CARE NORTH WEST LTD,Adult Social Care,Adults,Nursing Home Long Stay Fees,27-May,"8,391.43"
460451,EHC MOSTON GRANGE LTD,Adult Social Care,Adults,Nursing Home Long Stay Fees,27-May,"51,327.15"
460451,Elysium Healthcare,Adult Social Care,Adults,Nursing Home Long Stay Fees,27-May,"15,005.02"
460451,Equilibrium Healthcare Ltd tas Oakland House Nursing Home,Adult Social Care,Adults,Nursing Home Long Stay Fees,27-May,"33,815.08"
460451,FAIRFIELD VIEW CARE LTD,Adult Social Care,Adults,Nursing Home Long Stay Fees,27-May,"116,862.30"
460451,FERN BANK THERAPEUTIC COMMUNITY LTD,Adult Social Care,Adults,Nursing Home Long Stay Fees,27-May,"24,949.12"
460451,FIELDER LODGE,Adult Social Care,Adults,Nursing Home Long Stay Fees,27-May,"24,450.74"
460451,Fir Trees t/a Meridian Healthcare LTD,Adult Social Care,Adults,Nursing Home Long Stay Fees,27-May,"121,068.20"
460451,FRANCIS HOUSE FAMILIES LTD,Adult Social Care,Adults,Nursing Home Long Stay Fees,27-May,"31,556.80"
460451,GORSEFIELD RESIDENTIAL HOME,Adult Social Care,Adults,Nursing Home Long Stay Fees,27-May,"2,701.43"
460451,Greatwood House t/a Meridian Healthcare LTD,Adult Social Care,Adults,Nursing Home Long Stay Fees,27-May,"69,090.75"
460451,HC ONE OF A KIND - KINGS PARK,Adult Social Care,Adults,Nursing Home Long Stay Fees,27-May,"49,949.02"
460451,HC-ONE LIMITED - BROOKDALE VIEW,Adult Social Care,Adults,Nursing Home Long Stay Fees,27-May,"1,704.99"
460451,"HC-ONE LTD, Sunnyside Care Home",Adult Social Care,Adults,Nursing Home Long Stay Fees,27-May,"75,246.31"
460451,HEATHCOTES M LTD,Adult Social Care,Adults,Nursing Home Long Stay Fees,27-May,"27,208.30"
460451,HEATHCOTES THE ROOKERY,Adult Social Care,Adults,Nursing Home Long Stay Fees,27-May,"19,457.64"
460451,HEATON LODGE,Adult Social Care,Adults,Nursing Home Long Stay Fees,27-May,"2,992.63"
460451,Holme Lea t/a Meridian Healthcare LTD,Adult Social Care,Adults,Nursing Home Long Stay Fees,27-May,"76,930.46"
460451,HURST HALL CARE HOME LTD,Adult Social Care,Adults,Nursing Home Long Stay Fees,27-May,"41,136.86"
460451,Hyde Nursing Care Home t/a Meridian Healthcare LTD,Adult Social Care,Adults,Nursing Home Long Stay Fees,27-May,"53,470.55"
460451,Ideal Carehomes Number One Limited,Adult Social Care,Adults,Nursing Home Long Stay Fees,27-May,"3,040.48"
460451,INSTITUTE OF OUR LADY  OF MERCY,Adult Social Care,Adults,Nursing Home Long Stay Fees,27-May,"2,466.89"
460451,L & M HEALTHCARE,Adult Social Care,Adults,Nursing Home Long Stay Fees,27-May,"17,289.63"
460451,LAUREL BANK RESIDENTIAL CARE HOME LTD,Adult Social Care,Adults,Nursing Home Long Stay Fees,27-May,"9,091.15"
460451,LEONARD CHESHIRE DISABILITY,Adult Social Care,Adults,Nursing Home Long Stay Fees,27-May,"12,572.27"
460451,LONGWOOD LODGE CARE LTD t/a Longwood Lodge Care Home,Adult Social Care,Adults,Nursing Home Long Stay Fees,27-May,"9,539.36"
460451,MARPLE DALE HALL LTD,Adult Social Care,Adults,Nursing Home Long Stay Fees,27-May,"6,456.16"
460451,MASTERPALM PROPERTIES LTD TAS SPRINGFIELD HOUSE CARE HOME,Adult Social Care,Adults,Nursing Home Long Stay Fees,27-May,709.93
460451,MBI SOCIAL CARE LTD TAS DOWNSHAW LODGE CARE HOME,Adult Social Care,Adults,Nursing Home Long Stay Fees,27-May,"99,578.05"
460451,MERIDIAN HEALTH CARE LTD TAS GUIDE LANE,Adult Social Care,Adults,Nursing Home Long Stay Fees,27-May,"22,980.27"
460451,MHA t/a LAUREL COURT CARE CENTRE,Adult Social Care,Adults,Nursing Home Long Stay Fees,27-May,"11,780.85"
460451,Millbrook Care Home t/a Meridian Healthcare LTD,Adult Social Care,Adults,Nursing Home Long Stay Fees,27-May,"15,514.97"
460451,Minster Care Management -T/A REDHILL,Adult Social Care,Adults,Nursing Home Long Stay Fees,27-May,"3,144.13"
460451,MOSS COTTAGE NURSING HOME,Adult Social Care,Adults,Nursing Home Long Stay Fees,27-May,"93,156.20"
460451,Next Chapter Healthcare Ltd,Adult Social Care,Adults,Nursing Home Long Stay Fees,27-May,"11,250.74"
460451,Northern Healthcare Limited tas Holland House/Montgomery House,Adult Social Care,Adults,Nursing Home Long Stay Fees,27-May,"9,963.26"
460451,NYMS SERVICES LTD TAS PENNINE CARE CENTRE,Adult Social Care,Adults,Nursing Home Long Stay Fees,27-May,"22,881.35"
460451,OAKWOOD CARE CENTRE,Adult Social Care,Adults,Nursing Home Long Stay Fees,27-May,"38,578.43"
460451,PARTNERSHIP CARING LTD TAS FIRBANK HOUSE NURSING & RESIDENTIAL CARE HOME,Adult Social Care,Adults,Nursing Home Long Stay Fees,27-May,"87,007.53"
460451,Pendlebury Care Homes Ltd tas Regency Hall Care Home,Adult Social Care,Adults,Nursing Home Long Stay Fees,27-May,"74,871.13"
460451,POLEBANK HALL RESIDENTIAL CARE HOME LTD,Adult Social Care,Adults,Nursing Home Long Stay Fees,27-May,"9,697.84"
460451,Postgrad Ltd - Treelands Care Home,Adult Social Care,Adults,Nursing Home Long Stay Fees,27-May,"3,029.98"
460451,PROGRESS CARE & EDUCATION LTD,Adult Social Care,Adults,Nursing Home Long Stay Fees,27-May,"17,198.76"
460451,ROEFIELD SPECIALIST CARE LIMITED t/a THISTLE MANOR,Adult Social Care,Adults,Nursing Home Long Stay Fees,27-May,"51,845.43"
460451,Rose Keys (Lifeways),Adult Social Care,Adults,Nursing Home Long Stay Fees,27-May,"15,338.61"
460451,Sandon House t/a Meridian Healthcare LTD,Adult Social Care,Adults,Nursing Home Long Stay Fees,27-May,"52,752.29"
460451,SOUTHERN CROSS HEALTHCARE,Adult Social Care,Adults,Nursing Home Long Stay Fees,27-May,"2,262.77"
460451,SPINAL UNIT ACTION GROUP,Adult Social Care,Adults,Nursing Home Long Stay Fees,27-May,"2,855.19"
460451,ST GEORGE'S NURSING HOME (OLDHAM) LTD,Adult Social Care,Adults,Nursing Home Long Stay Fees,27-May,"42,308.42"
460451,ST LAWRENCES LODGE,Adult Social Care,Adults,Nursing Home Long Stay Fees,27-May,"12,437.16"
460451,STALEY HOUSE EPH,Adult Social Care,Adults,Nursing Home Long Stay Fees,27-May,"18,174.56"
460451,Stamford Court Nursing t/a Meridian Healthcare LTD,Adult Social Care,Adults,Nursing Home Long Stay Fees,27-May,"149,390.63"
460451,SUNNY BANK PRS LTD,Adult Social Care,Adults,Nursing Home Long Stay Fees,27-May,"5,910.58"
460451,Thames House t/a Exemplar Health Care Partnerships LTD,Adult Social Care,Adults,Nursing Home Long Stay Fees,27-May,"13,978.65"
460451,THE JOSEPH COX CHARITY,Adult Social Care,Adults,Nursing Home Long Stay Fees,27-May,"23,645.19"
460451,The Sycamores t/a Meridian Health Care LTD,Adult Social Care,Adults,Nursing Home Long Stay Fees,27-May,"75,543.75"
460451,THE VICARAGE RESIDENTIAL CARE HOME,Adult Social Care,Adults,Nursing Home Long Stay Fees,27-May,"26,836.28"
460451,THORNCLIFFE GRANGE NURSING HOME,Adult Social Care,Adults,Nursing Home Long Stay Fees,27-May,"142,680.00"
460451,WOODLAND CARE HOME,Adult Social Care,Adults,Nursing Home Long Stay Fees,27-May,"6,370.42"
460451,Woodrow House ( Cygnet Healthcare),Adult Social Care,Adults,Nursing Home Long Stay Fees,27-May,"14,950.97"
460451,Yew Trees t/a Meridian Healthcare LTD,Adult Social Care,Adults,Nursing Home Long Stay Fees,27-May,"80,602.29"
460451,ZZ DUP - The Coach House,Adult Social Care,Adults,Nursing Home Long Stay Fees,27-May,"37,324.84"
460452,BROUGHTON HOUSE HOME FOR  EX-SERVICE PERSONNEL,Adult Social Care,Adults,Nursing Home Long Stay Fees,01-Jun,"15,176.15"
460452,STALEY HOUSE EPH,Adult Social Care,Adults,Nursing Home Long Stay Fees,01-Jun,"33,634.07"
460453,THE LIGHT HOUSE (Bloomcare Group),Adult Social Care,Adults,Nursing Home Long Stay Fees,07-Jun,"76,468.21"
460454,Abbey Healthcare Ltd t/a Farnworth Care Home,Adult Social Care,Adults,Nursing Home Long Stay Fees,28-Jun,"1,758.67"
460454,Achieve Together Limited,Adult Social Care,Adults,Nursing Home Long Stay Fees,28-Jun,"25,436.39"
460454,Advinia Care Homes Ltd,Adult Social Care,Adults,Nursing Home Long Stay Fees,28-Jun,"3,324.62"
460454,ANCHOR HANOVER GROUP TAS HATTON GRANGE CARE HOME,Adult Social Care,Adults,Nursing Home Long Stay Fees,28-Jun,"37,782.56"
460454,ASHGROVE HOUSE CARE LTD,Adult Social Care,Adults,Nursing Home Long Stay Fees,28-Jun,"1,868.34"
460454,AUDEN HOUSE RESIDENTIAL HOME,Adult Social Care,Adults,Nursing Home Long Stay Fees,28-Jun,"7,096.32"
460454,Avery Homes Moston Ltd- Acacia Lodge,Adult Social Care,Adults,Nursing Home Long Stay Fees,28-Jun,"3,305.68"
460454,Barchester Healthcare t/a Glenroyd Care Home,Adult Social Care,Adults,Nursing Home Long Stay Fees,28-Jun,"11,410.49"
460454,Beeches t/a Meridian Healthcare LTD,Adult Social Care,Adults,Nursing Home Long Stay Fees,28-Jun,"63,155.38"
460454,BELMONT PARKHILL LTD,Adult Social Care,Adults,Nursing Home Long Stay Fees,28-Jun,"59,457.09"
460454,BLACKCLIFFE LTD TAS THE LAKES NURSING HOME,Adult Social Care,Adults,Nursing Home Long Stay Fees,28-Jun,"86,237.51"
460454,BOWERFIELD COURT,Adult Social Care,Adults,Nursing Home Long Stay Fees,28-Jun,"16,677.17"
460454,BROOKFIELD RESIDENTIAL CARE HOME,Adult Social Care,Adults,Nursing Home Long Stay Fees,28-Jun,"2,711.96"
460454,BROOKVALE,Adult Social Care,Adults,Nursing Home Long Stay Fees,28-Jun,"8,060.93"
460454,BROUGHTON HOUSE HOME FOR  EX-SERVICE PERSONNEL,Adult Social Care,Adults,Nursing Home Long Stay Fees,28-Jun,"2,557.29"
460454,CARE TECH - ALPHA HOUSE CARE HOME,Adult Social Care,Adults,Nursing Home Long Stay Fees,28-Jun,"8,536.03"
460454,CARE UK LTD TAS RIVERSIDE CARE CENTRE,Adult Social Care,Adults,Nursing Home Long Stay Fees,28-Jun,"147,836.70"
460454,CARETECH COMMUNITY SERVICES LIMITED,Adult Social Care,Adults,Nursing Home Long Stay Fees,28-Jun,"3,704.23"
460454,Cartwright Care Balmoral Management Ltd,Adult Social Care,Adults,Nursing Home Long Stay Fees,28-Jun,"10,478.39"
460454,CHADDERTON TOTAL CAREUNIT LTD,Adult Social Care,Adults,Nursing Home Long Stay Fees,28-Jun,"5,866.96"
460454,CHERWOOD HOUSE CARE CENTRE,Adult Social Care,Adults,Nursing Home Long Stay Fees,28-Jun,"1,543.18"
460454,Clarence House Care Home,Adult Social Care,Adults,Nursing Home Long Stay Fees,28-Jun,"11,528.10"
460454,CLARKSON HOUSE,Adult Social Care,Adults,Nursing Home Long Stay Fees,28-Jun,"16,814.40"
460454,CYGNET LEARNING DISABILITIES LTD,Adult Social Care,Adults,Nursing Home Long Stay Fees,28-Jun,"11,484.39"
460454,D R Price Associates Limited t/a Chataway Nursing Home,Adult Social Care,Adults,Nursing Home Long Stay Fees,28-Jun,"6,972.30"
460454,Daisy Nook House t/a Meridian Healthcare LTD,Adult Social Care,Adults,Nursing Home Long Stay Fees,28-Jun,"49,470.67"
460454,DEVONSHIRE CARE LIMITED TAS CHARNLEY HOUSE,Adult Social Care,Adults,Nursing Home Long Stay Fees,28-Jun,"78,246.14"
460454,DOMAIN CARE NORTH WEST LTD,Adult Social Care,Adults,Nursing Home Long Stay Fees,28-Jun,"8,120.74"
460454,DOVES NEST LTD,Adult Social Care,Adults,Nursing Home Long Stay Fees,28-Jun,"7,559.99"
460454,EACH STEP T/A PARK HOMES UK LTD,Adult Social Care,Adults,Nursing Home Long Stay Fees,28-Jun,"31,341.23"
460454,EHC MOSTON GRANGE LTD,Adult Social Care,Adults,Nursing Home Long Stay Fees,28-Jun,"65,265.97"
460454,Elysium Healthcare,Adult Social Care,Adults,Nursing Home Long Stay Fees,28-Jun,"14,520.99"
460454,Equilibrium Healthcare Ltd tas Oakland House Nursing Home,Adult Social Care,Adults,Nursing Home Long Stay Fees,28-Jun,"33,038.53"
460454,FAIRFIELD VIEW CARE LTD,Adult Social Care,Adults,Nursing Home Long Stay Fees,28-Jun,"109,405.83"
460454,FERN BANK THERAPEUTIC COMMUNITY LTD,Adult Social Care,Adults,Nursing Home Long Stay Fees,28-Jun,"24,542.45"
460454,FIELDER LODGE,Adult Social Care,Adults,Nursing Home Long Stay Fees,28-Jun,"4,169.87"
460454,FINBROOK LTD t/a BERRYCROFT MANOR,Adult Social Care,Adults,Nursing Home Long Stay Fees,28-Jun,"8,925.28"
460454,Fir Trees t/a Meridian Healthcare LTD,Adult Social Care,Adults,Nursing Home Long Stay Fees,28-Jun,"106,274.83"
460454,FRANCIS HOUSE FAMILIES LTD,Adult Social Care,Adults,Nursing Home Long Stay Fees,28-Jun,"8,070.85"
460454,Greatwood House t/a Meridian Healthcare LTD,Adult Social Care,Adults,Nursing Home Long Stay Fees,28-Jun,"54,374.32"
460454,HC ONE OF A KIND - KINGS PARK,Adult Social Care,Adults,Nursing Home Long Stay Fees,28-Jun,"58,662.44"
460454,HC-ONE LIMITED - BROOKDALE VIEW,Adult Social Care,Adults,Nursing Home Long Stay Fees,28-Jun,"1,761.82"
460454,"HC-ONE LTD, Sunnyside Care Home",Adult Social Care,Adults,Nursing Home Long Stay Fees,28-Jun,"88,215.05"
460454,HEATHCOTES M LTD,Adult Social Care,Adults,Nursing Home Long Stay Fees,28-Jun,"26,330.62"
460454,HEATHCOTES THE ROOKERY,Adult Social Care,Adults,Nursing Home Long Stay Fees,28-Jun,"18,382.68"
460454,HEATON LODGE,Adult Social Care,Adults,Nursing Home Long Stay Fees,28-Jun,"3,092.38"
460454,Holme Lea t/a Meridian Healthcare LTD,Adult Social Care,Adults,Nursing Home Long Stay Fees,28-Jun,"72,787.48"
460454,HURST HALL CARE HOME LTD,Adult Social Care,Adults,Nursing Home Long Stay Fees,28-Jun,"96,990.91"
460454,JVT CARE HOMES LTD T/A WATFORD HOUSE CARE HOME,Adult Social Care,Adults,Nursing Home Long Stay Fees,28-Jun,"13,328.67"
460454,L & M HEALTHCARE,Adult Social Care,Adults,Nursing Home Long Stay Fees,28-Jun,"20,955.64"
460454,LAUREL BANK RESIDENTIAL CARE HOME LTD,Adult Social Care,Adults,Nursing Home Long Stay Fees,28-Jun,"8,336.19"
460454,LONGWOOD LODGE CARE LTD t/a Longwood Lodge Care Home,Adult Social Care,Adults,Nursing Home Long Stay Fees,28-Jun,779.96
460454,MARPLE DALE HALL LTD,Adult Social Care,Adults,Nursing Home Long Stay Fees,28-Jun,"6,158.36"
460454,MASTERPALM PROPERTIES LTD TAS SPRINGFIELD HOUSE CARE HOME,Adult Social Care,Adults,Nursing Home Long Stay Fees,28-Jun,733.59
460454,MBI SOCIAL CARE LTD TAS DOWNSHAW LODGE CARE HOME,Adult Social Care,Adults,Nursing Home Long Stay Fees,28-Jun,"67,766.77"
460454,MERIDIAN HEALTH CARE LTD TAS GUIDE LANE,Adult Social Care,Adults,Nursing Home Long Stay Fees,28-Jun,"53,043.25"
460454,MHA t/a LAUREL COURT CARE CENTRE,Adult Social Care,Adults,Nursing Home Long Stay Fees,28-Jun,"3,042.43"
460454,Millbrook Care Home t/a Meridian Healthcare LTD,Adult Social Care,Adults,Nursing Home Long Stay Fees,28-Jun,"10,437.08"
460454,MILLFIELD CARE HOME - QUALIA CARE,Adult Social Care,Adults,Nursing Home Long Stay Fees,28-Jun,"6,843.82"
460454,MOSS COTTAGE NURSING HOME,Adult Social Care,Adults,Nursing Home Long Stay Fees,28-Jun,"73,687.12"
460454,Northern Healthcare Limited tas Holland House/Montgomery House,Adult Social Care,Adults,Nursing Home Long Stay Fees,28-Jun,"15,161.68"
460454,NYMS SERVICES LTD TAS PENNINE CARE CENTRE,Adult Social Care,Adults,Nursing Home Long Stay Fees,28-Jun,"24,514.14"
460454,OAKDENE CARE HOME T/A OAKDENE CARE HOME LTD,Adult Social Care,Adults,Nursing Home Long Stay Fees,28-Jun,"7,879.96"
460454,OAKWOOD CARE CENTRE,Adult Social Care,Adults,Nursing Home Long Stay Fees,28-Jun,"23,002.91"
460454,PARTNERSHIP CARING LTD TAS FIRBANK HOUSE NURSING & RESIDENTIAL CARE HOME,Adult Social Care,Adults,Nursing Home Long Stay Fees,28-Jun,"17,519.63"
460454,Pendlebury Care Homes Ltd tas Regency Hall Care Home,Adult Social Care,Adults,Nursing Home Long Stay Fees,28-Jun,"13,128.12"
460454,POLEBANK HALL RESIDENTIAL CARE HOME LTD,Adult Social Care,Adults,Nursing Home Long Stay Fees,28-Jun,"10,021.11"
460454,Postgrad Ltd - Treelands Care Home,Adult Social Care,Adults,Nursing Home Long Stay Fees,28-Jun,"2,932.24"
460454,PROGRESS CARE & EDUCATION LTD,Adult Social Care,Adults,Nursing Home Long Stay Fees,28-Jun,"16,643.96"
460454,ROEFIELD SPECIALIST CARE LIMITED t/a THISTLE MANOR,Adult Social Care,Adults,Nursing Home Long Stay Fees,28-Jun,"41,805.80"
460454,ROYAL MASONIC BENEVOLENT INSTITUTION,Adult Social Care,Adults,Nursing Home Long Stay Fees,28-Jun,"12,048.25"
460454,SALUTEM LD BIDCO IV LIMITED T/A AMBITO CARE AND EDUCATION,Adult Social Care,Adults,Nursing Home Long Stay Fees,28-Jun,"20,497.74"
460454,Sandon House t/a Meridian Healthcare LTD,Adult Social Care,Adults,Nursing Home Long Stay Fees,28-Jun,"59,521.78"
460454,SPINAL UNIT ACTION GROUP,Adult Social Care,Adults,Nursing Home Long Stay Fees,28-Jun,"3,781.72"
460454,ST GEORGE'S NURSING HOME (OLDHAM) LTD,Adult Social Care,Adults,Nursing Home Long Stay Fees,28-Jun,"33,239.58"
460454,ST LAWRENCES LODGE,Adult Social Care,Adults,Nursing Home Long Stay Fees,28-Jun,"12,011.71"
460454,STALEY HOUSE EPH,Adult Social Care,Adults,Nursing Home Long Stay Fees,28-Jun,"67,240.87"
460454,Stamford Court Nursing t/a Meridian Healthcare LTD,Adult Social Care,Adults,Nursing Home Long Stay Fees,28-Jun,"73,787.93"
460454,Sun Healthcare T/A Tapton Grove Care Home,Adult Social Care,Adults,Nursing Home Long Stay Fees,28-Jun,"9,464.24"
460454,SUNNY BANK PRS LTD,Adult Social Care,Adults,Nursing Home Long Stay Fees,28-Jun,"2,925.25"
460454,The Coppice Care Home,Adult Social Care,Adults,Nursing Home Long Stay Fees,28-Jun,"15,197.67"
460454,THE JOSEPH COX CHARITY,Adult Social Care,Adults,Nursing Home Long Stay Fees,28-Jun,"9,648.02"
460454,THE LIGHT HOUSE (Bloomcare Group),Adult Social Care,Adults,Nursing Home Long Stay Fees,28-Jun,"43,897.29"
460454,The Sycamores t/a Meridian Health Care LTD,Adult Social Care,Adults,Nursing Home Long Stay Fees,28-Jun,"66,847.46"
460454,THE VICARAGE RESIDENTIAL CARE HOME,Adult Social Care,Adults,Nursing Home Long Stay Fees,28-Jun,"44,718.66"
460454,THORNCLIFFE GRANGE NURSING HOME,Adult Social Care,Adults,Nursing Home Long Stay Fees,28-Jun,"63,616.93"
460454,TRACS Limited,Adult Social Care,Adults,Nursing Home Long Stay Fees,28-Jun,"42,126.37"
460454,TREETOPS,Adult Social Care,Adults,Nursing Home Long Stay Fees,28-Jun,"61,169.80"
460454,WOODLAND CARE HOME,Adult Social Care,Adults,Nursing Home Long Stay Fees,28-Jun,"6,164.92"
460454,Woodrow House ( Cygnet Healthcare),Adult Social Care,Adults,Nursing Home Long Stay Fees,28-Jun,"15,449.34"
460454,Yew Trees t/a Meridian Healthcare LTD,Adult Social Care,Adults,Nursing Home Long Stay Fees,28-Jun,"76,449.85"
460454,ZZ DUP - The Coach House,Adult Social Care,Adults,Nursing Home Long Stay Fees,28-Jun,"38,569.00"
470949,DECORWRIGHT LIMITED,Operations and Neighbourhoods,Operations and Neighbourhoods,General Materials,05-Apr,"12,390.00"
470951,DECORWRIGHT LIMITED,Operations and Neighbourhoods,Operations and Neighbourhoods,Sub-contractor Services,05-Apr,"12,384.00"
470952,AGGREGATE INDUSTRIES UK LIMITED,Operations and Neighbourhoods,Operations and Neighbourhoods,General Materials,04-Apr,"5,601.04"
470952,ALTITUDE SERVICES,Operations and Neighbourhoods,Operations and Neighbourhoods,General Materials,04-Apr,"1,895.25"
470952,ALTITUDE SERVICES,Operations and Neighbourhoods,Operations and Neighbourhoods,Sub-contractor Services,04-Apr,"13,429.98"
470952,ARCO LIMITED,Civil Engineers,Director of Place,Debits Goods Received,04-Apr,326.4
470952,ARCO LIMITED,Operations and Neighbourhoods,Operations and Neighbourhoods,General Materials,04-Apr,317.45
470952,BRAMHALL SURFACING LTD,Operations and Neighbourhoods,Operations and Neighbourhoods,Sub-contractor Services,04-Apr,"12,778.47"
470952,CENTREWIRE LTD,Operations and Neighbourhoods,Operations and Neighbourhoods,General Materials,04-Apr,"1,098.00"
470952,EAGLE CIVIL ENGINEERING LTD,Operations and Neighbourhoods,Operations and Neighbourhoods,Sub-contractor Services,04-Apr,"11,777.39"
470952,KEN TAYLOR SUPPLIES LTD,Civil Engineers,Director of Place,Debits Goods Received,04-Apr,36.25
470952,KEN TAYLOR SUPPLIES LTD,Operations and Neighbourhoods,Operations and Neighbourhoods,General Materials,04-Apr,"1,491.50"
470952,LIMELIGHT SIGNS LIMITED,Engineers Client,Director of Place,General Materials,04-Apr,743.79
470952,MAIN STREET SIGNS LIMITED,Operations and Neighbourhoods,Operations and Neighbourhoods,General Materials,04-Apr,546.7
470952,MARWOOD ELECTRICAL CO,Operations and Neighbourhoods,Operations and Neighbourhoods,General Materials,04-Apr,"47,603.26"
470952,MULTEVO LIMITED,Operations and Neighbourhoods,Operations and Neighbourhoods,General Materials,04-Apr,"1,185.00"
470952,NORTHWEST UTILITY SOLUTIONS LTD,Operations and Neighbourhoods,Operations and Neighbourhoods,Sub-contractor Services,04-Apr,"17,990.00"
470952,T N ROBINSON LTD,Civil Engineers,Director of Place,Debits Goods Received,04-Apr,"1,025.00"
470952,TARMAC CENTRAL LIMITED,Operations and Neighbourhoods,Operations and Neighbourhoods,General Materials,04-Apr,"5,855.53"
470952,WOLSELEY UK LTD,Civil Engineers,Director of Place,Debits Goods Received,04-Apr,624
470952,WOLSELEY UK LTD,Operations and Neighbourhoods,Operations and Neighbourhoods,General Materials,04-Apr,728
470953,AGGREGATE INDUSTRIES UK LIMITED,Operations and Neighbourhoods,Operations and Neighbourhoods,General Materials,11-Apr,"13,462.81"
470953,AIUK t/a SRM,Operations and Neighbourhoods,Operations and Neighbourhoods,General Materials,11-Apr,"1,950.12"
470953,ALTITUDE SERVICES,Operations and Neighbourhoods,Operations and Neighbourhoods,Sub-contractor Services,11-Apr,"9,065.65"
470953,BRIDGE ELECTRICALSUPPLIES LTD,Civil Engineers,Director of Place,Debits Goods Received,11-Apr,"1,125.00"
470953,BRIDGE ELECTRICALSUPPLIES LTD,Operations and Neighbourhoods,Operations and Neighbourhoods,General Materials,11-Apr,118
470953,CASTINGS SERVICES LTD,Civil Engineers,Director of Place,Debits Goods Received,11-Apr,"1,150.00"
470953,EAGLE CIVIL ENGINEERING LTD,Operations and Neighbourhoods,Operations and Neighbourhoods,Sub-contractor Services,11-Apr,"39,826.96"
470953,INSTARMAC GROUP PLC,Civil Engineers,Director of Place,Debits Goods Received,11-Apr,"1,958.92"
470953,MARWOOD ELECTRICAL CO,Operations and Neighbourhoods,Operations and Neighbourhoods,General Materials,11-Apr,"3,248.55"
470953,Redacted Supplier,Operations and Neighbourhoods,Operations and Neighbourhoods,Training Course Costs,11-Apr,"1,120.00"
470953,NORTHWEST UTILITY SOLUTIONS LTD,Operations and Neighbourhoods,Operations and Neighbourhoods,Sub-contractor Services,11-Apr,"4,030.00"
470953,Origin Amenity Solutions Ltd,Civil Engineers,Director of Place,Debits Goods Received,11-Apr,912
470953,ROWAN ASHWORTH LIMITED,Operations and Neighbourhoods,Operations and Neighbourhoods,Sub-contractor Services,11-Apr,"9,350.00"
470953,TARMAC CENTRAL LIMITED,Operations and Neighbourhoods,Operations and Neighbourhoods,General Materials,11-Apr,"2,266.58"
470953,Tym Huckin Ltd,Operations and Neighbourhoods,Operations and Neighbourhoods,Engineers Recharge - Reactive Works (Internal),11-Apr,"1,500.00"
470953,UBU ENVIRONMENTAL LTD,Operations and Neighbourhoods,Operations and Neighbourhoods,Sub-contractor Services,11-Apr,"1,380.00"
470953,WILDE CONSULTING ENGINEERS,Operations and Neighbourhoods,Operations and Neighbourhoods,Sub-contractor Services,11-Apr,"7,237.63"
470953,WOLSELEY UK LTD,Operations and Neighbourhoods,Operations and Neighbourhoods,General Materials,11-Apr,629.09
470954,AGGREGATE INDUSTRIES UK LIMITED,Operations and Neighbourhoods,Operations and Neighbourhoods,General Materials,19-Apr,"3,816.64"
470954,ALTITUDE SERVICES,Operations and Neighbourhoods,Operations and Neighbourhoods,Sub-contractor Services,19-Apr,"5,321.77"
470954,Holroyds Skip Hire Limited,Operations and Neighbourhoods,Operations and Neighbourhoods,Sub-contractor Services,19-Apr,"1,610.00"
470954,KEN TAYLOR SUPPLIES LTD,Engineers Client,Director of Place,General Materials,19-Apr,45
470954,KEN TAYLOR SUPPLIES LTD,Operations and Neighbourhoods,Operations and Neighbourhoods,General Materials,19-Apr,"1,671.75"
470954,NAL LIMITED,Operations and Neighbourhoods,Operations and Neighbourhoods,General Materials,19-Apr,"1,142.36"
470954,Redacted Supplier,Operations and Neighbourhoods,Operations and Neighbourhoods,Training Course Costs,19-Apr,"1,360.00"
470954,TARMAC CENTRAL LIMITED,Operations and Neighbourhoods,Operations and Neighbourhoods,General Materials,19-Apr,"3,332.90"
470954,WOLSELEY UK LTD,Civil Engineers,Director of Place,Debits Goods Received,19-Apr,"1,156.69"
470954,WOLSELEY UK LTD,Operations and Neighbourhoods,Operations and Neighbourhoods,General Materials,19-Apr,946.4
470954,ZODION LTD,Operations and Neighbourhoods,Operations and Neighbourhoods,General Materials,19-Apr,"2,872.82"
470955,3B TRAINING LIMITED,Operations and Neighbourhoods,Operations and Neighbourhoods,General Materials,26-Apr,780
470955,4WAY CONSULTING LTD,Operations and Neighbourhoods,Operations and Neighbourhoods,Engineers Recharge - Reactive Works (Internal),26-Apr,548.1
470955,4WAY CONSULTING LTD,(blank),(blank),Plant & Equipment,26-Apr,"1,890.00"
470955,AGGREGATE INDUSTRIES UK LIMITED,Operations and Neighbourhoods,Operations and Neighbourhoods,General Materials,26-Apr,719.06
470955,ALTITUDE SERVICES,Operations and Neighbourhoods,Operations and Neighbourhoods,General Materials,26-Apr,552.72
470955,ALTITUDE SERVICES,Operations and Neighbourhoods,Operations and Neighbourhoods,Sub-contractor Services,26-Apr,"31,796.81"
470955,FAIRWAY LANDSCAPES LTD,Operations and Neighbourhoods,Operations and Neighbourhoods,Sub-contractor Services,26-Apr,"5,297.00"
470955,KEN TAYLOR SUPPLIES LTD,Engineers Client,Director of Place,General Materials,26-Apr,45
470955,KEN TAYLOR SUPPLIES LTD,Operations and Neighbourhoods,Operations and Neighbourhoods,General Materials,26-Apr,"1,245.00"
470955,ROSGAL CIVIL ENGINEERING LTD,Operations and Neighbourhoods,Operations and Neighbourhoods,Sub-contractor Services,26-Apr,"5,115.00"
470955,Saint-Gobain Building Distribution Limited t/a Benchmark Building Supplies,Civil Engineers,Director of Place,Debits Goods Received,26-Apr,"3,353.40"
470955,Saint-Gobain Building Distribution Limited t/a Benchmark Building Supplies,Operations and Neighbourhoods,Operations and Neighbourhoods,General Materials,26-Apr,39.5
470955,TOTALLY LOCAL COMPANY LIMITED,Civil Engineers,Director of Place,Debits Goods Received,26-Apr,637.02
470955,TOTALLY LOCAL COMPANY LIMITED,Operations and Neighbourhoods,Operations and Neighbourhoods,Tipping Facility Fees,26-Apr,900
470955,TRAFFIC DIRECT LTD,Operations and Neighbourhoods,Operations and Neighbourhoods,Sub-contractor Services,26-Apr,"31,747.00"
470955,UBU ENVIRONMENTAL LTD,Operations and Neighbourhoods,Operations and Neighbourhoods,Sub-contractor Services,26-Apr,"1,035.00"
470956,AGGREGATE INDUSTRIES UK LIMITED,Operations and Neighbourhoods,Operations and Neighbourhoods,General Materials,03-May,"15,004.90"
470956,EAGLE CIVIL ENGINEERING LTD,Operations and Neighbourhoods,Operations and Neighbourhoods,Sub-contractor Services,03-May,"10,279.00"
470956,Redacted Supplier,Operations and Neighbourhoods,Operations and Neighbourhoods,Training Course Costs,03-May,500
470956,NORTHWEST UTILITY SOLUTIONS LTD,Operations and Neighbourhoods,Operations and Neighbourhoods,Sub-contractor Services,03-May,"10,730.00"
470956,Tym Huckin Ltd,Operations and Neighbourhoods,Operations and Neighbourhoods,General Materials,03-May,800
470956,Valmont Stainton LTD,Civil Engineers,Director of Place,Debits Goods Received,03-May,"22,390.44"
470956,WILDE CONSULTING ENGINEERS,Operations and Neighbourhoods,Operations and Neighbourhoods,Sub-contractor Services,03-May,"3,029.00"
470956,WOLSELEY UK LTD,Civil Engineers,Director of Place,Debits Goods Received,03-May,828.35
470956,WOLSELEY UK LTD,Operations and Neighbourhoods,Operations and Neighbourhoods,General Materials,03-May,250
470957,AGGREGATE INDUSTRIES UK LIMITED,Operations and Neighbourhoods,Operations and Neighbourhoods,General Materials,09-May,"3,482.84"
470957,ALTITUDE SERVICES,Operations and Neighbourhoods,Operations and Neighbourhoods,General Materials,09-May,39
470957,ALTITUDE SERVICES,Operations and Neighbourhoods,Operations and Neighbourhoods,Sub-contractor Services,09-May,"17,652.66"
470957,M.C. & M.A. STEWART HAULAGE LTD,Operations and Neighbourhoods,Operations and Neighbourhoods,General Materials,09-May,520
470957,OMSER (SCOTLAND) LTD,Operations and Neighbourhoods,Operations and Neighbourhoods,General Materials,09-May,"6,043.80"
470957,TARMAC CENTRAL LIMITED,Operations and Neighbourhoods,Operations and Neighbourhoods,General Materials,09-May,"3,438.29"
470958,AGGREGATE INDUSTRIES UK LIMITED,Operations and Neighbourhoods,Operations and Neighbourhoods,General Materials,18-May,"5,747.65"
470958,ALTITUDE SERVICES,Operations and Neighbourhoods,Operations and Neighbourhoods,Sub-contractor Services,18-May,"20,602.29"
470958,BAY FREIGHT LTD,Operations and Neighbourhoods,Operations and Neighbourhoods,General Materials,18-May,620
470958,BRIDGE ELECTRICALSUPPLIES LTD,Operations and Neighbourhoods,Operations and Neighbourhoods,General Materials,18-May,745
470958,CHESHIRE TRAINING SOLUTIONS,Operations and Neighbourhoods,Operations and Neighbourhoods,Training Course Costs,18-May,"2,260.00"
470958,FURNITUBES INTERNATIONAL LIMITED,Operations and Neighbourhoods,Operations and Neighbourhoods,General Materials,20-May,"3,270.60"
470958,Holroyds Skip Hire Limited,Operations and Neighbourhoods,Operations and Neighbourhoods,Sub-contractor Services,18-May,"2,750.00"
470958,LIMELIGHT SIGNS LIMITED,Engineers Client,Director of Place,General Materials,18-May,70.66
470958,LIMELIGHT SIGNS LIMITED,Operations and Neighbourhoods,Operations and Neighbourhoods,General Materials,18-May,243
470958,LIMELIGHT SIGNS LIMITED,(blank),(blank),General Materials,18-May,205
470958,MALLATITE LTD,Civil Engineers,Director of Place,Debits Goods Received,18-May,"32,731.20"
470958,Redacted Supplier,Operations and Neighbourhoods,Operations and Neighbourhoods,Training Course Costs,18-May,500
470958,NORTHWEST UTILITY SOLUTIONS LTD,Operations and Neighbourhoods,Operations and Neighbourhoods,Sub-contractor Services,18-May,"7,575.00"
470958,Saint-Gobain Building Distribution Limited t/a Benchmark Building Supplies,Civil Engineers,Director of Place,Debits Goods Received,18-May,"1,100.00"
470958,Saint-Gobain Building Distribution Limited t/a Benchmark Building Supplies,Operations and Neighbourhoods,Operations and Neighbourhoods,General Materials,18-May,5.92
470958,TARMAC CENTRAL LIMITED,Operations and Neighbourhoods,Operations and Neighbourhoods,General Materials,18-May,"4,842.81"
470958,VAISALA LTD,Operations and Neighbourhoods,Operations and Neighbourhoods,General Materials,18-May,"14,822.02"
470958,WOLSELEY UK LTD,Operations and Neighbourhoods,Operations and Neighbourhoods,General Materials,18-May,"2,943.60"
470959,4WAY CONSULTING LTD,Operations and Neighbourhoods,Operations and Neighbourhoods,Engineers Recharge - Reactive Works (Internal),23-May,"3,148.99"
470959,4WAY CONSULTING LTD,(blank),(blank),Plant & Equipment,23-May,916.65
470959,ACORN LIGHTING SERVICES LTD,Operations and Neighbourhoods,Operations and Neighbourhoods,Sub-contractor Services,23-May,"1,600.00"
470959,AGGREGATE INDUSTRIES UK LIMITED,Operations and Neighbourhoods,Operations and Neighbourhoods,General Materials,23-May,"8,179.82"
470959,ALTITUDE SERVICES,Operations and Neighbourhoods,Operations and Neighbourhoods,Sub-contractor Services,23-May,"23,071.46"
470959,AMBERON LTD,Operations and Neighbourhoods,Operations and Neighbourhoods,General Materials,23-May,671.43
470959,ARCO LIMITED,Civil Engineers,Director of Place,Debits Goods Received,23-May,460.8
470959,ARCO LIMITED,Engineers Client,Director of Place,General Materials,23-May,79.22
470959,ARCO LIMITED,Operations and Neighbourhoods,Operations and Neighbourhoods,General Materials,23-May,981.19
470959,Bloom Procurement Services Limited,(blank),(blank),Street Lighting Works,23-May,"12,625.23"
470959,BRIDGE ELECTRICALSUPPLIES LTD,Civil Engineers,Director of Place,Debits Goods Received,23-May,695
470959,BRIDGE ELECTRICALSUPPLIES LTD,Operations and Neighbourhoods,Operations and Neighbourhoods,General Materials,23-May,316
470959,CABLE SERVICES GROUP LIMITED,Civil Engineers,Director of Place,Debits Goods Received,23-May,"1,410.00"
470959,CABLE SERVICES GROUP LIMITED,Operations and Neighbourhoods,Operations and Neighbourhoods,General Materials,23-May,280.3
470959,CASTINGS SERVICES LTD,Civil Engineers,Director of Place,Debits Goods Received,23-May,"1,050.00"
470959,CHILTON SAFETY SOLUTIONS,Operations and Neighbourhoods,Operations and Neighbourhoods,Training Course Costs,23-May,"1,266.45"
470959,COLAS LTD,Operations and Neighbourhoods,Operations and Neighbourhoods,General Materials,23-May,"1,575.00"
470959,EAGLE CIVIL ENGINEERING LTD,Operations and Neighbourhoods,Operations and Neighbourhoods,Sub-contractor Services,23-May,"7,328.63"
470959,FAIRWAY LANDSCAPES LTD,Operations and Neighbourhoods,Operations and Neighbourhoods,Sub-contractor Services,23-May,"1,310.40"
470959,HIGHER SAFETY & TRAINING SOLUTIONS LTD,Operations and Neighbourhoods,Operations and Neighbourhoods,Training Course Costs,23-May,500
470959,J9 LTD trading as BARRIERS DIRECT,Operations and Neighbourhoods,Operations and Neighbourhoods,General Materials,23-May,"1,104.30"
470959,KEN TAYLOR SUPPLIES LTD,Civil Engineers,Director of Place,Debits Goods Received,23-May,121
470959,KEN TAYLOR SUPPLIES LTD,Engineers Client,Director of Place,General Materials,23-May,45
470959,KEN TAYLOR SUPPLIES LTD,Operations and Neighbourhoods,Operations and Neighbourhoods,General Materials,23-May,857.75
470959,MALLATITE LTD,Civil Engineers,Director of Place,Debits Goods Received,23-May,"4,765.00"
470959,MARWOOD ELECTRICAL CO,Civil Engineers,Director of Place,Debits Goods Received,23-May,603.48
470959,MARWOOD ELECTRICAL CO,Operations and Neighbourhoods,Operations and Neighbourhoods,General Materials,23-May,"41,162.50"
470959,Redacted Supplier,Operations and Neighbourhoods,Operations and Neighbourhoods,Training Course Costs,23-May,500
470959,NORTHWEST UTILITY SOLUTIONS LTD,Operations and Neighbourhoods,Operations and Neighbourhoods,Sub-contractor Services,23-May,"5,325.00"
470959,P F CUSACK LTD,Civil Engineers,Director of Place,Debits Goods Received,23-May,850
470959,ROSGAL CIVIL ENGINEERING LTD,Operations and Neighbourhoods,Operations and Neighbourhoods,Sub-contractor Services,23-May,"2,200.00"
470959,TARMAC CENTRAL LIMITED,Operations and Neighbourhoods,Operations and Neighbourhoods,General Materials,23-May,"2,394.50"
470959,TOTALLY LOCAL COMPANY LIMITED,Civil Engineers,Director of Place,Debits Goods Received,23-May,361.98
470959,TOTALLY LOCAL COMPANY LIMITED,Operations and Neighbourhoods,Operations and Neighbourhoods,Tipping Facility Fees,23-May,560
470959,UBU ENVIRONMENTAL LTD,Operations and Neighbourhoods,Operations and Neighbourhoods,Sub-contractor Services,23-May,"3,937.50"
470960,ACORN LIGHTING SERVICES LTD,Operations and Neighbourhoods,Operations and Neighbourhoods,Sub-contractor Services,30-May,"39,600.00"
470960,AIUK t/a SRM,Operations and Neighbourhoods,Operations and Neighbourhoods,General Materials,30-May,"2,710.10"
470960,ALTITUDE SERVICES,Operations and Neighbourhoods,Operations and Neighbourhoods,Sub-contractor Services,30-May,"5,078.81"
470960,MARCHINGTON STONE,Civil Engineers,Director of Place,Debits Goods Received,30-May,501.99
470960,TRAFFIC DIRECT LTD,Operations and Neighbourhoods,Operations and Neighbourhoods,Sub-contractor Services,30-May,"14,300.00"
470960,UBU ENVIRONMENTAL LTD,Operations and Neighbourhoods,Operations and Neighbourhoods,Sub-contractor Services,30-May,"5,660.00"
470960,Valmont Stainton LTD,Civil Engineers,Director of Place,Debits Goods Received,30-May,"9,498.90"
470961,4WAY CONSULTING LTD,(blank),(blank),Plant & Equipment,06-Jun,"1,701.00"
470961,AGGREGATE INDUSTRIES UK LIMITED,Operations and Neighbourhoods,Operations and Neighbourhoods,General Materials,06-Jun,844.25
470961,ALTITUDE SERVICES,Operations and Neighbourhoods,Operations and Neighbourhoods,Sub-contractor Services,06-Jun,"9,647.44"
470961,BRIDGE ELECTRICALSUPPLIES LTD,Civil Engineers,Director of Place,Debits Goods Received,06-Jun,"1,275.00"
470961,CABLE SERVICES GROUP LIMITED,Civil Engineers,Director of Place,Debits Goods Received,06-Jun,705
470961,DECORWRIGHT LIMITED,Operations and Neighbourhoods,Operations and Neighbourhoods,General Materials,06-Jun,"6,165.00"
470961,EAGLE CIVIL ENGINEERING LTD,Operations and Neighbourhoods,Operations and Neighbourhoods,General Materials,06-Jun,"5,657.50"
470961,EAGLE CIVIL ENGINEERING LTD,Operations and Neighbourhoods,Operations and Neighbourhoods,Sub-contractor Services,06-Jun,"15,888.81"
470961,MALLATITE LTD,Civil Engineers,Director of Place,Debits Goods Received,06-Jun,"5,455.00"
470961,Redacted Supplier,Operations and Neighbourhoods,Operations and Neighbourhoods,Training Course Costs,06-Jun,510
470961,NORTHWEST UTILITY SOLUTIONS LTD,Operations and Neighbourhoods,Operations and Neighbourhoods,Sub-contractor Services,06-Jun,"15,300.00"
470961,ROWAN ASHWORTH LIMITED,Operations and Neighbourhoods,Operations and Neighbourhoods,Sub-contractor Services,06-Jun,"8,250.00"
470961,WILDE CONSULTING ENGINEERS,Operations and Neighbourhoods,Operations and Neighbourhoods,Sub-contractor Services,06-Jun,"18,247.13"
470962,AGGREGATE INDUSTRIES UK LIMITED,Operations and Neighbourhoods,Operations and Neighbourhoods,General Materials,16-Jun,"4,330.64"
470962,ALTITUDE SERVICES,Operations and Neighbourhoods,Operations and Neighbourhoods,General Materials,16-Jun,383.92
470962,ALTITUDE SERVICES,Operations and Neighbourhoods,Operations and Neighbourhoods,Sub-contractor Services,16-Jun,"1,216.73"
470962,ARCO LIMITED,Civil Engineers,Director of Place,Debits Goods Received,16-Jun,712.61
470962,ARCO LIMITED,Operations and Neighbourhoods,Operations and Neighbourhoods,General Materials,16-Jun,303.65
470962,ARCO LIMITED,Operations and Neighbourhoods,Operations and Neighbourhoods,Training Course Costs,16-Jun,14.04
470962,CHALLENGER SITE SERVICES LLP,Operations and Neighbourhoods,Operations and Neighbourhoods,General Materials,16-Jun,824
470962,Holroyds Skip Hire Limited,Operations and Neighbourhoods,Operations and Neighbourhoods,General Materials,16-Jun,"3,750.00"
470962,LIMELIGHT SIGNS LIMITED,Engineers Client,Director of Place,General Materials,16-Jun,725.71
470962,LIMELIGHT SIGNS LIMITED,Operations and Neighbourhoods,Operations and Neighbourhoods,General Materials,16-Jun,113
470962,MANCHESTER PLANT TRAINING LTD,Operations and Neighbourhoods,Operations and Neighbourhoods,Training Course Costs,16-Jun,725
470962,Professional Quality Management Services Limited,Operations and Neighbourhoods,Operations and Neighbourhoods,Training Course Costs,16-Jun,629.5
470962,TARMAC CENTRAL LIMITED,Operations and Neighbourhoods,Operations and Neighbourhoods,General Materials,16-Jun,"5,474.01"
470962,TOTALLY LOCAL COMPANY LIMITED,Civil Engineers,Director of Place,Debits Goods Received,16-Jun,96.3
470962,TOTALLY LOCAL COMPANY LIMITED,Operations and Neighbourhoods,Operations and Neighbourhoods,Training Course Costs,16-Jun,860
470962,UBU ENVIRONMENTAL LTD,Operations and Neighbourhoods,Operations and Neighbourhoods,Sub-contractor Services,16-Jun,"4,297.50"
470962,WILDE CONSULTING ENGINEERS,Operations and Neighbourhoods,Operations and Neighbourhoods,Sub-contractor Services,16-Jun,"2,502.97"
470963,ABACUS LIGHTING LTD,Operations and Neighbourhoods,Operations and Neighbourhoods,Engineers Recharge - Reactive Works (Internal),23-Jun,"1,000.00"
470963,AGGREGATE INDUSTRIES UK LIMITED,Operations and Neighbourhoods,Operations and Neighbourhoods,General Materials,23-Jun,"11,615.18"
470963,AIUK t/a SRM,Operations and Neighbourhoods,Operations and Neighbourhoods,General Materials,23-Jun,538.5
470963,ALTITUDE SERVICES,Operations and Neighbourhoods,Operations and Neighbourhoods,Sub-contractor Services,23-Jun,"24,236.98"
470963,INSTARMAC GROUP PLC,Civil Engineers,Director of Place,Debits Goods Received,23-Jun,"3,059.12"
470963,KEN TAYLOR SUPPLIES LTD,Operations and Neighbourhoods,Operations and Neighbourhoods,General Materials,23-Jun,674.62
470963,NORTHWEST UTILITY SOLUTIONS LTD,Operations and Neighbourhoods,Operations and Neighbourhoods,Sub-contractor Services,23-Jun,"7,350.00"
470963,TARMAC CENTRAL LIMITED,Operations and Neighbourhoods,Operations and Neighbourhoods,General Materials,23-Jun,"2,516.02"
470963,TRAFFIC DIRECT LTD,Operations and Neighbourhoods,Operations and Neighbourhoods,General Materials,23-Jun,960
470963,TRAFFIC DIRECT LTD,Operations and Neighbourhoods,Operations and Neighbourhoods,Sub-contractor Services,23-Jun,"1,200.00"
470963,UBU ENVIRONMENTAL LTD,Operations and Neighbourhoods,Operations and Neighbourhoods,Sub-contractor Services,23-Jun,977.5
470964,4WAY CONSULTING LTD,Operations and Neighbourhoods,Operations and Neighbourhoods,Engineers Recharge - Reactive Works (Internal),27-Jun,529.2
470964,4WAY CONSULTING LTD,(blank),(blank),Plant & Equipment,27-Jun,"1,417.50"
470964,AGGREGATE INDUSTRIES UK LIMITED,Operations and Neighbourhoods,Operations and Neighbourhoods,General Materials,27-Jun,"11,493.54"
470964,AIUK t/a SRM,Operations and Neighbourhoods,Operations and Neighbourhoods,General Materials,27-Jun,532.5
470964,ALTITUDE SERVICES,Operations and Neighbourhoods,Operations and Neighbourhoods,Sub-contractor Services,27-Jun,"11,203.69"
470964,BRAMHALL SURFACING LTD,Operations and Neighbourhoods,Operations and Neighbourhoods,Sub-contractor Services,27-Jun,"2,356.82"
470964,EAGLE CIVIL ENGINEERING LTD,Operations and Neighbourhoods,Operations and Neighbourhoods,General Materials,27-Jun,"27,588.43"
470964,EAGLE CIVIL ENGINEERING LTD,Operations and Neighbourhoods,Operations and Neighbourhoods,Sub-contractor Services,27-Jun,"11,515.21"
470964,INSTARMAC GROUP PLC,Civil Engineers,Director of Place,Debits Goods Received,27-Jun,"3,917.84"
470964,KELTIC LTD,Operations and Neighbourhoods,Operations and Neighbourhoods,General Materials,27-Jun,"2,094.55"
470964,KEN TAYLOR SUPPLIES LTD,Civil Engineers,Director of Place,Debits Goods Received,27-Jun,255
470964,KEN TAYLOR SUPPLIES LTD,Operations and Neighbourhoods,Operations and Neighbourhoods,General Materials,27-Jun,"1,167.00"
470964,KEN TAYLOR SUPPLIES LTD,Operations and Neighbourhoods,Operations and Neighbourhoods,Training Course Costs,27-Jun,128
470964,LOCATION ONE LTD,Operations and Neighbourhoods,Operations and Neighbourhoods,General Materials,27-Jun,706.16
470964,Redacted Supplier,Operations and Neighbourhoods,Operations and Neighbourhoods,Training Course Costs,27-Jun,500
470964,NORTHWEST UTILITY SOLUTIONS LTD,Operations and Neighbourhoods,Operations and Neighbourhoods,Sub-contractor Services,27-Jun,"27,150.00"
470964,NU FIRE & SECURITY LTD,Operations and Neighbourhoods,Operations and Neighbourhoods,General Materials,27-Jun,"1,396.00"
470964,P F CUSACK LTD,Civil Engineers,Director of Place,Debits Goods Received,27-Jun,"1,275.00"
470964,PG FABRICATIONS,Multiple Heads of Service,Multiple Strategic Directorates,Tax Retained Sub Contractors,27-Jun,-204
470964,PG FABRICATIONS,Operations and Neighbourhoods,Operations and Neighbourhoods,General Materials,27-Jun,960
470964,PG FABRICATIONS,Operations and Neighbourhoods,Operations and Neighbourhoods,Sub-contractor Services,27-Jun,60
470964,ROWAN ASHWORTH LIMITED,Operations and Neighbourhoods,Operations and Neighbourhoods,Sub-contractor Services,27-Jun,"9,660.00"
470964,TRAFFIC DIRECT LTD,Operations and Neighbourhoods,Operations and Neighbourhoods,Sub-contractor Services,27-Jun,"6,012.50"
470964,UBU ENVIRONMENTAL LTD,Operations and Neighbourhoods,Operations and Neighbourhoods,Sub-contractor Services,27-Jun,"4,095.00"
470964,Valmont Stainton LTD,Civil Engineers,Director of Place,Debits Goods Received,27-Jun,"14,228.00"
3250858,BURNT TREE GROUP LIMITED,Operations and Neighbourhoods,Operations and Neighbourhoods,Additional Hire,07-Apr,"5,698.31"
3250858,BURNT TREE GROUP LIMITED,Operations and Neighbourhoods,Operations and Neighbourhoods,Replacement Hire,07-Apr,324.17
3250858,BURNT TREE GROUP LIMITED,Operations and Neighbourhoods,Operations and Neighbourhoods,Workshop Recharges including Misuse & Damage Costs,07-Apr,496.06
3250858,DENNIS EAGLE LTD,Operations and Neighbourhoods,Operations and Neighbourhoods,General Materials,07-Apr,472.76
3250858,DENNIS EAGLE LTD,Transport,Director of Place,Debits Goods Received,07-Apr,"2,462.33"
3250858,ECLIPSE AUTOMOTIVE TECHNOLOGY LTD,Operations and Neighbourhoods,Operations and Neighbourhoods,General Equipment Repair & Maintenance,07-Apr,"2,010.00"
3250858,FUCHS LUBRICANTS UK PLC,Transport,Director of Place,Debits Goods Received,07-Apr,"1,167.87"
3250858,GARIC LTD,Operations and Neighbourhoods,Operations and Neighbourhoods,Additional Hire,07-Apr,"2,796.80"
3250858,HTF TYRE SERVICES LTD,Operations and Neighbourhoods,Operations and Neighbourhoods,Tyre Costs,07-Apr,"1,533.55"
3250858,LEEDS COMMERCIAL LTD T/A LC VEHICLE HIRE,Operations and Neighbourhoods,Operations and Neighbourhoods,Additional Hire,07-Apr,"2,185.00"
3250858,LEEDS COMMERCIAL LTD T/A LC VEHICLE HIRE,Operations and Neighbourhoods,Operations and Neighbourhoods,Sub-contractor Services,07-Apr,458.15
3250858,MOTUS COMMERCIALS (OLDHAM),Operations and Neighbourhoods,Operations and Neighbourhoods,General Materials,07-Apr,"1,120.64"
3250858,PETER DOUGLASS PLATFORMS,Operations and Neighbourhoods,Operations and Neighbourhoods,Replacement Hire,07-Apr,"3,312.00"
3250858,RIVERSIDE TRUCK RENTAL LIMITED,Operations and Neighbourhoods,Operations and Neighbourhoods,Additional Hire,07-Apr,"4,117.00"
3250858,WASTE PARTS UK LTD,Transport,Director of Place,Debits Goods Received,07-Apr,"1,891.72"
3250859,AEBI SCHMIDT UK LTD,Transport,Director of Place,Debits Goods Received,14-Apr,"2,591.67"
3250859,DENNIS EAGLE LTD,Operations and Neighbourhoods,Operations and Neighbourhoods,General Materials,14-Apr,"2,540.95"
3250859,DENNIS EAGLE LTD,Transport,Director of Place,Debits Goods Received,14-Apr,"4,274.59"
3250859,FREIGHT TRANSPORT ASSOCIATION,Operations and Neighbourhoods,Operations and Neighbourhoods,Vehicle Inspection/Testing Costs,14-Apr,"7,390.56"
3250859,G B OILS TA CARLTON FUELS,Transport,Director of Place,Diesel Fuel,14-Apr,"27,324.83"
3250859,G B OILS TA CARLTON FUELS,Transport,Director of Place,Petrol Fuel,14-Apr,"3,133.48"
3250859,P J SPENCER (ELECTRICAL)  LTD,Operations and Neighbourhoods,Operations and Neighbourhoods,General Materials,14-Apr,"1,176.04"
3250859,Teletrac Navman UK LTD (in corporating Navman Wireless UK LTD),Operations and Neighbourhoods,Operations and Neighbourhoods,General Equipment Repair & Maintenance,14-Apr,"5,385.33"
3250859,TERBERG MATEC UK LTD,Operations and Neighbourhoods,Operations and Neighbourhoods,General Materials,14-Apr,664.32
3250859,TRUCTYRE ATS,Operations and Neighbourhoods,Operations and Neighbourhoods,Tyre Costs,14-Apr,"1,129.98"
3250859,WASTE PARTS UK LTD,Transport,Director of Place,Debits Goods Received,14-Apr,"2,079.24"
3250860,A & J MOTORSPARES,Operations and Neighbourhoods,Operations and Neighbourhoods,General Materials,21-Apr,612.42
3250860,AEBI SCHMIDT UK LTD,Operations and Neighbourhoods,Operations and Neighbourhoods,General Materials,21-Apr,"1,102.65"
3250860,AIR PRODUCTS PLC,Operations and Neighbourhoods,Operations and Neighbourhoods,General Equipment Repair & Maintenance,21-Apr,714.24
3250860,CALIBRATION &CONSULTANCYSERVICES (UK) LTD,Operations and Neighbourhoods,Operations and Neighbourhoods,General Equipment Repair & Maintenance,21-Apr,"1,256.85"
3250860,DENNIS EAGLE LTD,Operations and Neighbourhoods,Operations and Neighbourhoods,General Materials,21-Apr,"1,380.90"
3250860,DENNIS EAGLE LTD,Transport,Director of Place,Debits Goods Received,21-Apr,984.65
3250860,HTF TYRE SERVICES LTD,Operations and Neighbourhoods,Operations and Neighbourhoods,Tyre Costs,21-Apr,712.86
3250860,MOTUS COMMERCIALS (OLDHAM),Operations and Neighbourhoods,Operations and Neighbourhoods,General Materials,21-Apr,"1,137.48"
3250861,A & J MOTORSPARES,Operations and Neighbourhoods,Operations and Neighbourhoods,Consumable Materials,28-Apr,29.58
3250861,A & J MOTORSPARES,Operations and Neighbourhoods,Operations and Neighbourhoods,General Materials,28-Apr,550.75
3250861,AEBI SCHMIDT UK LTD,Operations and Neighbourhoods,Operations and Neighbourhoods,General Materials,28-Apr,"1,853.41"
3250861,AEBI SCHMIDT UK LTD,Transport,Director of Place,Debits Goods Received,28-Apr,116.75
3250861,CIVICA UK LIMITED,Operations and Neighbourhoods,Operations and Neighbourhoods,Computer Software,28-Apr,"6,873.75"
3250861,DENNIS EAGLE LTD,Operations and Neighbourhoods,Operations and Neighbourhoods,General Materials,28-Apr,"1,327.10"
3250861,DENNIS EAGLE LTD,Operations and Neighbourhoods,Operations and Neighbourhoods,Sub-contractor Services,28-Apr,"14,414.61"
3250861,DENNIS EAGLE LTD,Transport,Director of Place,Debits Goods Received,28-Apr,693.2
3250861,G B OILS TA CARLTON FUELS,Transport,Director of Place,Diesel Fuel,28-Apr,"39,845.55"
3250861,HTF TYRE SERVICES LTD,Operations and Neighbourhoods,Operations and Neighbourhoods,Tyre Costs,28-Apr,"1,300.20"
3250861,JDS TRUCKS LIMITED,Operations and Neighbourhoods,Operations and Neighbourhoods,General Materials,28-Apr,769.87
3250861,JDS TRUCKS LIMITED,Transport,Director of Place,Debits Goods Received,28-Apr,173.99
3250861,JOHNSONS APPARELMASTER LTD,Operations and Neighbourhoods,Operations and Neighbourhoods,Protective Clothing,28-Apr,634.4
3250861,Quantum Production Ltd T/A Quantum Cryogenics,Operations and Neighbourhoods,Operations and Neighbourhoods,General Equipment Repair & Maintenance,28-Apr,"1,180.00"
3250861,TAMESIDE TRANSMISSIONS,Operations and Neighbourhoods,Operations and Neighbourhoods,Sub-contractor Services,29-Apr,750
3250861,TERBERG MATEC UK LTD,Transport,Director of Place,Debits Goods Received,28-Apr,723.5
3250861,TRUCTYRE ATS,Operations and Neighbourhoods,Operations and Neighbourhoods,Tyre Costs,28-Apr,897.42
3250862,DENNIS EAGLE LTD,Operations and Neighbourhoods,Operations and Neighbourhoods,General Materials,06-May,255.45
3250862,DENNIS EAGLE LTD,Transport,Director of Place,Debits Goods Received,06-May,"3,482.85"
3250862,G B OILS TA CARLTON FUELS,Transport,Director of Place,Diesel Fuel,06-May,"29,221.50"
3250862,JDS TRUCKS LIMITED,Operations and Neighbourhoods,Operations and Neighbourhoods,General Materials,06-May,"1,650.56"
3250862,MOTUS COMMERCIALS (OLDHAM),Operations and Neighbourhoods,Operations and Neighbourhoods,General Equipment Purchase,06-May,70.93
3250862,MOTUS COMMERCIALS (OLDHAM),Operations and Neighbourhoods,Operations and Neighbourhoods,General Materials,06-May,"1,572.89"
3250862,MOTUS COMMERCIALS (OLDHAM),Operations and Neighbourhoods,Operations and Neighbourhoods,Sub-contractor Services,06-May,599.72
3250862,MOTUS COMMERCIALS (OLDHAM),Transport,Director of Place,Debits Goods Received,06-May,103.17
3250863,AEBI SCHMIDT UK LTD,Operations and Neighbourhoods,Operations and Neighbourhoods,General Materials,12-May,389.35
3250863,AEBI SCHMIDT UK LTD,Operations and Neighbourhoods,Operations and Neighbourhoods,Sub-contractor Services,12-May,"1,753.15"
3250863,AEBI SCHMIDT UK LTD,Transport,Director of Place,Debits Goods Received,12-May,892.27
3250863,AUTOSMART INTERNATIONAL,Operations and Neighbourhoods,Operations and Neighbourhoods,Consumable Materials,12-May,193.16
3250863,AUTOSMART INTERNATIONAL,Operations and Neighbourhoods,Operations and Neighbourhoods,General Equipment Repair & Maintenance,12-May,323.3
3250863,BRENNTAG UK LIMITED,Transport,Director of Place,Fuel / Ad Blu,12-May,"2,538.00"
3250863,BURNT TREE GROUP LIMITED,Operations and Neighbourhoods,Operations and Neighbourhoods,Additional Hire,12-May,"7,261.90"
3250863,BURNT TREE GROUP LIMITED,Operations and Neighbourhoods,Operations and Neighbourhoods,Replacement Hire,12-May,163.17
3250863,BURNT TREE GROUP LIMITED,Operations and Neighbourhoods,Operations and Neighbourhoods,Workshop Recharges including Misuse & Damage Costs,12-May,544.6
3250863,DENNIS EAGLE LTD,Operations and Neighbourhoods,Operations and Neighbourhoods,General Materials,12-May,"2,400.93"
3250863,DENNIS EAGLE LTD,Operations and Neighbourhoods,Operations and Neighbourhoods,Sub-contractor Services,12-May,"3,006.17"
3250863,G B OILS TA CARLTON FUELS,Transport,Director of Place,Diesel Fuel,12-May,"14,367.54"
3250863,GARIC LTD,Operations and Neighbourhoods,Operations and Neighbourhoods,Additional Hire,12-May,"2,553.60"
3250863,HTF TYRE SERVICES LTD,Operations and Neighbourhoods,Operations and Neighbourhoods,Tyre Costs,12-May,"2,021.85"
3250863,LEEDS COMMERCIAL LTD T/A LC VEHICLE HIRE,Operations and Neighbourhoods,Operations and Neighbourhoods,Additional Hire,12-May,"1,995.00"
3250863,PETER DOUGLASS PLATFORMS,Operations and Neighbourhoods,Operations and Neighbourhoods,Replacement Hire,12-May,"3,108.00"
3250863,PETER DOUGLASS PLATFORMS,Operations and Neighbourhoods,Operations and Neighbourhoods,Workshop Recharges including Misuse & Damage Costs,12-May,0
3250863,RIVERSIDE TRUCK RENTAL LIMITED,Operations and Neighbourhoods,Operations and Neighbourhoods,Additional Hire,12-May,"7,540.00"
3250863,RIVERSIDE TRUCK RENTAL LIMITED,Operations and Neighbourhoods,Operations and Neighbourhoods,Workshop Recharges including Misuse & Damage Costs,12-May,50
3250863,STOCKPORT TRUCK CENTRE LTD,Operations and Neighbourhoods,Operations and Neighbourhoods,Vehicle Inspection/Testing Costs,12-May,"6,000.00"
3250863,TOLLAND PRECISION ENGINEERING LTD,Operations and Neighbourhoods,Operations and Neighbourhoods,General Materials,12-May,196
3250863,TOLLAND PRECISION ENGINEERING LTD,Operations and Neighbourhoods,Operations and Neighbourhoods,Sub-contractor Services,12-May,538
3250863,TRUCTYRE ATS,Operations and Neighbourhoods,Operations and Neighbourhoods,Tyre Costs,12-May,"4,148.87"
3250863,WASTE PARTS UK LTD,Operations and Neighbourhoods,Operations and Neighbourhoods,General Materials,12-May,448
3250863,WASTE PARTS UK LTD,Transport,Director of Place,Debits Goods Received,12-May,327.16
3250864,C V PARTS,Transport,Director of Place,Debits Goods Received,19-May,"1,200.00"
3250864,DENNIS EAGLE LTD,Operations and Neighbourhoods,Operations and Neighbourhoods,Sub-contractor Services,19-May,"9,371.79"
3250864,DENNIS EAGLE LTD,Transport,Director of Place,Debits Goods Received,19-May,"2,988.19"
3250864,G B OILS TA CARLTON FUELS,Transport,Director of Place,Diesel Fuel,19-May,"30,105.60"
3250864,JDS TRUCKS LIMITED,Operations and Neighbourhoods,Operations and Neighbourhoods,General Materials,19-May,741.28
3250864,JDS TRUCKS LIMITED,Transport,Director of Place,Debits Goods Received,19-May,65.94
3250864,MOTUS COMMERCIALS (OLDHAM),Operations and Neighbourhoods,Operations and Neighbourhoods,General Materials,19-May,936.27
3250865,DENNIS EAGLE LTD,Operations and Neighbourhoods,Operations and Neighbourhoods,Sub-contractor Services,26-May,"2,776.23"
3250865,DENNIS EAGLE LTD,Transport,Director of Place,Debits Goods Received,26-May,142.03
3250865,J TAYLOR ELECTRICAL SOLUTIONS LTD,Operations and Neighbourhoods,Operations and Neighbourhoods,Building Repairs,26-May,"3,455.00"
3250865,J TAYLOR ELECTRICAL SOLUTIONS LTD,Operations and Neighbourhoods,Operations and Neighbourhoods,General Equipment Repair & Maintenance,26-May,106.6
3250865,TRUCTYRE ATS,Operations and Neighbourhoods,Operations and Neighbourhoods,Tyre Costs,26-May,"1,253.63"
3250865,Vehicle Weighing Solutions Ltd,Operations and Neighbourhoods,Operations and Neighbourhoods,Sub-contractor Services,26-May,"1,000.00"
3250866,A & J MOTORSPARES,Operations and Neighbourhoods,Operations and Neighbourhoods,General Materials,06-Jun,140.26
3250866,A & J MOTORSPARES,Transport,Director of Place,Debits Goods Received,06-Jun,397.92
3250866,AEBI SCHMIDT UK LTD,Operations and Neighbourhoods,Operations and Neighbourhoods,General Materials,06-Jun,"2,181.85"
3250866,AEBI SCHMIDT UK LTD,Transport,Director of Place,Debits Goods Received,06-Jun,"3,413.70"
3250866,BURNT TREE GROUP LIMITED,Operations and Neighbourhoods,Operations and Neighbourhoods,Additional Hire,06-Jun,"6,627.47"
3250866,BURNT TREE GROUP LIMITED,Operations and Neighbourhoods,Operations and Neighbourhoods,Workshop Recharges including Misuse & Damage Costs,06-Jun,458.32
3250866,DENNIS EAGLE LTD,Operations and Neighbourhoods,Operations and Neighbourhoods,General Materials,06-Jun,750.64
3250866,DENNIS EAGLE LTD,Transport,Director of Place,Debits Goods Received,06-Jun,"1,984.90"
3250866,F. R. SHARROCK LIMITED,Operations and Neighbourhoods,Operations and Neighbourhoods,General Materials,06-Jun,511.82
3250866,F. R. SHARROCK LIMITED,Operations and Neighbourhoods,Operations and Neighbourhoods,Sub-contractor Services,06-Jun,333.95
3250866,F. R. SHARROCK LIMITED,Transport,Director of Place,Debits Goods Received,06-Jun,394.43
3250866,GUNN JCB LTD,Operations and Neighbourhoods,Operations and Neighbourhoods,General Materials,06-Jun,"2,930.07"
3250866,HI-WAY COMPONENTS,Operations and Neighbourhoods,Operations and Neighbourhoods,Consumable Materials,06-Jun,29.7
3250866,HI-WAY COMPONENTS,Operations and Neighbourhoods,Operations and Neighbourhoods,General Materials,06-Jun,225.63
3250866,HI-WAY COMPONENTS,Transport,Director of Place,Debits Goods Received,06-Jun,431.09
3250866,HTF TYRE SERVICES LTD,Operations and Neighbourhoods,Operations and Neighbourhoods,Tyre Costs,06-Jun,"3,147.30"
3250866,LEEDS COMMERCIAL LTD T/A LC VEHICLE HIRE,Operations and Neighbourhoods,Operations and Neighbourhoods,Additional Hire,06-Jun,"2,090.00"
3250866,LEEDS COMMERCIAL LTD T/A LC VEHICLE HIRE,Operations and Neighbourhoods,Operations and Neighbourhoods,Replacement Hire,06-Jun,360
3250866,MOTUS COMMERCIALS (OLDHAM),Operations and Neighbourhoods,Operations and Neighbourhoods,General Materials,06-Jun,521.51
3250866,SCARAB SWEEPERS LTD,Operations and Neighbourhoods,Operations and Neighbourhoods,General Materials,06-Jun,671.5
3250866,Vehicle Weighing Solutions Ltd,Operations and Neighbourhoods,Operations and Neighbourhoods,Sub-contractor Services,06-Jun,"1,000.00"
3250867,ABLE LORRY LOADERS LTD,Operations and Neighbourhoods,Operations and Neighbourhoods,Sub-contractor Services,09-Jun,"1,329.33"
3250867,AUTOSMART INTERNATIONAL,Operations and Neighbourhoods,Operations and Neighbourhoods,Consumable Materials,09-Jun,249.43
3250867,AUTOSMART INTERNATIONAL,Operations and Neighbourhoods,Operations and Neighbourhoods,General Equipment Repair & Maintenance,09-Jun,457
3250867,F. R. SHARROCK LIMITED,Transport,Director of Place,Debits Goods Received,09-Jun,578.09
3250867,G B OILS TA CARLTON FUELS,Transport,Director of Place,Diesel Fuel,09-Jun,"14,916.00"
3250867,G B OILS TA CARLTON FUELS,Transport,Director of Place,Petrol Fuel,09-Jun,"3,854.00"
3250867,GARIC LTD,Operations and Neighbourhoods,Operations and Neighbourhoods,Additional Hire,09-Jun,"2,675.20"
3250867,JOHNSONS APPARELMASTER LTD,Operations and Neighbourhoods,Operations and Neighbourhoods,Protective Clothing,09-Jun,822.65
3250867,PETER DOUGLASS PLATFORMS,Operations and Neighbourhoods,Operations and Neighbourhoods,Replacement Hire,09-Jun,"3,256.00"
3250867,RIVERSIDE TRUCK RENTAL LIMITED,Operations and Neighbourhoods,Operations and Neighbourhoods,Additional Hire,09-Jun,"8,316.00"
3250868,AEBI SCHMIDT UK LTD,Operations and Neighbourhoods,Operations and Neighbourhoods,General Materials,16-Jun,"2,022.71"
3250868,AEBI SCHMIDT UK LTD,Transport,Director of Place,Debits Goods Received,16-Jun,28.3
3250868,CALIBRATION &CONSULTANCYSERVICES (UK) LTD,Operations and Neighbourhoods,Operations and Neighbourhoods,General Equipment Repair & Maintenance,16-Jun,709.26
3250868,F. R. SHARROCK LIMITED,Operations and Neighbourhoods,Operations and Neighbourhoods,General Materials,16-Jun,31.94
3250868,F. R. SHARROCK LIMITED,Transport,Director of Place,Debits Goods Received,16-Jun,867.58
3250868,G B OILS TA CARLTON FUELS,Transport,Director of Place,Diesel Fuel,16-Jun,"57,453.45"
3250868,SCARAB SWEEPERS LTD,Operations and Neighbourhoods,Operations and Neighbourhoods,General Materials,16-Jun,990.38
3250868,TAMESIDE TRANSMISSIONS,Operations and Neighbourhoods,Operations and Neighbourhoods,Sub-contractor Services,16-Jun,"1,050.00"
3250868,TRUCTYRE ATS,Operations and Neighbourhoods,Operations and Neighbourhoods,Tyre Costs,16-Jun,803.36
3250868,WASTE PARTS UK LTD,Transport,Director of Place,Debits Goods Received,16-Jun,651.34
3250869,A & J MOTORSPARES,Operations and Neighbourhoods,Operations and Neighbourhoods,General Materials,23-Jun,513.19
3250869,AEBI SCHMIDT UK LTD,Operations and Neighbourhoods,Operations and Neighbourhoods,General Materials,23-Jun,111.02
3250869,AEBI SCHMIDT UK LTD,Transport,Director of Place,Debits Goods Received,23-Jun,411.37
3250869,DENNIS EAGLE LTD,Operations and Neighbourhoods,Operations and Neighbourhoods,Sub-contractor Services,23-Jun,"10,426.50"
3250869,MOTUS COMMERCIALS (OLDHAM),Operations and Neighbourhoods,Operations and Neighbourhoods,General Materials,23-Jun,"4,462.86"
3250869,TRUCTYRE ATS,Operations and Neighbourhoods,Operations and Neighbourhoods,Tyre Costs,23-Jun,"1,293.60"
3250869,WASTE PARTS UK LTD,Transport,Director of Place,Debits Goods Received,23-Jun,"1,956.82"
3250870,AEBI SCHMIDT UK LTD,Operations and Neighbourhoods,Operations and Neighbourhoods,General Materials,30-Jun,143.77
3250870,AEBI SCHMIDT UK LTD,Transport,Director of Place,Debits Goods Received,30-Jun,"2,327.32"
3250870,DENNIS EAGLE LTD,Operations and Neighbourhoods,Operations and Neighbourhoods,General Materials,30-Jun,831.52
3250870,DENNIS EAGLE LTD,Operations and Neighbourhoods,Operations and Neighbourhoods,Sub-contractor Services,30-Jun,"11,812.05"
3250870,DENNIS EAGLE LTD,Transport,Director of Place,Debits Goods Received,30-Jun,"6,373.51"
3250870,FUCHS LUBRICANTS UK PLC,Transport,Director of Place,Debits Goods Received,30-Jun,979.13
3250870,G B OILS TA CARLTON FUELS,Transport,Director of Place,Diesel Fuel,30-Jun,"48,051.30"
3250870,HI-WAY COMPONENTS,Operations and Neighbourhoods,Operations and Neighbourhoods,General Equipment Purchase,30-Jun,"1,458.00"
3250870,HI-WAY COMPONENTS,Operations and Neighbourhoods,Operations and Neighbourhoods,General Materials,30-Jun,59.16
3250870,HI-WAY COMPONENTS,Transport,Director of Place,Debits Goods Received,30-Jun,59.48
3250870,INDUSTRIAL & HYDRAULIC SERVICES,Operations and Neighbourhoods,Operations and Neighbourhoods,Sub-contractor Services,30-Jun,884.52
3250870,INDUSTRIAL TRUCK SERVICES LTD,Operations and Neighbourhoods,Operations and Neighbourhoods,Sub-contractor Services,30-Jun,583.82
3250870,LEEDS COMMERCIAL LTD T/A LC VEHICLE HIRE,Operations and Neighbourhoods,Operations and Neighbourhoods,Additional Hire,30-Jun,675
3250870,LEEDS COMMERCIAL LTD T/A LC VEHICLE HIRE,Operations and Neighbourhoods,Operations and Neighbourhoods,Sub-contractor Services,30-Jun,999.5
3250870,MOTUS COMMERCIALS (OLDHAM),Operations and Neighbourhoods,Operations and Neighbourhoods,General Materials,30-Jun,"1,536.50"
3250870,NTM GB LTD,Operations and Neighbourhoods,Operations and Neighbourhoods,General Materials,30-Jun,559.57
3250870,PUWERTEC LIMITED,Operations and Neighbourhoods,Operations and Neighbourhoods,General Equipment Repair & Maintenance,30-Jun,900
3250870,TRUCTYRE ATS,Operations and Neighbourhoods,Operations and Neighbourhoods,Tyre Costs,30-Jun,"1,293.61"
5395802,Bullen Conservation LTD,District Assemblies,"Community,Environmental,Adult and Health Services",Engineers Works,09-Jun,"1,350.00"
5421730,CARETECH COMMUNITY SERVICES LIMITED,Adult Social Care,Adults,Residential Home Long Stay Fees,27-Apr,"4,632.60"
5438347,Football Beyond Borders,Individual Schools Budget,Children's Services,"Activity (Materials, Trips)",04-Apr,"1,000.00"
5439222,HEALTHCARE CONFERENCES UK,Governance,Governance,Training Course Costs,12-May,545.75
5440727,The Skills Network,Place,Growth,Training Course Costs,09-Jun,"2,200.00"
5441721,CMA Training,Operations and Neighbourhoods,Operations and Neighbourhoods,Professional Services,27-Apr,"1,300.00"
5441722,CMA Training,Operations and Neighbourhoods,Operations and Neighbourhoods,Professional Services,27-Apr,"1,300.00"
5441723,CMA Training,Operations and Neighbourhoods,Operations and Neighbourhoods,Professional Services,27-Apr,"1,150.00"
5442315,NEXUS MOVE LIMITED PREVIOUSLY RADIO CABS (ASHTON)LTD,Childrens Services,Children's Services,Transport Of Pupils,19-May,732.78
5443351,STOCKPORT MBC,Population Health,Population Health,Professional Services,12-Apr,"37,453.95"
5445482,Redacted Supplier,Education,Children's Services,Independent School Fees,07-Apr,"1,890.00"
5445580,PENNINE CARE NHS TRUST,Education,Children's Services,Professional Consultancy Services,04-Apr,"3,907.43"
5445835,SHOW RACISM THE RED CARD,Operations and Neighbourhoods,Operations and Neighbourhoods,Project Costs,16-Jun,"4,750.00"
5446472,Advantage Healthcare Limited,Childrens Services,Children's Services,Homecare Fees,06-Apr,"1,226.98"
5447998,Community Integrated Care,Adult Social Care,Adults,Homecare Fees,08-Apr,839.8
5448455,Redacted Supplier,(blank),(blank),Professional Entertainment Services,26-Apr,750
5448745,GALA TENT LTD,(blank),(blank),Statutory Advertising,14-Apr,"2,249.95"
5448920,LINK CARE SOLUTIONS LTD,Adult Social Care,Adults,Homecare Fees,06-Apr,802.57
5449303,INSPIREDSPACES TAMESIDE LTD,(blank),(blank),Asbestos Removal,21-Jun,"7,373.42"
5449659,TRANSPORT FOR GREATER MANCHESTER,(blank),(blank),External  Consultants,01-Apr,"2,640.00"
5449698,INSPIREDSPACES TAMESIDE LTD,(blank),(blank),Fees,12-Apr,"262,775.71"
5449726,RedFox Countryside Services,Hosted Services,Hosted Services,Sub-contractor Services,28-Apr,"7,700.00"
5450236,CARTER BROWN - THE EXPERT SERVICE LIMITED,Adult Social Care,Adults,Professional Child Services,06-Apr,"1,329.50"
5450267,Venessa Scott,(blank),(blank),Professional Entertainment Services,17-May,600
5450494,Water Plus,Place,Growth,Water (Metered and Rates),25-Apr,"2,042.01"
5450677,Orange Grove Fostercare LTD,Childrens Services,Children's Services,Foster Carer Agency Fees,27-Apr,"3,296.55"
5450914,DHL Parcel UK Ltd (UK Mail),Exchequer,Governance,Printing And Stationery,11-Apr,"9,689.66"
5450943,DHL Parcel UK Ltd (UK Mail),Education,Children's Services,Postages,07-Apr,767.06
5451201,TAMESIDE ARTS LTD,Childrens Services,Children's Services,Community Based Activities,11-Apr,886.4
5451403,CFS CARE LIMITED,Childrens Services,Children's Services,Living With Formal Support,12-May,"4,400.00"
5451423,INSPIRE COMMUNITY SERVICES LIMITED,Childrens Services,Children's Services,Living With Formal Support,26-May,"3,808.28"
5451453,Northern Community Pathways Limited,Childrens Services,Children's Services,Living With Formal Support,06-May,"3,080.00"
5451453,Northern Community Pathways Limited,Childrens Services,Children's Services,Semi independent - Weekly Living Allowances,06-May,236.8
5451555,Highfield Scheme Ltd,Adult Social Care,Adults,Homecare Fees,12-Apr,553.44
5451557,BY THE BRIDGE NORTH WEST LTD,Childrens Services,Children's Services,Foster Carer Agency Fees,01-Apr,"1,393.79"
5451568,GALA TENT LTD,(blank),(blank),Project Expenditure Home Office,14-Apr,"1,666.46"
5451605,Northern Community Pathways Limited,Childrens Services,Children's Services,Living With Formal Support,06-Jun,"2,488.57"
5451633,Redacted Supplier,Adult Social Care,Adults,Homecare Fees,01-Apr,672
5451635,SMI Group,Operations and Neighbourhoods,Operations and Neighbourhoods,Protective Clothing,01-Apr,560.3
5451638,SMT Projects,Place,Growth,Professional Services,01-Apr,"3,321.00"
5451640,Edison Media Limited,Policy and Communications,Governance,"Marketing, Publicity and Recruitment",01-Apr,900
5451642,Redacted Supplier,(blank),(blank),Professional Entertainment Services,01-Apr,600
5451644,TURNING POINT SERVICES LIMITED,Adult Social Care,Adults,Homecare Fees,01-Apr,"180,406.26"
5451653,DAISY CORPORATE SERVICES TRADING LIMITED,Digital Tameside,Finance & IT,Telephone Landline Costs,01-Apr,934.2
5451760,M.C. & M.A. STEWART HAULAGE LTD,Operations and Neighbourhoods,Operations and Neighbourhoods,General Materials,01-Apr,"1,130.00"
5451761,M.C. & M.A. STEWART HAULAGE LTD,Operations and Neighbourhoods,Operations and Neighbourhoods,General Materials,01-Apr,"1,260.00"
5451766,Fairfield Care Services,Adult Social Care,Adults,Homecare Fees,01-Apr,"2,412.80"
5451786,G2V Recruitment Group Limited t/a Vivid Resourcing,Place,Growth,Recruitment Campaign,01-Apr,"2,600.00"
5451787,G2V Recruitment Group Limited t/a Vivid Resourcing,Place,Growth,Agency Staff,01-Apr,"1,358.25"
5451788,NATIONAL FOSTERING AGENCY LTD,Childrens Services,Children's Services,Foster Carer Agency Fees,01-Apr,"2,815.12"
5451789,NATIONAL FOSTERING AGENCY LTD,Childrens Services,Children's Services,Foster Carer Agency Fees,01-Apr,"2,793.00"
5451793,NATIONAL FOSTERING AGENCY LTD,Childrens Services,Children's Services,Foster Carer Agency Fees,01-Apr,"2,906.96"
5451797,LG FUTURES LTD,Finance,Finance & IT,Subscriptions,01-Apr,"8,890.00"
5451798,NATIONAL FOSTERING AGENCY LTD,Childrens Services,Children's Services,Foster Carer Agency Fees,01-Apr,"3,200.12"
5451800,NATIONAL FOSTERING AGENCY LTD,Childrens Services,Children's Services,Foster Carer Agency Fees,01-Apr,"2,815.12"
5451802,NATIONAL FOSTERING AGENCY LTD,Childrens Services,Children's Services,Foster Carer Agency Fees,01-Apr,"3,155.60"
5451809,Redacted Supplier,Operations and Neighbourhoods,Operations and Neighbourhoods,Professional Entertainment Services,01-Apr,800
5451813,Community Integrated Care,Adult Social Care,Adults,Homecare Fees,01-Apr,"20,550.95"
5451820,Redacted Supplier,Childrens Services,Children's Services,Childrens Homes Outside Local Authority Fees,01-Apr,"11,779.60"
5451821,Intraquest CIC,Childrens Services,Children's Services,Professional Consultancy Services,01-Apr,750
5451825,Redacted Supplier,(blank),(blank),Professional Entertainment Services,16-Jun,743
5451830,SICO EUROPE LIMITED,Place,Growth,General Equipment Repair & Maintenance,01-Apr,538.1
5451833,PARALLEL PARENTS,Childrens Services,Children's Services,Foster Carer Agency Fees,01-Apr,"3,146.64"
5451835,PARALLEL PARENTS,Childrens Services,Children's Services,Foster Carer Agency Fees,01-Apr,"2,841.16"
5451839,PARALLEL PARENTS,Childrens Services,Children's Services,Foster Carer Agency Fees,01-Apr,"2,745.40"
5451841,PARALLEL PARENTS,Childrens Services,Children's Services,Foster Carer Agency Fees,01-Apr,"3,639.72"
5451843,PARALLEL PARENTS,Childrens Services,Children's Services,Foster Carer Agency Fees,01-Apr,"2,604.84"
5451845,PROFILE SECURITY SERVICES LIMITED,Operations and Neighbourhoods,Operations and Neighbourhoods,Security Services,01-Apr,"3,947.14"
5451846,PARALLEL PARENTS,Childrens Services,Children's Services,Foster Carer Agency Fees,01-Apr,"3,756.28"
5451847,PARALLEL PARENTS,Childrens Services,Children's Services,Foster Carer Agency Fees,01-Apr,"3,831.52"
5451848,PROFILE SECURITY SERVICES LIMITED,Operations and Neighbourhoods,Operations and Neighbourhoods,Security Services,01-Apr,"3,607.32"
5451849,PARALLEL PARENTS,Childrens Services,Children's Services,Foster Carer Agency Fees,01-Apr,"3,099.60"
5451851,PARALLEL PARENTS,Childrens Services,Children's Services,Foster Carer Agency Fees,01-Apr,"3,353.56"
5451853,PARALLEL PARENTS,Childrens Services,Children's Services,Foster Carer Agency Fees,01-Apr,"3,831.52"
5451854,PARALLEL PARENTS,Childrens Services,Children's Services,Foster Carer Agency Fees,01-Apr,"3,099.60"
5451855,PARALLEL PARENTS,Childrens Services,Children's Services,Foster Carer Agency Fees,01-Apr,"2,841.16"
5451856,Redacted Supplier,Childrens Services,Children's Services,Childrens Homes Outside Local Authority Fees,01-Apr,"13,500.06"
5451857,PARALLEL PARENTS,Childrens Services,Children's Services,Foster Carer Agency Fees,01-Apr,"3,457.44"
5451858,Water Plus,Place,Growth,Water (Metered and Rates),01-Apr,"1,278.02"
5451859,PARALLEL PARENTS,Childrens Services,Children's Services,Foster Carer Agency Fees,01-Apr,"3,353.56"
5451860,PARALLEL PARENTS,Childrens Services,Children's Services,Foster Carer Agency Fees,01-Apr,"3,438.96"
5451862,Northern Community Pathways Limited,Adult Social Care,Adults,Homecare Fees,01-Apr,"2,680.00"
5451864,PARALLEL PARENTS,Childrens Services,Children's Services,Foster Carer Agency Fees,01-Apr,"3,438.96"
5451869,CARETOWER LTD,Digital Tameside,Finance & IT,Computer Software,01-Apr,"17,595.00"
5451872,ALPHA PLUS FOSTERING LIMITED,Childrens Services,Children's Services,Foster Carer Agency Fees,01-Apr,"3,260.04"
5451875,Next Stage 4 Life Limited,Childrens Services,Children's Services,Childrens Homes Outside Local Authority Fees,01-Apr,"22,585.67"
5451882,SANDERSON WEATHERALL,Place,Growth,Fees,01-Apr,"1,750.00"
5451906,Redacted Supplier,(blank),(blank),Professional Entertainment Services,16-Jun,"1,990.00"
5451909,CFS CARE LIMITED,Childrens Services,Children's Services,Living With Formal Support,28-Apr,"4,800.00"
5451934,PHOENIX SOFTWARE LTD,Digital Tameside,Finance & IT,Computer Software,01-Apr,880.92
5451942,TELEFONICA O2 (UK) LTD,Digital Tameside,Finance & IT,Mobile Telephones,01-Apr,806
5451962,PROFILE SECURITY SERVICES LIMITED,Operations and Neighbourhoods,Operations and Neighbourhoods,Security Services,01-Apr,"3,594.25"
5451964,LOCAL COMMUNICATIONS LTD,Policy and Communications,Governance,"Marketing, Publicity and Recruitment",01-Apr,500
5451992,CFS CARE LIMITED,Childrens Services,Children's Services,Living With Formal Support,01-Apr,"4,107.14"
5451992,CFS CARE LIMITED,Childrens Services,Children's Services,Semi independent - Weekly Living Allowances,01-Apr,235.6
5451994,Oxford Innovation LTD - ASHTON OLD BATHS,Place,Growth,Professional Services,01-Apr,"30,779.72"
5451996,Oxford Innovation LTD - ASHTON OLD BATHS,Place,Growth,Professional Services,01-Apr,"30,856.70"
5451997,Independent Clinical Services t/a: Thornbury Nursing Services,Childrens Services,Children's Services,Professional Medical Services,01-Apr,831.5
5452003,CENTRE FOR GOVERNANCE AND SCRUTINY,Governance,Governance,Professional Services,01-Apr,"1,100.00"
5452007,CFS CARE LIMITED,Childrens Services,Children's Services,Living With Formal Support,01-Apr,"4,107.14"
5452007,CFS CARE LIMITED,Childrens Services,Children's Services,Semi independent - Weekly Living Allowances,01-Apr,235.6
5452010,CONCEPT CARE,Adult Social Care,Adults,General Materials,01-Apr,704
5452021,CFS CARE LIMITED,Childrens Services,Children's Services,Living With Formal Support,01-Apr,"4,400.00"
5452021,CFS CARE LIMITED,Childrens Services,Children's Services,Semi independent - Weekly Living Allowances,01-Apr,235.6
5452023,Compass Fostering North LTD,Childrens Services,Children's Services,Foster Carer Agency Fees,01-Apr,"3,337.15"
5452024,Compass Fostering North LTD,Childrens Services,Children's Services,Foster Carer Agency Fees,01-Apr,"3,355.13"
5452027,Compass Fostering North LTD,Childrens Services,Children's Services,Foster Carer Agency Fees,01-Apr,"3,173.78"
5452028,Compass Fostering North LTD,Childrens Services,Children's Services,Foster Carer Agency Fees,01-Apr,"3,216.56"
5452029,Compass Fostering North LTD,Childrens Services,Children's Services,Foster Carer Agency Fees,01-Apr,"3,197.34"
5452030,Compass Fostering North LTD,Childrens Services,Children's Services,Foster Carer Agency Fees,01-Apr,"3,277.01"
5452032,Compass Fostering North LTD,Childrens Services,Children's Services,Foster Carer Agency Fees,01-Apr,"3,197.34"
5452033,Compass Fostering North LTD,Childrens Services,Children's Services,Foster Carer Agency Fees,01-Apr,"3,432.94"
5452034,CFS CARE LIMITED,Childrens Services,Children's Services,Living With Formal Support,01-Apr,"4,871.43"
5452034,CFS CARE LIMITED,Childrens Services,Children's Services,Semi independent - Weekly Living Allowances,01-Apr,294.5
5452035,Compass Fostering North LTD,Childrens Services,Children's Services,Foster Carer Agency Fees,01-Apr,"3,416.32"
5452036,Compass Fostering North LTD,Childrens Services,Children's Services,Foster Carer Agency Fees,01-Apr,"3,416.32"
5452037,CFS CARE LIMITED,Childrens Services,Children's Services,Living With Formal Support,01-Apr,"2,400.00"
5452038,Compass Fostering North LTD,Childrens Services,Children's Services,Foster Carer Agency Fees,01-Apr,"3,326.25"
5452058,SWIIS FOSTER CARE LTD,Childrens Services,Children's Services,Foster Carer Agency Fees,01-Apr,"1,694.98"
5452061,SWIIS FOSTER CARE LTD,Childrens Services,Children's Services,Foster Carer Agency Fees,01-Apr,696.99
5452062,SWIIS FOSTER CARE LTD,Childrens Services,Children's Services,Foster Carer Agency Fees,01-Apr,863.03
5452065,SWIIS FOSTER CARE LTD,Childrens Services,Children's Services,Foster Carer Agency Fees,01-Apr,787.78
5452069,SWIIS FOSTER CARE LTD,Childrens Services,Children's Services,Foster Carer Agency Fees,01-Apr,760.48
5452070,Transunion Internal UK Limited,Hosted Services,Hosted Services,Professional Services,01-Apr,"16,800.00"
5452073,THE ADOLESCENT & CHILDRENS TRUST,Childrens Services,Children's Services,Foster Carer Agency Fees,01-Apr,"2,863.42"
5452074,THE ADOLESCENT & CHILDRENS TRUST,Childrens Services,Children's Services,Foster Carer Agency Fees,01-Apr,"2,736.72"
5452075,THE ADOLESCENT & CHILDRENS TRUST,Childrens Services,Children's Services,Foster Carer Agency Fees,01-Apr,"2,858.90"
5452076,ROUTES HEALTHCARE (NORTH) LIMITED,Adult Social Care,Adults,Homecare Fees,01-Apr,"6,977.14"
5452079,MHG SUPPLIES LTD,Operations and Neighbourhoods,Operations and Neighbourhoods,Printing And Stationery,01-Apr,"1,060.00"
5452081,LONICERA RESOURCES LTD,Adult Social Care,Adults,Professional Services,01-Apr,"3,391.15"
5452084,39 Essex Chambers,Adult Social Care,Adults,Legal Fees,01-Apr,"1,250.00"
5452104,Oyster Partnership,Governance,Governance,Agency Staff,01-Apr,"1,755.00"
5452105,Her Majesty's Prison and Probation Service (National Offenders Management Service),Childrens Services,Children's Services,Other Accommodation Related Costs,01-Apr,"4,095.00"
5452106,Her Majesty's Prison and Probation Service (National Offenders Management Service),Childrens Services,Children's Services,Other Accommodation Related Costs,01-Apr,"2,205.00"
5452113,Redacted Supplier,Adult Social Care,Adults,Homecare Fees,01-Apr,"1,973.12"
5452117,Rite Directions Ltd,Childrens Services,Children's Services,Living With Formal Support,01-Apr,"5,540.00"
5452118,SUTHERLAND TRADING LTD t/a LMS MUSIC SUPPLIES,Education,Children's Services,Musical Instruments,01-Apr,"1,197.00"
5452119,CLOVERLEAF ADVOCACY 2000 LTD,Adult Social Care,Adults,Professional Services,01-Apr,"12,678.84"
5452121,Beacon Counselling,People and Workforce Development,Governance,Professional Medical Services,01-Apr,"3,000.00"
5452122,THE FOSTER CARE CO-OPERATIVE LTD,Childrens Services,Children's Services,Foster Carer Agency Fees,01-Apr,"3,539.76"
5452124,HIGHLAND ORNATE LTD T/A ORNATE HEALTHCARE,Adult Social Care,Adults,Homecare Fees,09-Jun,"2,121.54"
5452125,Redacted Supplier,Childrens Services,Children's Services,Childrens Homes Outside Local Authority Fees,01-Apr,"8,421.12"
5452126,HIGHLAND ORNATE LTD T/A ORNATE HEALTHCARE,Adult Social Care,Adults,Homecare Fees,09-Jun,"2,110.39"
5452127,FOSTERING SOLUTIONS LTD,Childrens Services,Children's Services,Foster Carer Agency Fees,01-Apr,"3,144.33"
5452128,HIGHLAND ORNATE LTD T/A ORNATE HEALTHCARE,Adult Social Care,Adults,Homecare Fees,09-Jun,"2,027.14"
5452129,FOSTERING SOLUTIONS LTD,Childrens Services,Children's Services,Foster Carer Agency Fees,01-Apr,"3,399.99"
5452130,HIGHLAND ORNATE LTD T/A ORNATE HEALTHCARE,Adult Social Care,Adults,Homecare Fees,09-Jun,"2,385.11"
5452131,FOSTERING SOLUTIONS LTD,Childrens Services,Children's Services,Foster Carer Agency Fees,01-Apr,"2,924.09"
5452132,FOSTERING SOLUTIONS LTD,Childrens Services,Children's Services,Foster Carer Agency Fees,01-Apr,"2,924.09"
5452133,ZEN EDUCATE LTD,Individual Schools Budget,Children's Services,Agency Staff,01-Apr,"1,064.00"
5452134,FOSTERING SOLUTIONS LTD,Childrens Services,Children's Services,Foster Carer Agency Fees,01-Apr,"3,344.64"
5452135,FOSTERING SOLUTIONS LTD,Childrens Services,Children's Services,Foster Carer Agency Fees,01-Apr,"3,352.29"
5452136,FOSTERING SOLUTIONS LTD,Childrens Services,Children's Services,Foster Carer Agency Fees,01-Apr,"3,352.29"
5452137,FOSTERING SOLUTIONS LTD,Childrens Services,Children's Services,Foster Carer Agency Fees,01-Apr,"3,338.63"
5452139,FOSTERING SOLUTIONS LTD,Childrens Services,Children's Services,Foster Carer Agency Fees,01-Apr,"3,297.91"
5452140,FOSTERING SOLUTIONS LTD,Childrens Services,Children's Services,Foster Carer Agency Fees,01-Apr,"3,675.67"
5452141,FOSTERING SOLUTIONS LTD,Childrens Services,Children's Services,Foster Carer Agency Fees,01-Apr,"3,302.52"
5452142,FOSTERING SOLUTIONS LTD,Childrens Services,Children's Services,Foster Carer Agency Fees,01-Apr,"2,987.11"
5452143,FOSTERING SOLUTIONS LTD,Childrens Services,Children's Services,Foster Carer Agency Fees,01-Apr,"2,987.11"
5452147,Optima Health and Social Care Ltd,Childrens Services,Children's Services,Homecare Fees,01-Apr,609
5452155,Redacted Supplier,Operations and Neighbourhoods,Operations and Neighbourhoods,Professional Entertainment Services,01-Apr,740
5452180,Safe Hands Care & Support Services,Childrens Services,Children's Services,Living With Formal Support,01-Apr,"5,562.48"
5452185,Safe Hands Care & Support Services,Childrens Services,Children's Services,Living With Formal Support,01-Apr,"5,918.72"
5452188,TAMESIDE AND GLOSSOP INTEGRATED CARE NHS FOUNDATION TRUST,Hosted Services,Hosted Services,Professional Services,06-May,"2,642,996.24"
5452192,IMPROVEMENT AND DEVELOPMENT AGENCY,Policy and Communications,Governance,Professional Services,01-Apr,"2,195.00"
5452194,Lincolnshire County Council,Childrens Services,Children's Services,Hired Transport,01-Apr,"2,148.32"
5452195,Lincolnshire County Council,Education,Children's Services,Transport Of Ola Pupils,01-Apr,"1,870.50"
5452198,Orange Grove Fostercare LTD,Childrens Services,Children's Services,Foster Carer Agency Fees,01-Apr,"3,496.60"
5452199,Orange Grove Fostercare LTD,Childrens Services,Children's Services,Foster Carer Agency Fees,01-Apr,"5,474.92"
5452200,LOCAL CARE FORCE,Adult Social Care,Adults,Homecare Fees,01-Apr,"2,398.72"
5452201,Orange Grove Fostercare LTD,Childrens Services,Children's Services,Foster Carer Agency Fees,01-Apr,"3,570.84"
5452202,Orange Grove Fostercare LTD,Childrens Services,Children's Services,Foster Carer Agency Fees,01-Apr,"3,551.45"
5452203,Orange Grove Fostercare LTD,Childrens Services,Children's Services,Foster Carer Agency Fees,01-Apr,"3,497.33"
5452204,Orange Grove Fostercare LTD,Childrens Services,Children's Services,Foster Carer Agency Fees,06-Apr,"3,551.45"
5452206,SOFTCAT LIMITED,Digital Tameside,Finance & IT,IT Equipment,01-Apr,"3,619.47"
5452208,YOUNG PEOPLE FIRST LIMITED,Childrens Services,Children's Services,Living With Formal Support,01-Apr,"1,225.00"
5452222,YOUNG PEOPLE FIRST LIMITED,Childrens Services,Children's Services,Living With Formal Support,01-Apr,"2,100.00"
5452225,YOUNG PEOPLE FIRST LIMITED,Childrens Services,Children's Services,Living With Formal Support,01-Apr,"2,100.00"
5452227,OCLC (UK) LTD,Operations and Neighbourhoods,Operations and Neighbourhoods,Subscriptions,01-Apr,"2,931.17"
5452228,Amore Social Care Ltd,Childrens Services,Children's Services,Childrens Homes Outside Local Authority Fees,01-Apr,"12,793.36"
5452233,EQUIFAX LTD,Hosted Services,Hosted Services,Professional Services,01-Apr,"1,105.98"
5452239,K P DODD CONSTRUCTION LTD,Housing,Director of Place,Mandatory Adaptations Grant (DFG),01-Apr,"4,923.20"
5452244,K P DODD CONSTRUCTION LTD,Housing,Director of Place,Mandatory Adaptations Grant (DFG),01-Apr,"5,483.24"
5452251,MOSSCARE HOUSING LTD,Adult Social Care,Adults,Non-Authority Accommodation Rental,06-Apr,"30,385.90"
5452253,Compass Childrens Homes Limited,Childrens Services,Children's Services,Childrens Homes Outside Local Authority Fees,01-Apr,"18,800.04"
5452256,Sonja Evason t/a Your Space Therapy,Individual Schools Budget,Children's Services,Professional Child Services,01-Apr,"2,300.00"
5452257,BLACKWELL EDUCATION,Individual Schools Budget,Children's Services,Professional Child Services,01-Apr,"3,000.00"
5452260,Randstad Public Services Limited,Individual Schools Budget,Children's Services,Agency Staff,01-Apr,995
5452262,VISION FOR EDUCATION LIMITED,Individual Schools Budget,Children's Services,Agency Staff,01-Apr,780
5452269,HANDICARE LIMITED,Housing,Director of Place,Mandatory Adaptations Grant (DFG),01-Apr,"4,506.40"
5452276,Consulting Well Ltd,Childrens Services,Children's Services,Professional Services,07-Apr,"1,446.00"
5452284,PENNINE CARE NHS TRUST,Population Health,Population Health,Professional Services,01-Apr,"88,070.00"
5452285,PENNINE CARE NHS TRUST,Population Health,Population Health,Professional Services,01-Apr,"8,479.00"
5452287,PENNINE CARE NHS TRUST,Population Health,Population Health,Professional Services,01-Apr,"17,503.00"
5452289,INSPIREDSPACES TAMESIDE LTD,Asset & Investment Partnership Management,Growth,PFI FM Fees and Insurance Costs,29-Jun,"14,602.05"
5452304,Onward Homes,Place,Growth,Non-Authority Accommodation Rental,01-Apr,"52,304.50"
5452306,Onward Homes,Place,Growth,Non-Authority Accommodation Rental,01-Apr,"52,304.50"
5452308,Onward Homes,Place,Growth,Non-Authority Accommodation Rental,01-Apr,"52,304.50"
5452309,Holden Knight Education Ltd,Individual Schools Budget,Children's Services,Agency Staff,01-Apr,"1,125.00"
5452312,Onward Homes,Place,Growth,Non-Authority Accommodation Rental,01-Apr,"52,304.50"
5452316,CLOSOMAT LTD,Housing,Director of Place,Specialist Works,01-Apr,"1,800.00"
5452317,COMPUTEAM LTD,Individual Schools Budget,Children's Services,Computer Hardware Maintenance Costs,01-Apr,"3,603.02"
5452318,IDEA FARM LTD,Individual Schools Budget,Children's Services,Computer Hardware Maintenance Costs,01-Apr,995
5452330,Pre Paid Financial Services,Adult Social Care,Adults,Subscriptions,01-Apr,"1,031.03"
5452345,K P DODD CONSTRUCTION LTD,Housing,Director of Place,Minor Works - Building,06-Apr,500
5452354,K P DODD CONSTRUCTION LTD,Housing,Director of Place,Minor Works - Building,06-Apr,850
5452361,K P DODD CONSTRUCTION LTD,Housing,Director of Place,Minor Works - Building,06-Apr,600
5452363,MASTER QUALITY HEALTHCARE SERVICES LTD,Adult Social Care,Adults,Homecare Fees,20-Apr,"1,921.94"
5452365,MASTER QUALITY HEALTHCARE SERVICES LTD,Adult Social Care,Adults,Homecare Fees,20-Apr,"3,273.40"
5452367,MASTER QUALITY HEALTHCARE SERVICES LTD,Adult Social Care,Adults,Homecare Fees,20-Apr,"2,169.35"
5452368,K P DODD CONSTRUCTION LTD,Housing,Director of Place,Minor Works - Building,06-Apr,500
5452373,MASTER QUALITY HEALTHCARE SERVICES LTD,Adult Social Care,Adults,Homecare Fees,20-Apr,"2,770.64"
5452374,MASTER QUALITY HEALTHCARE SERVICES LTD,Adult Social Care,Adults,Homecare Fees,20-Apr,581.18
5452376,MASTER QUALITY HEALTHCARE SERVICES LTD,Adult Social Care,Adults,Homecare Fees,20-Apr,"2,114.00"
5452377,THREE CIRCLES FOSTERING LTD,Childrens Services,Children's Services,Foster Carer Agency Fees,06-Apr,"1,752.00"
5452379,MASTER QUALITY HEALTHCARE SERVICES LTD,Adult Social Care,Adults,Homecare Fees,20-Apr,581.18
5452381,MASTER QUALITY HEALTHCARE SERVICES LTD,Adult Social Care,Adults,Homecare Fees,20-Apr,"3,497.53"
5452382,MASTER QUALITY HEALTHCARE SERVICES LTD,Adult Social Care,Adults,Homecare Fees,20-Apr,581.18
5452383,MASTER QUALITY HEALTHCARE SERVICES LTD,Adult Social Care,Adults,Homecare Fees,20-Apr,"3,843.92"
5452384,THREE CIRCLES FOSTERING LTD,Childrens Services,Children's Services,Foster Carer Agency Fees,06-Apr,"5,010.00"
5452385,MASTER QUALITY HEALTHCARE SERVICES LTD,Adult Social Care,Adults,Homecare Fees,20-Apr,"2,732.29"
5452386,MASTER QUALITY HEALTHCARE SERVICES LTD,Adult Social Care,Adults,Homecare Fees,20-Apr,"1,276.56"
5452389,MASTER QUALITY HEALTHCARE SERVICES LTD,Adult Social Care,Adults,Homecare Fees,20-Apr,"1,262.57"
5452392,BTTLR LIMITED T/A Connecting Hands Healthcare Services,Childrens Services,Children's Services,Childrens Homes Outside Local Authority Fees,06-Apr,"11,300.00"
5452393,THREE CIRCLES FOSTERING LTD,Childrens Services,Children's Services,Foster Carer Agency Fees,06-Apr,"4,788.00"
5452396,THREE CIRCLES FOSTERING LTD,Childrens Services,Children's Services,Foster Carer Agency Fees,06-Apr,"3,780.00"
5452399,THREE CIRCLES FOSTERING LTD,Childrens Services,Children's Services,Foster Carer Agency Fees,06-Apr,"3,192.00"
5452400,NPOWER LIMITED,Operations and Neighbourhoods,Operations and Neighbourhoods,Electricity,06-Apr,"120,598.65"
5452402,THREE CIRCLES FOSTERING LTD,Childrens Services,Children's Services,Foster Carer Agency Fees,06-Apr,"3,704.40"
5452403,NPOWER LIMITED,Operations and Neighbourhoods,Operations and Neighbourhoods,Electricity,06-Apr,"109,607.35"
5452404,THREE CIRCLES FOSTERING LTD,Childrens Services,Children's Services,Foster Carer Agency Fees,06-Apr,"3,128.16"
5452405,NPOWER LIMITED,Operations and Neighbourhoods,Operations and Neighbourhoods,Electricity,06-Apr,"90,169.32"
5452408,THREE CIRCLES FOSTERING LTD,Childrens Services,Children's Services,Foster Carer Agency Fees,06-Apr,"3,607.20"
5452410,THREE CIRCLES FOSTERING LTD,Childrens Services,Children's Services,Foster Carer Agency Fees,06-Apr,"3,192.00"
5452413,THREE CIRCLES FOSTERING LTD,Childrens Services,Children's Services,Foster Carer Agency Fees,06-Apr,"3,780.00"
5452414,THREE CIRCLES FOSTERING LTD,Childrens Services,Children's Services,Foster Carer Agency Fees,06-Apr,"3,075.64"
5452417,THREE CIRCLES FOSTERING LTD,Childrens Services,Children's Services,Foster Carer Agency Fees,06-Apr,"3,534.80"
5452419,THREE CIRCLES FOSTERING LTD,Childrens Services,Children's Services,Foster Carer Agency Fees,06-Apr,"3,519.20"
5452423,SAFEHOUSES NORTH LIMITED,Childrens Services,Children's Services,Foster Carer Agency Fees,06-Apr,"3,571.86"
5452424,SAFEHOUSES NORTH LIMITED,Childrens Services,Children's Services,Foster Carer Agency Fees,06-Apr,"3,593.08"
5452430,THREE CIRCLES FOSTERING LTD,Childrens Services,Children's Services,Foster Carer Agency Fees,06-Apr,"3,520.68"
5452431,FAMILY CARE FOSTERING LTD,Childrens Services,Children's Services,Foster Carer Agency Fees,01-Apr,"3,412.25"
5452432,FAMILY CARE FOSTERING LTD,Childrens Services,Children's Services,Foster Carer Agency Fees,01-Apr,"3,024.00"
5452433,UK CONTAINER MAINTENANCE LTD,Operations and Neighbourhoods,Operations and Neighbourhoods,Purchase Wheeled Bins,06-Apr,"2,751.00"
5452434,UK CONTAINER MAINTENANCE LTD,Operations and Neighbourhoods,Operations and Neighbourhoods,Purchase Wheeled Bins,06-Apr,630
5452439,SURECARE TAMESIDE & OLDHAM,Adult Social Care,Adults,Homecare Fees,06-Apr,"4,607.76"
5452440,PRO VENTURE CONSULTING,Childrens Services,Children's Services,Professional Services,06-Apr,900
5452443,HC Assessment Ltd,Adult Social Care,Adults,Professional Services,07-Apr,"1,615.05"
5452446,Bloom Procurement Services Limited,Tameside Investment Partnership,Director of Place,Consultancies,23-May,"4,767.00"
5452447,Redacted Supplier,Education,Children's Services,Independent School Fees,06-Apr,"1,260.00"
5452449,Redacted Supplier,Operations and Neighbourhoods,Operations and Neighbourhoods,Professional Entertainment Services,06-Apr,"1,760.00"
5452451,THREE CIRCLES FOSTERING LTD,Childrens Services,Children's Services,Foster Carer Agency Fees,06-Apr,"3,426.84"
5452453,THREE CIRCLES FOSTERING LTD,Childrens Services,Children's Services,Foster Carer Agency Fees,06-Apr,"3,607.20"
5452454,THREE CIRCLES FOSTERING LTD,Childrens Services,Children's Services,Foster Carer Agency Fees,06-Apr,"3,607.20"
5452457,THREE CIRCLES FOSTERING LTD,Childrens Services,Children's Services,Foster Carer Agency Fees,06-Apr,"3,519.20"
5452458,UK FOSTERING LTD,Childrens Services,Children's Services,Foster Carer Agency Fees,06-Apr,"2,997.12"
5452459,UK FOSTERING LTD,Childrens Services,Children's Services,Foster Carer Agency Fees,06-Apr,"2,904.44"
5452467,SafeNet Domestic Abuse Services Ltd,Childrens Services,Children's Services,Living With Formal Support,06-Apr,"1,871.91"
5452468,Bright Opportunities,Adult Social Care,Adults,Homecare Fees,06-Apr,"1,340.00"
5452475,Bright Opportunities,Adult Social Care,Adults,Homecare Fees,06-Apr,"1,640.00"
5452477,NCER CIC,Education,Children's Services,Subscriptions,06-Apr,"8,926.10"
5452480,PHOENIX SOFTWARE LTD,Digital Tameside,Finance & IT,Computer Software,06-Apr,835.8
5452481,UNITED UTILITIES,Place,Growth,Water (Metered and Rates),06-Apr,972.59
5452482,DOMAIN CARE NORTH WEST LTD,Adult Social Care,Adults,Homecare Fees,06-Apr,"1,256.68"
5452486,Global Make-Up Academy Ltd,Education,Children's Services,Post 16 FE College Fees,06-Apr,"7,700.00"
5452490,MOSSCARE HOUSING LTD,Childrens Services,Children's Services,Living With Formal Support,06-Apr,696.8
5452492,MOSSCARE HOUSING LTD,Childrens Services,Children's Services,Living With Formal Support,06-Apr,725.44
5452517,Redacted Supplier,Education,Children's Services,Other Local Authorities Fees,07-Apr,"2,905.83"
5452546,Eurovia infrastructure Ltd,District Assemblies,"Community,Environmental,Adult and Health Services",Engineers -External,08-Apr,"14,739.25"
5452578,Exclusec Security Solutions Ltd,Operations and Neighbourhoods,Operations and Neighbourhoods,Security Services,07-Apr,836.5
5452580,TELEFONICA O2 (UK) LTD,Digital Tameside,Finance & IT,Mobile Telephones,07-Apr,"4,080.00"
5452582,WHITEFERN LTD,Operations and Neighbourhoods,Operations and Neighbourhoods,"Fixtures,Fittings & Furniture Purchase (Service Users)",07-Apr,855
5452583,WHITEFERN LTD,Operations and Neighbourhoods,Operations and Neighbourhoods,"Fixtures,Fittings & Furniture Purchase (Service Users)",07-Apr,"2,030.80"
5452584,WHITEFERN LTD,Operations and Neighbourhoods,Operations and Neighbourhoods,"Fixtures,Fittings & Furniture Purchase (Service Users)",07-Apr,"1,184.30"
5452592,Three Angels Healthcare,Adult Social Care,Adults,Homecare Fees,07-Apr,"1,761.50"
5452594,Three Angels Healthcare,Adult Social Care,Adults,Homecare Fees,07-Apr,"1,761.50"
5452596,Three Angels Healthcare,Adult Social Care,Adults,Homecare Fees,07-Apr,"1,761.50"
5452598,Three Angels Healthcare,Adult Social Care,Adults,Homecare Fees,07-Apr,"1,761.50"
5452600,Three Angels Healthcare,Adult Social Care,Adults,Homecare Fees,07-Apr,"1,761.50"
5452610,Exclusec Security Solutions Ltd,Operations and Neighbourhoods,Operations and Neighbourhoods,Security Services,07-Apr,"18,816.00"
5452611,Exclusec Security Solutions Ltd,Operations and Neighbourhoods,Operations and Neighbourhoods,Contributions,07-Apr,"3,500.00"
5452621,Redacted Supplier,Education,Children's Services,Independent School Fees,07-Apr,"3,485.00"
5452625,iCare Solutions,Adult Social Care,Adults,Homecare Fees,07-Apr,"13,005.04"
5452639,ALPHA BIOLABS,Childrens Services,Children's Services,Professional Medical Services,07-Apr,"1,215.00"
5452640,Next Stage 'A Way Forward' Youth Development LTD,Childrens Services,Children's Services,Living With Formal Support,07-Apr,"4,340.00"
5452642,Next Stage 'A Way Forward' Youth Development LTD,Childrens Services,Children's Services,Living With Formal Support,08-Apr,930
5452647,INSPIREDSPACES TAMESIDE LTD,(blank),(blank),Fees,06-Apr,"36,929.33"
5452653,The Veterans Food Co,Operations and Neighbourhoods,Operations and Neighbourhoods,Food & Refreshments,07-Apr,585
5452657,SEASHELL TRUST,Childrens Services,Children's Services,Residential Home Short Stay Fees,07-Apr,"2,805.00"
5452659,Disabled Living (Training & Exhibitions) Ltd,Childrens Services,Children's Services,Professional Statistical Services,07-Apr,578
5452663,INSPIREDSPACES TAMESIDE LTD,(blank),(blank),Building Maintenance,08-Apr,"1,729.87"
5452672,INSPIREDSPACES TAMESIDE LTD,Tameside Investment Partnership,Director of Place,Other Works,25-May,415.39
5452672,INSPIREDSPACES TAMESIDE LTD,(blank),(blank),Fees,25-May,75.77
5452672,INSPIREDSPACES TAMESIDE LTD,(blank),(blank),Other Works,25-May,"3,372.40"
5452674,CARETECH COMMUNITY SERVICES LIMITED,Adult Social Care,Adults,Residential Home Long Stay Fees,07-Apr,"3,227.10"
5452676,BARNARDO SERVICES LIMITED,Childrens Services,Children's Services,Professional Services,11-Apr,"18,555.83"
5452679,Wraparound Partnership,Hosted Services,Hosted Services,Professional Services,07-Apr,600
5452681,KILLGERM CHEMICALS LTD,Operations and Neighbourhoods,Operations and Neighbourhoods,Pest Control Equipment,07-Apr,540
5452684,NATIONAL FOSTERING AGENCY LTD,Childrens Services,Children's Services,Foster Carer Agency Fees,29-Apr,"3,493.70"
5452685,NATIONAL FOSTERING AGENCY LTD,Childrens Services,Children's Services,Foster Carer Agency Fees,29-Apr,"3,092.25"
5452686,NATIONAL FOSTERING AGENCY LTD,Childrens Services,Children's Services,Foster Carer Agency Fees,29-Apr,"3,116.74"
5452687,NATIONAL FOSTERING AGENCY LTD,Childrens Services,Children's Services,Foster Carer Agency Fees,29-Apr,"3,542.99"
5452688,NATIONAL FOSTERING AGENCY LTD,Childrens Services,Children's Services,Foster Carer Agency Fees,29-Apr,"3,116.74"
5452689,NATIONAL FOSTERING AGENCY LTD,Childrens Services,Children's Services,Foster Carer Agency Fees,29-Apr,"3,218.42"
5452691,ALPHA PLUS FOSTERING LIMITED,Childrens Services,Children's Services,Foster Carer Agency Fees,29-Apr,"3,609.33"
5452701,Brook,Population Health,Population Health,Professional Services,07-Apr,623.8
5452702,SWIIS FOSTER CARE LTD,Childrens Services,Children's Services,Foster Carer Agency Fees,08-Apr,"1,694.98"
5452703,SWIIS FOSTER CARE LTD,Childrens Services,Children's Services,Foster Carer Agency Fees,08-Apr,696.99
5452704,SWIIS FOSTER CARE LTD,Childrens Services,Children's Services,Foster Carer Agency Fees,08-Apr,760.48
5452705,SWIIS FOSTER CARE LTD,Childrens Services,Children's Services,Foster Carer Agency Fees,08-Apr,863.03
5452706,SWIIS FOSTER CARE LTD,Childrens Services,Children's Services,Foster Carer Agency Fees,08-Apr,787.78
5452708,MOTT MACDONALD LIMITED,(blank),(blank),External  Consultants,08-Apr,"8,000.00"
5452716,Avoira Ltd,Digital Tameside,Finance & IT,Telephone Landline Costs,08-Apr,"5,286.62"
5452718,ERSA UK LTD,Place,Growth,Professional Entertainment Services,08-Apr,600
5452734,DSG Retail Limited t/as Currys PC WORLD BUSINESS,Operations and Neighbourhoods,Operations and Neighbourhoods,Computer Equipment,08-Apr,"1,010.00"
5452742,Redacted Supplier,Childrens Services,Children's Services,Professional Consultancy Services,08-Apr,"2,418.50"
5452748,Space Solutions Limited,(blank),(blank),New Accommodation Works,08-Apr,"2,720.00"
5452749,Stepping Stone Projects,Childrens Services,Children's Services,Living With Formal Support,08-Apr,703.92
5452750,Stepping Stone Projects,Childrens Services,Children's Services,Living With Formal Support,08-Apr,"2,190.00"
5452751,N-Compass Northwest,Adult Social Care,Adults,Professional Services,08-Apr,"14,773.75"
5452752,Stepping Stone Projects,Childrens Services,Children's Services,Living With Formal Support,08-Apr,"2,190.00"
5452753,FOSTER CARE ASSOCIATES LTD (FCA),Childrens Services,Children's Services,Foster Carer Agency Fees,08-Apr,"3,914.99"
5452754,FOSTER CARE ASSOCIATES LTD (FCA),Childrens Services,Children's Services,Foster Carer Agency Fees,08-Apr,"5,847.84"
5452759,FOSTER CARE ASSOCIATES LTD (FCA),Childrens Services,Children's Services,Foster Carer Agency Fees,08-Apr,"3,690.55"
5452761,FOSTERING PEOPLE LTD,Childrens Services,Children's Services,Foster Carer Agency Fees,08-Apr,"3,331.82"
5452762,FOSTER CARE ASSOCIATES LTD (FCA),Childrens Services,Children's Services,Foster Carer Agency Fees,08-Apr,"3,914.99"
5452763,FOSTER CARE ASSOCIATES LTD (FCA),Childrens Services,Children's Services,Foster Carer Agency Fees,08-Apr,"3,914.99"
5452768,FOSTER CARE ASSOCIATES LTD (FCA),Childrens Services,Children's Services,Foster Carer Agency Fees,08-Apr,"3,914.99"
5452769,Origin Amenity Solutions Ltd,Operations and Neighbourhoods,Operations and Neighbourhoods,Professional Weedspraying Services,08-Apr,"3,360.00"
5452770,FOSTER CARE ASSOCIATES LTD (FCA),Childrens Services,Children's Services,Foster Carer Agency Fees,08-Apr,"3,739.56"
5452773,REACTEC LIMITED,Operations and Neighbourhoods,Operations and Neighbourhoods,Subscriptions,08-Apr,"2,016.00"
5452774,FOSTER CARE ASSOCIATES LTD (FCA),Childrens Services,Children's Services,Foster Carer Agency Fees,08-Apr,"3,243.92"
5452776,FOSTER CARE ASSOCIATES LTD (FCA),Childrens Services,Children's Services,Foster Carer Agency Fees,08-Apr,"4,029.69"
5452777,FOSTER CARE ASSOCIATES LTD (FCA),Childrens Services,Children's Services,Foster Carer Agency Fees,08-Apr,"3,237.02"
5452778,Redacted Supplier,People and Workforce Development,Governance,Legal Fees,08-Apr,627
5452779,Redacted Supplier,People and Workforce Development,Governance,Legal Fees,08-Apr,858
5452781,Oyster Partnership,Governance,Governance,Agency Staff,08-Apr,570
5452784,Redacted Supplier,Education,Children's Services,Other Local Authorities Fees,08-Apr,"2,196.00"
5452790,G2V Recruitment Group Limited t/a Vivid Resourcing,Place,Growth,Agency Staff,08-Apr,"1,086.60"
5452791,G2V Recruitment Group Limited t/a Vivid Resourcing,Place,Growth,Recruitment Campaign,08-Apr,"2,600.00"
5452801,INSPIREDSPACES TAMESIDE LTD,Asset & Investment Partnership Management,Growth,PFI FM Fees and Insurance Costs,13-Jun,"10,771.81"
5452805,WELL PHARMACY,Population Health,Population Health,Local Enhanced Services,08-Apr,673.79
5452806,WELL PHARMACY,Population Health,Population Health,Local Enhanced Services,08-Apr,662.6
5452809,INSPIREDSPACES TAMESIDE LTD,Asset & Investment Partnership Management,Growth,PFI FM Fees and Insurance Costs,26-May,"1,205.59"
5452810,WELL PHARMACY,Population Health,Population Health,Local Enhanced Services,08-Apr,"1,211.90"
5452811,INSPIREDSPACES TAMESIDE LTD,Asset & Investment Partnership Management,Growth,PFI FM Fees and Insurance Costs,13-May,"4,583.54"
5452813,INSPIREDSPACES TAMESIDE LTD,Asset & Investment Partnership Management,Growth,PFI FM Fees and Insurance Costs,26-May,"4,532.00"
5452829,LEGGETT PSYCHOLOGY LTD,Education,Children's Services,Professional Services,08-Apr,"1,100.00"
5452830,JENOPTIK UK LIMITED,Operations and Neighbourhoods,Operations and Neighbourhoods,Fees,08-Apr,"2,716.00"
5452838,Constellia Public Ltd,Place,Growth,Professional Consultancy Services,08-Apr,"7,280.00"
5452839,Football Beyond Borders,Individual Schools Budget,Children's Services,"Activity (Materials, Trips)",08-Apr,"1,000.00"
5452840,Holden Knight Education Ltd,Individual Schools Budget,Children's Services,Agency Staff,08-Apr,"1,125.00"
5452842,ZEN EDUCATE LTD,Individual Schools Budget,Children's Services,Agency Staff,08-Apr,"1,050.00"
5452843,VISION FOR EDUCATION LIMITED,Education,Children's Services,Professional Services,08-Apr,"1,330.00"
5452845,CAPITA BUSINESS SERVICES LIMITED,Exchequer,Governance,Computer Software Maintenance Costs,08-Apr,"36,079.39"
5452847,LIBERTY SUPPORT SERVICES LTD,Adult Social Care,Adults,Homecare Fees,06-Apr,"19,030.59"
5452849,CROMWELL POLYTHENE LTD.,Operations and Neighbourhoods,Operations and Neighbourhoods,Purchase Plastic Sacks,08-Apr,"8,284.50"
5452881,APT SKIDATA LTD,Operations and Neighbourhoods,Operations and Neighbourhoods,Miscellaneous Expenses,08-Apr,"5,925.31"
5452883,Randstad Public Services Limited,Education,Children's Services,Professional Services,08-Apr,590
5452886,POSITIVE STEPS OLDHAM,Place,Growth,Professional Services,08-Apr,"38,219.18"
5452887,Randstad Public Services Limited,Education,Children's Services,Professional Services,08-Apr,590
5452891,Consulting Well Ltd,Childrens Services,Children's Services,Professional Services,08-Apr,"1,341.00"
5452895,Brooks and Brooks Recruitment Ltd,Childrens Services,Children's Services,Professional Medical Services,08-Apr,"1,568.00"
5452896,Brooks and Brooks Recruitment Ltd,Childrens Services,Children's Services,Professional Medical Services,08-Apr,"4,992.00"
5452898,JETMASTERS LTD,Operations and Neighbourhoods,Operations and Neighbourhoods,Training Course Costs,08-Apr,945
5452903,ACTION TOGETHER CIO,Operations and Neighbourhoods,Operations and Neighbourhoods,Project Costs,08-Apr,"10,500.00"
5452911,K P DODD CONSTRUCTION LTD,Housing,Director of Place,Mandatory Adaptations Grant (DFG),08-Apr,"11,715.64"
5452912,CHILD ACTION NORTHWEST,Adult Social Care,Adults,Professional Services,08-Apr,"1,060.81"
5452913,CHILD ACTION NORTHWEST,Childrens Services,Children's Services,Professional Services,08-Apr,"1,366.71"
5452917,ACCENT HOUSING LTD,Housing,Director of Place,Mandatory Adaptations Grant (DFG),08-Apr,"2,994.68"
5452918,Redacted Supplier,Housing,Director of Place,Mandatory Adaptations Grant (DFG),11-Apr,"17,280.00"
5452919,Sandcastle Care LTD,Childrens Services,Children's Services,Childrens Homes Outside Local Authority Fees,08-Apr,"26,549.29"
5452922,Sandcastle Care LTD,Childrens Services,Children's Services,Childrens Homes Outside Local Authority Fees,08-Apr,"26,549.29"
5452924,Sandcastle Care LTD,Childrens Services,Children's Services,Childrens Homes Outside Local Authority Fees,08-Apr,"18,821.43"
5452925,Sandcastle Care LTD,Childrens Services,Children's Services,Childrens Homes Outside Local Authority Fees,08-Apr,"26,549.29"
5452926,ULVERSCROFT LARGE PRINT  BOOKS LTD,Operations and Neighbourhoods,Operations and Neighbourhoods,Purchase Books,08-Apr,"1,412.61"
5452930,PME Walsingham Ltd t/a Pilgrim Shop and Pilgrim Gifts,Operations and Neighbourhoods,Operations and Neighbourhoods,General Materials,08-Apr,748.34
5452938,WESSEX LIFT CO. LIMITED,Housing,Director of Place,Mandatory Adaptations Grant (DFG),08-Apr,"9,845.00"
5452939,ANIMAL WARDENS LTD,Operations and Neighbourhoods,Operations and Neighbourhoods,Professional Consultancy Services,08-Apr,750
5452952,THE TOGETHER CENTRE - LOXLEY HOUSE CIO,Adult Social Care,Adults,Voluntary Organisations Fees,08-Apr,"3,882.00"
5452953,The JJeffect CIC,Operations and Neighbourhoods,Operations and Neighbourhoods,Project Costs,08-Apr,"4,375.00"
5452954,CAPITA BUSINESS SERVICES LIMITED,Education,Children's Services,Computer Software Maintenance Costs,08-Apr,"146,026.25"
5452957,MAJESTIC PUBLICATIONS LTD,Policy and Communications,Governance,"Marketing, Publicity and Recruitment",08-Apr,545
5452964,Mazars LLP,Finance,Finance & IT,Fees,08-Apr,"20,215.00"
5453026,LIQUIDLOGIC LTD,People and Workforce Development,Governance,Computer Software,08-Apr,"38,732.00"
5453028,Stepping Stone Projects,Childrens Services,Children's Services,Living With Formal Support,08-Apr,"1,497.00"
5453030,Stepping Stone Projects,Childrens Services,Children's Services,Living With Formal Support,08-Apr,"1,590.00"
5453031,CAPITA BUSINESS SERVICES LIMITED,Digital Tameside,Finance & IT,Computer Software,08-Apr,"6,017.10"
5453031,CAPITA BUSINESS SERVICES LIMITED,Exchequer,Governance,Computer Software Maintenance Costs,08-Apr,"91,257.78"
5453032,Stepping Stone Projects,Childrens Services,Children's Services,Living With Formal Support,08-Apr,998
5453033,Stepping Stone Projects,Childrens Services,Children's Services,Living With Formal Support,08-Apr,"1,830.00"
5453034,Stepping Stone Projects,Childrens Services,Children's Services,"Childrens Allowances (Weekly,Xmas,Festive,Clothing)",13-Apr,614
5453035,Stepping Stone Projects,Childrens Services,Children's Services,Living With Formal Support,08-Apr,"2,360.00"
5453036,Stepping Stone Projects,Childrens Services,Children's Services,Living With Formal Support,08-Apr,"2,612.87"
5453038,Supporting Futures LTD,Childrens Services,Children's Services,Childrens Homes Outside Local Authority Fees,08-Apr,"22,014.88"
5453039,OFFERTON SAND & GRAVEL LIMITED,Operations and Neighbourhoods,Operations and Neighbourhoods,General Materials,08-Apr,"1,673.15"
5453040,OFFERTON SAND & GRAVEL LIMITED,Operations and Neighbourhoods,Operations and Neighbourhoods,General Materials,08-Apr,"1,430.15"
5453045,DSG Retail Limited t/as Currys PC WORLD BUSINESS,Operations and Neighbourhoods,Operations and Neighbourhoods,Computer Equipment,12-Apr,"1,868.34"
5453051,Medgen Limited,Childrens Services,Children's Services,Homecare Fees,08-Apr,547.35
5453052,YOUNG PEOPLE FIRST LIMITED,Childrens Services,Children's Services,Living With Formal Support,12-Apr,"2,100.00"
5453054,YOUNG PEOPLE FIRST LIMITED,Childrens Services,Children's Services,Living With Formal Support,12-Apr,"2,100.00"
5453056,YOUNG PEOPLE FIRST LIMITED,Childrens Services,Children's Services,Living With Formal Support,12-Apr,"1,225.00"
5453058,Foundations Plus,Adult Social Care,Adults,Residential Home Long Stay Fees,12-Apr,"4,985.00"
5453059,Foundations Plus,Adult Social Care,Adults,Residential Home Long Stay Fees,12-Apr,"3,480.00"
5453060,LOCAL CARE FORCE,Adult Social Care,Adults,Homecare Fees,08-Apr,"2,541.60"
5453061,Amore Social Care Ltd,Childrens Services,Children's Services,Childrens Homes Outside Local Authority Fees,08-Apr,"12,793.36"
5453062,Plastics Direct Ltd,Contingency,Contingency,"Fixtures, Fittings & Furniture Purchase",08-Apr,"2,083.02"
5453063,BTTLR LIMITED T/A Connecting Hands Healthcare Services,Childrens Services,Children's Services,Childrens Homes Outside Local Authority Fees,08-Apr,"11,300.00"
5453064,ACORN CARE & EDUCATION LTD (SALES),Adult Social Care,Adults,Homecare Fees,20-Apr,"19,153.57"
5453065,ACORN CARE & EDUCATION LTD (SALES),Adult Social Care,Adults,Homecare Fees,08-Apr,"20,681.43"
5453071,AMARA CARE LTD,Adult Social Care,Adults,Homecare Fees,08-Apr,"9,480.80"
5453072,AMARA CARE LTD,Adult Social Care,Adults,Homecare Fees,08-Apr,"7,690.76"
5453077,STOCKPORT CP  SOCIETY,Adult Social Care,Adults,Homecare Fees,08-Apr,"1,206.08"
5453079,MANCHESTER METROPOLITAN UNIVERSITY,People and Workforce Development,Governance,Training Course Costs,08-Apr,800
5453092,M NELSON & SON,Multiple Heads of Service,Multiple Strategic Directorates,CIS Labour Credits,08-Apr,"-2,700.00"
5453092,M NELSON & SON,Multiple Heads of Service,Multiple Strategic Directorates,CIS Labour Debits,08-Apr,"2,700.00"
5453092,M NELSON & SON,Operations and Neighbourhoods,Operations and Neighbourhoods,Engineers -External,08-Apr,"2,700.00"
5453092,M NELSON & SON,Operations and Neighbourhoods,Operations and Neighbourhoods,Specialist Works,08-Apr,500
5453098,MUSEUMS ASSOCIATION,Operations and Neighbourhoods,Operations and Neighbourhoods,Subscriptions,08-Apr,638.12
5453101,CREATIVE SUPPORT LTD,Adult Social Care,Adults,Homecare Fees,08-Apr,"11,894.16"
5453102,CAPITA BUSINESS SERVICES LIMITED,Operations and Neighbourhoods,Operations and Neighbourhoods,IT Equipment,08-Apr,"10,800.00"
5453104,CLARENDON MEDICAL PRACTICE,Population Health,Population Health,Local Enhanced Services,08-Apr,608
5453108,TUDOR (UK) LTD T/A TUDOR ENVIRONMENTAL,Operations and Neighbourhoods,Operations and Neighbourhoods,Protective Clothing,08-Apr,949.53
5453112,STOCKPORT CP  SOCIETY,Adult Social Care,Adults,Homecare Fees,13-Apr,"1,863.00"
5453137,Redacted Supplier,Operations and Neighbourhoods,Operations and Neighbourhoods,Professional Entertainment Services,13-Apr,700
5453138,Redacted Supplier,(blank),(blank),Professional Entertainment Services,14-Apr,"2,000.00"
5453140,Northern Community Pathways Limited,Adult Social Care,Adults,Homecare Fees,13-Apr,"2,196.00"
5453141,Northern Community Pathways Limited,Adult Social Care,Adults,Homecare Fees,13-Apr,"2,196.00"
5453142,Northern Community Pathways Limited,Adult Social Care,Adults,Homecare Fees,13-Apr,"6,588.00"
5453145,Northern Community Pathways Limited,Adult Social Care,Adults,Homecare Fees,13-Apr,"2,196.00"
5453148,Northern Community Pathways Limited,Adult Social Care,Adults,Homecare Fees,13-Apr,"2,196.00"
5453170,ASKEWS  AND HOLTS LIBRARY SERVICES LTD,Operations and Neighbourhoods,Operations and Neighbourhoods,Purchase Books,13-Apr,"1,953.08"
5453174,MARTHALL TREE PRODUCTS LTD,Operations and Neighbourhoods,Operations and Neighbourhoods,General Materials,13-Apr,"1,803.61"
5453176,BTTLR LIMITED T/A Connecting Hands Healthcare Services,Childrens Services,Children's Services,Childrens Homes Outside Local Authority Fees,13-Apr,"11,300.00"
5453178,TRANSOFT SOLUTIONS (UK) LTD,Operations and Neighbourhoods,Operations and Neighbourhoods,Licences,13-Apr,"3,360.00"
5453179,Zeno Ltd,Adult Social Care,Adults,Homecare Fees,13-Apr,"10,256.66"
5453189,Origin Amenity Solutions Ltd,Operations and Neighbourhoods,Operations and Neighbourhoods,Professional Weedspraying Services,13-Apr,"4,992.00"
5453190,ROUTES HEALTHCARE (NORTH) LIMITED,Adult Social Care,Adults,Homecare Fees,13-Apr,"7,408.40"
5453195,COOLSPIRIT LTD,Digital Tameside,Finance & IT,Computer Hardware Purchase,13-Apr,"11,257.97"
5453203,Redacted Supplier,(blank),(blank),"Marketing, Publicity and Recruitment",13-Apr,"5,800.00"
5453205,LEXISNEXIS UK,Governance,Governance,Text Books Periodicals and Newspapers,13-Apr,502
5453212,INSPIREDSPACES TAMESIDE (PROJECTCO2) LTD,Asset & Investment Partnership Management,Growth,PFI FM Fees and Insurance Costs,04-Apr,"40,462.68"
5453215,INSPIREDSPACES TAMESIDE (PROJECTCO2) LTD,Asset & Investment Partnership Management,Growth,PFI FM Fees and Insurance Costs,04-Apr,"4,498.49"
5453216,INSPIREDSPACES TAMESIDE (PROJECTCO2) LTD,Asset & Investment Partnership Management,Growth,PFI FM Fees and Insurance Costs,04-Apr,"1,239.50"
5453217,MHR International UK Limited,People and Workforce Development,Governance,Computer Software,13-Apr,"3,007.37"
5453220,INSPIREDSPACES TAMESIDE (PROJECTCO2) LTD,Asset & Investment Partnership Management,Growth,PFI FM Fees and Insurance Costs,04-Apr,"26,167.48"
5453220,INSPIREDSPACES TAMESIDE (PROJECTCO2) LTD,Place,Growth,PFI FM Fees and Insurance Costs,04-Apr,"13,848.93"
5453222,Capita ESS Limited,Individual Schools Budget,Children's Services,Subscriptions,13-Apr,500
5453229,iCare Solutions,Adult Social Care,Adults,Homecare Fees,13-Apr,"12,913.46"
5453237,BOOTS UK LTD,Population Health,Population Health,Local Enhanced Services,13-Apr,808.3
5453252,NAGELS (UK) LTD,Operations and Neighbourhoods,Operations and Neighbourhoods,Car Park Equipment,13-Apr,630
5453254,KALEIDOSCOPE CARE (NORTHERN) LIMITED,Childrens Services,Children's Services,Mother and Baby Assessment Placements,13-Apr,"1,542.85"
5453303,Frolicked t/a Rebeka Haigh,Operations and Neighbourhoods,Operations and Neighbourhoods,Professional Entertainment Services,14-Apr,850
5453304,Access UK Ltd,Education,Children's Services,Training Course Costs,12-Apr,950
5453305,PARALLEL PARENTS,Childrens Services,Children's Services,Foster Carer Agency Fees,14-Apr,"4,242.04"
5453306,PARALLEL PARENTS,Childrens Services,Children's Services,Foster Carer Agency Fees,14-Apr,"3,712.87"
5453307,PARALLEL PARENTS,Childrens Services,Children's Services,Foster Carer Agency Fees,14-Apr,"3,431.70"
5453308,PARALLEL PARENTS,Childrens Services,Children's Services,Foster Carer Agency Fees,14-Apr,"4,242.04"
5453309,PARALLEL PARENTS,Childrens Services,Children's Services,Foster Carer Agency Fees,14-Apr,"4,242.04"
5453310,PARALLEL PARENTS,Childrens Services,Children's Services,Foster Carer Agency Fees,14-Apr,"4,029.69"
5453311,PARALLEL PARENTS,Childrens Services,Children's Services,Foster Carer Agency Fees,14-Apr,"3,712.87"
5453312,PARALLEL PARENTS,Childrens Services,Children's Services,Foster Carer Agency Fees,14-Apr,"3,807.42"
5453313,PARALLEL PARENTS,Childrens Services,Children's Services,Foster Carer Agency Fees,14-Apr,"3,807.42"
5453315,PARALLEL PARENTS,Childrens Services,Children's Services,Foster Carer Agency Fees,14-Apr,"3,145.57"
5453316,PARALLEL PARENTS,Childrens Services,Children's Services,Foster Carer Agency Fees,14-Apr,"3,827.88"
5453317,PARALLEL PARENTS,Childrens Services,Children's Services,Foster Carer Agency Fees,14-Apr,"3,145.57"
5453318,PARALLEL PARENTS,Childrens Services,Children's Services,Foster Carer Agency Fees,14-Apr,"3,431.70"
5453319,PARALLEL PARENTS,Childrens Services,Children's Services,Foster Carer Agency Fees,14-Apr,"3,483.78"
5453320,PARALLEL PARENTS,Childrens Services,Children's Services,Foster Carer Agency Fees,14-Apr,"2,883.93"
5453321,PARALLEL PARENTS,Childrens Services,Children's Services,Foster Carer Agency Fees,14-Apr,"3,039.55"
5453322,CITY LIFT SERVICES (NW) LTD,Adult Social Care,Adults,General Equipment Repair & Maintenance,14-Apr,"1,240.00"
5453323,PARALLEL PARENTS,Childrens Services,Children's Services,Foster Carer Agency Fees,14-Apr,"1,231.47"
5453324,PARALLEL PARENTS,Childrens Services,Children's Services,Foster Carer Agency Fees,14-Apr,"4,242.04"
5453325,CITY LIFT SERVICES (NW) LTD,Adult Social Care,Adults,General Equipment Repair & Maintenance,14-Apr,"1,495.00"
5453326,PARALLEL PARENTS,Childrens Services,Children's Services,Foster Carer Agency Fees,14-Apr,"3,712.87"
5453329,PARALLEL PARENTS,Childrens Services,Children's Services,Foster Carer Agency Fees,14-Apr,"3,431.70"
5453330,PARALLEL PARENTS,Childrens Services,Children's Services,Foster Carer Agency Fees,14-Apr,"4,242.04"
5453331,PARALLEL PARENTS,Childrens Services,Children's Services,Foster Carer Agency Fees,14-Apr,"4,242.04"
5453332,PARALLEL PARENTS,Childrens Services,Children's Services,Foster Carer Agency Fees,14-Apr,"4,029.69"
5453333,PARALLEL PARENTS,Childrens Services,Children's Services,Foster Carer Agency Fees,14-Apr,"3,712.87"
5453334,PARALLEL PARENTS,Childrens Services,Children's Services,Foster Carer Agency Fees,14-Apr,"3,807.42"
5453335,CITY LIFT SERVICES (NW) LTD,Adult Social Care,Adults,General Equipment Repair & Maintenance,12-Apr,"2,190.00"
5453336,PARALLEL PARENTS,Childrens Services,Children's Services,Foster Carer Agency Fees,14-Apr,"3,807.42"
5453337,PARALLEL PARENTS,Childrens Services,Children's Services,Foster Carer Agency Fees,14-Apr,"3,145.57"
5453338,PARALLEL PARENTS,Childrens Services,Children's Services,Foster Carer Agency Fees,14-Apr,"3,827.88"
5453339,PARALLEL PARENTS,Childrens Services,Children's Services,Foster Carer Agency Fees,14-Apr,"3,145.57"
5453340,Greatwood House t/a Meridian Healthcare LTD,Contingency,Contingency,Nursing Home Long Stay Fees,14-Apr,"12,487.82"
5453341,Greatwood House t/a Meridian Healthcare LTD,Contingency,Contingency,Nursing Home Long Stay Fees,14-Apr,"16,319.09"
5453342,Greatwood House t/a Meridian Healthcare LTD,Contingency,Contingency,Nursing Home Long Stay Fees,14-Apr,"4,725.12"
5453343,Greatwood House t/a Meridian Healthcare LTD,Contingency,Contingency,Nursing Home Long Stay Fees,14-Apr,"18,562.97"
5453344,PARALLEL PARENTS,Childrens Services,Children's Services,Foster Carer Agency Fees,14-Apr,"3,431.70"
5453346,Greatwood House t/a Meridian Healthcare LTD,Contingency,Contingency,Nursing Home Long Stay Fees,14-Apr,"9,969.48"
5453347,Greatwood House t/a Meridian Healthcare LTD,Contingency,Contingency,Nursing Home Long Stay Fees,14-Apr,"4,725.12"
5453348,Water Plus,Place,Growth,Water (Metered and Rates),14-Apr,764.48
5453349,CGL Services,Population Health,Population Health,Professional Services,14-Apr,"255,750.00"
5453356,PARALLEL PARENTS,Childrens Services,Children's Services,Foster Carer Agency Fees,14-Apr,"3,483.78"
5453358,PARALLEL PARENTS,Childrens Services,Children's Services,Foster Carer Agency Fees,14-Apr,"2,883.93"
5453359,UNITED UTILITIES,Place,Growth,Water (Metered and Rates),14-Apr,950.09
5453360,PARALLEL PARENTS,Childrens Services,Children's Services,Foster Carer Agency Fees,14-Apr,"3,039.55"
5453382,Pickering Psychology Services Limited,Childrens Services,Children's Services,Professional Child Services,14-Apr,"1,196.72"
5453385,NATIONAL FOSTERING AGENCY LTD,Childrens Services,Children's Services,Foster Carer Agency Fees,14-Apr,"3,365.84"
5453389,NEW BRIDGE HORIZONS,Adult Social Care,Adults,Homecare Fees,14-Apr,"1,016.00"
5453390,NEW BRIDGE HORIZONS,Adult Social Care,Adults,Homecare Fees,14-Apr,"1,868.00"
5453391,NEW BRIDGE HORIZONS,Adult Social Care,Adults,Homecare Fees,14-Apr,"1,625.00"
5453392,NEW BRIDGE HORIZONS,Adult Social Care,Adults,Homecare Fees,14-Apr,"1,800.00"
5453394,NATIONAL FOSTERING AGENCY LTD,Childrens Services,Children's Services,Foster Carer Agency Fees,14-Apr,"3,040.11"
5453395,SURECARE TAMESIDE & OLDHAM,Adult Social Care,Adults,Homecare Fees,14-Apr,"4,045.81"
5453417,SOFTCAT LIMITED,Digital Tameside,Finance & IT,IT Equipment,14-Apr,"2,053.00"
5453418,SOFTCAT LIMITED,Digital Tameside,Finance & IT,IT Equipment,14-Apr,856
5453419,SOFTCAT LIMITED,Digital Tameside,Finance & IT,IT Equipment,14-Apr,"4,106.70"
5453420,COMMUNITY BROADBAND NETWORK,Digital Tameside,Finance & IT,Professional Services,14-Apr,"6,413.00"
5453421,NEW BRIDGE HORIZONS,Adult Social Care,Adults,Homecare Fees,14-Apr,"1,401.00"
5453424,ALPHA BIOLABS,Childrens Services,Children's Services,Professional Medical Services,14-Apr,598
5453425,P MCGUINNESS & CO LTD,Place,Growth,Building Works,14-Apr,"2,980.00"
5453434,Redacted Supplier,Corporate Costs,Corporate Costs,Professional Services,14-Apr,"1,193.35"
5453440,Engage Support LTD,Childrens Services,Children's Services,Living With Formal Support,14-Apr,"9,180.00"
5453446,PROFILE SECURITY SERVICES LIMITED,Operations and Neighbourhoods,Operations and Neighbourhoods,General Materials,14-Apr,"5,776.68"
5453451,Future Focused Care,Childrens Services,Children's Services,Childrens Homes Outside Local Authority Fees,14-Apr,"19,906.34"
5453454,CRELLING HARNESSES LIMITED,Operations and Neighbourhoods,Operations and Neighbourhoods,General Equipment Purchase,14-Apr,899.5
5453455,COMFORT CALL LIMITED,Adult Social Care,Adults,Homecare Fees,05-Apr,"32,862.59"
5453458,JPCS LIMITED,(blank),(blank),Footway Construction,04-Apr,"6,110.38"
5453561,NOMIX-ENVIRO LTD,Operations and Neighbourhoods,Operations and Neighbourhoods,Professional Weedspraying Services,14-Apr,"3,985.50"
5453564,Redacted Supplier,Operations and Neighbourhoods,Operations and Neighbourhoods,Professional Entertainment Services,14-Apr,592.9
5453565,FAMILY CARE FOSTERING LTD,Childrens Services,Children's Services,Foster Carer Agency Fees,14-Apr,"3,348.00"
5453566,FAMILY CARE FOSTERING LTD,Childrens Services,Children's Services,Foster Carer Agency Fees,14-Apr,"3,777.85"
5453567,SWIIS FOSTER CARE LTD,Childrens Services,Children's Services,Foster Carer Agency Fees,14-Apr,787.78
5453568,SWIIS FOSTER CARE LTD,Childrens Services,Children's Services,Foster Carer Agency Fees,14-Apr,"1,694.98"
5453569,SWIIS FOSTER CARE LTD,Childrens Services,Children's Services,Foster Carer Agency Fees,14-Apr,863.03
5453570,SWIIS FOSTER CARE LTD,Childrens Services,Children's Services,Foster Carer Agency Fees,14-Apr,696.99
5453572,SWIIS FOSTER CARE LTD,Childrens Services,Children's Services,Foster Carer Agency Fees,14-Apr,760.48
5453591,CITY LIFT SERVICES (NW) LTD,Adult Social Care,Adults,General Equipment Repair & Maintenance,14-Apr,720
5453592,PAYPARTNERS LTD (MONTHLY),Adult Social Care,Adults,Sub-contractor Services,14-Apr,"19,599.83"
5453594,Anglian Water Business (National) t/a Wave Utilities,Place,Growth,Water (Metered and Rates),14-Apr,"15,228.37"
5453600,CITY LIFT SERVICES (NW) LTD,Adult Social Care,Adults,General Equipment Repair & Maintenance,14-Apr,"1,060.00"
5453602,Redacted Supplier,Education,Children's Services,Independent School Fees,14-Apr,"14,566.67"
5453603,CITY LIFT SERVICES (NW) LTD,Adult Social Care,Adults,General Equipment Repair & Maintenance,14-Apr,530
5453604,Redacted Supplier,Childrens Services,Children's Services,Foster Carer Agency Fees,14-Apr,"3,799.88"
5453610,G2V Recruitment Group Limited t/a Vivid Resourcing,Place,Growth,Agency Staff,14-Apr,"1,358.25"
5453611,G2V Recruitment Group Limited t/a Vivid Resourcing,Place,Growth,Recruitment Campaign,14-Apr,"2,600.00"
5453614,LEGGETT PSYCHOLOGY LTD,Education,Children's Services,Professional Services,14-Apr,"2,200.00"
5453634,Prestige Adolescent Care & Education Ltd,Childrens Services,Children's Services,Childrens Homes Outside Local Authority Fees,14-Apr,"6,900.04"
5453638,N A Brown Ltd,Operations and Neighbourhoods,Operations and Neighbourhoods,General Materials,14-Apr,"2,864.37"
5453639,UK CONTAINER MAINTENANCE LTD,Operations and Neighbourhoods,Operations and Neighbourhoods,Purchase Wheeled Bins,14-Apr,"1,800.00"
5453641,Constellia Public Ltd,Place,Growth,Professional Services,14-Apr,"16,891.15"
5453642,FOUNTAINS & FEATURES LIMITED,Operations and Neighbourhoods,Operations and Neighbourhoods,General Materials,14-Apr,"3,224.00"
5453643,VISION FOR EDUCATION LIMITED,Education,Children's Services,Professional Services,14-Apr,"1,406.00"
5453649,Oyster Partnership,Governance,Governance,Agency Staff,14-Apr,"1,950.00"
5453651,Millie's Trust,Childrens Services,Children's Services,Training Course Costs,14-Apr,"4,000.00"
5453654,FOUNTAINS & FEATURES LIMITED,Operations and Neighbourhoods,Operations and Neighbourhoods,General Materials,14-Apr,"4,498.00"
5453660,Hiraeth Services Ltd trading as Cope Community,Childrens Services,Children's Services,Professional Services,14-Apr,900
5453662,Hiraeth Services Ltd trading as Cope Community,Childrens Services,Children's Services,Professional Services,14-Apr,"1,860.00"
5453664,Hiraeth Services Ltd trading as Cope Community,Childrens Services,Children's Services,Professional Services,14-Apr,"2,400.00"
5453667,Hiraeth Services Ltd trading as Cope Community,Childrens Services,Children's Services,Professional Services,14-Apr,600
5453669,Hiraeth Services Ltd trading as Cope Community,Childrens Services,Children's Services,Professional Services,14-Apr,"1,200.00"
5453670,Hiraeth Services Ltd trading as Cope Community,Childrens Services,Children's Services,Professional Services,14-Apr,"1,260.00"
5453679,Flintshire County Council,Education,Children's Services,Other Local Authorities Fees,14-Apr,"14,853.00"
5453680,Flintshire County Council,Education,Children's Services,Other Local Authorities Fees,14-Apr,"29,050.00"
5453686,BURY COUNCIL,Policy and Communications,Governance,Contributions,14-Apr,"2,450.00"
5453690,AMARA CARE LTD,Adult Social Care,Adults,Homecare Fees,14-Apr,549.34
5453693,BARCHAM TREES PLC,Operations and Neighbourhoods,Operations and Neighbourhoods,General Materials,14-Apr,"2,396.00"
5453695,LEANDER ARCHITECTURAL,District Assemblies,"Community,Environmental,Adult and Health Services",General Materials,14-Apr,80
5453695,LEANDER ARCHITECTURAL,Operations and Neighbourhoods,Operations and Neighbourhoods,General Materials,14-Apr,"3,840.00"
5453697,Origin Amenity Solutions Ltd,Operations and Neighbourhoods,Operations and Neighbourhoods,General Materials,14-Apr,794
5453703,AXIOMATIC TECHNOLOGY LIMITED,Operations and Neighbourhoods,Operations and Neighbourhoods,Computer Software Maintenance Costs,14-Apr,"2,100.00"
5453704,Libraries Connected,Operations and Neighbourhoods,Operations and Neighbourhoods,Subscriptions,14-Apr,"2,107.03"
5453705,ME LEARNING LTD,Hosted Services,Hosted Services,Licences,14-Apr,"13,000.00"
5453706,ME LEARNING LTD,People and Workforce Development,Governance,Training Course Costs,14-Apr,"2,200.00"
5453710,City and Guilds of London Institute t/a City & Guilds or ILM,People and Workforce Development,Governance,Training Course Costs,14-Apr,"2,500.00"
5453714,Randstad Public Services Limited,Education,Children's Services,Professional Services,14-Apr,590
5453716,Randstad Public Services Limited,Education,Children's Services,Professional Services,14-Apr,590
5453717,STEP AHEAD RESOURCE SERVICES,Childrens Services,Children's Services,Living With Formal Support,21-Jun,"1,200.00"
5453826,Reach Publishing Services Limited,Tameside Investment Partnership,Director of Place,"Marketing, Publicity and Recruitment",14-Apr,815
5453828,Reach Publishing Services Limited,Policy and Communications,Governance,"Marketing, Publicity and Recruitment",14-Apr,"5,280.00"
5453840,CLEAR CHANNEL UK LTD,Policy and Communications,Governance,"Marketing, Publicity and Recruitment",14-Apr,"2,240.00"
5453852,NATIONAL FOSTERING AGENCY LTD,Childrens Services,Children's Services,Foster Carer Agency Fees,14-Apr,"2,997.82"
5453868,Local Creative Project Ltd,Place,Growth,Professional Services,19-Apr,"3,500.00"
5453868,Local Creative Project Ltd,(blank),(blank),General Materials,19-Apr,206
5453870,VISION FOR EDUCATION LIMITED,Individual Schools Budget,Children's Services,Agency Staff,14-Apr,975
5453884,DISTRICT SURVEYORS ASSOCIATION LTD T/A LABC,Place,Growth,Subscriptions,14-Apr,"2,628.82"
5453890,MEDACS HEALTHCARE,Adult Social Care,Adults,Homecare Fees,08-Apr,"16,764.23"
5453893,DEKKO WINDOW SYSTEMS LTD,Place,Growth,Gas,14-Apr,651.35
5453894,LOCAL CARE FORCE,Adult Social Care,Adults,Homecare Fees,14-Apr,"2,476.00"
5453896,YOUNG PEOPLE FIRST LIMITED,Childrens Services,Children's Services,Living With Formal Support,14-Apr,"2,100.00"
5453897,YOUNG PEOPLE FIRST LIMITED,Childrens Services,Children's Services,Living With Formal Support,14-Apr,"2,100.00"
5453901,YOUNG PEOPLE FIRST LIMITED,Childrens Services,Children's Services,Living With Formal Support,14-Apr,"1,225.00"
5453911,FAIRWAY LANDSCAPES LTD,(blank),(blank),Professional Services,14-Apr,"9,602.00"
5453944,OverDrive Global Ltd,Operations and Neighbourhoods,Operations and Neighbourhoods,Digital Materials,14-Apr,"7,179.00"
5453948,NATIONAL FOSTERING AGENCY LTD,Childrens Services,Children's Services,Foster Carer Agency Fees,14-Apr,"3,319.02"
5453949,NEW BRIDGE HORIZONS,Adult Social Care,Adults,Homecare Fees,14-Apr,"1,401.00"
5453950,NEW BRIDGE HORIZONS,Adult Social Care,Adults,Homecare Fees,14-Apr,"1,868.00"
5453951,NEW BRIDGE HORIZONS,Adult Social Care,Adults,Homecare Fees,14-Apr,"1,800.00"
5453953,NEW BRIDGE HORIZONS,Adult Social Care,Adults,Homecare Fees,14-Apr,"1,016.00"
5453954,NEW BRIDGE HORIZONS,Adult Social Care,Adults,Homecare Fees,14-Apr,"1,625.00"
5453959,COMPUTEAM LTD,Individual Schools Budget,Children's Services,IT Equipment,14-Apr,"6,444.00"
5453960,COMPUTEAM LTD,Individual Schools Budget,Children's Services,IT Equipment,14-Apr,"9,666.00"
5453964,ROUTES HEALTHCARE (NORTH) LIMITED,Adult Social Care,Adults,Homecare Fees,14-Apr,"7,292.10"
5453965,INSPIREDSPACES TAMESIDE LTD,(blank),(blank),Fees,04-Apr,"3,094.92"
5453968,BRAKE BROS LTD,Operations and Neighbourhoods,Operations and Neighbourhoods,General Materials,14-Apr,560.19
5453973,COMFORT CALL LIMITED,Adult Social Care,Adults,Homecare Fees,07-Apr,"32,996.35"
5453974,CARELINE HOMECARE LTD,Adult Social Care,Adults,Homecare Fees,07-Apr,"31,139.06"
5453975,Paramount Children's Services,Childrens Services,Children's Services,Childrens Homes Outside Local Authority Fees,14-Apr,"24,975.00"
5453976,Paramount Children's Services,Childrens Services,Children's Services,Childrens Homes Outside Local Authority Fees,14-Apr,"29,980.00"
5453990,WILDE CONSULTING ENGINEERS,District Assemblies,"Community,Environmental,Adult and Health Services",Engineers -External,08-Apr,"2,379.00"
5453990,WILDE CONSULTING ENGINEERS,Engineers Client,Director of Place,Engineers -External,08-Apr,"4,120.23"
5453990,WILDE CONSULTING ENGINEERS,(blank),(blank),Engineers -External,08-Apr,"4,954.51"
5453991,Furniture Resource Centre Ltd,Operations and Neighbourhoods,Operations and Neighbourhoods,"Fixtures, Fittings & Furniture Purchase",14-Apr,"1,332.21"
5453993,Furniture Resource Centre Ltd,Operations and Neighbourhoods,Operations and Neighbourhoods,"Fixtures, Fittings & Furniture Purchase",14-Apr,"1,212.00"
5453999,Furniture Resource Centre Ltd,Operations and Neighbourhoods,Operations and Neighbourhoods,"Fixtures, Fittings & Furniture Purchase",14-Apr,517.49
5454000,Furniture Resource Centre Ltd,Operations and Neighbourhoods,Operations and Neighbourhoods,"Fixtures, Fittings & Furniture Purchase",14-Apr,670.01
5454001,Furniture Resource Centre Ltd,Operations and Neighbourhoods,Operations and Neighbourhoods,"Fixtures, Fittings & Furniture Purchase",14-Apr,563.94
5454004,Furniture Resource Centre Ltd,Operations and Neighbourhoods,Operations and Neighbourhoods,"Fixtures, Fittings & Furniture Purchase",14-Apr,"1,155.49"
5454005,Furniture Resource Centre Ltd,Operations and Neighbourhoods,Operations and Neighbourhoods,"Fixtures, Fittings & Furniture Purchase",14-Apr,"1,062.18"
5454006,Furniture Resource Centre Ltd,Operations and Neighbourhoods,Operations and Neighbourhoods,"Fixtures, Fittings & Furniture Purchase",14-Apr,906.15
5454007,Furniture Resource Centre Ltd,Operations and Neighbourhoods,Operations and Neighbourhoods,"Fixtures, Fittings & Furniture Purchase",14-Apr,981.3
5454013,Amore Social Care Ltd,Childrens Services,Children's Services,Childrens Homes Outside Local Authority Fees,14-Apr,"12,793.36"
5454014,KONICA MINOLTA BUSINESS SOLUTIONS (UK) LTD,Individual Schools Budget,Children's Services,Printing Recharges,14-Apr,527.97
5454015,CAMPEY TURF CARE SYSTEMS,Operations and Neighbourhoods,Operations and Neighbourhoods,General Materials,14-Apr,"1,130.56"
5454016,Capita ESS Limited,Individual Schools Budget,Children's Services,Subscriptions,14-Apr,622.33
5454018,Capita ESS Limited,Individual Schools Budget,Children's Services,Subscriptions,14-Apr,"1,750.00"
5454019,Randstad Public Services Limited,Individual Schools Budget,Children's Services,Agency Staff,14-Apr,796
5454020,Randstad Public Services Limited,Individual Schools Budget,Children's Services,Agency Staff,14-Apr,928
5454053,Independent Clinical Services t/a: Thornbury Nursing Services,Childrens Services,Children's Services,Professional Medical Services,20-Apr,740.08
5454054,Independent Clinical Services t/a: Thornbury Nursing Services,Childrens Services,Children's Services,Professional Medical Services,20-Apr,879.76
5454055,Independent Clinical Services t/a: Thornbury Nursing Services,Childrens Services,Children's Services,Professional Medical Services,20-Apr,852.6
5454056,Independent Clinical Services t/a: Thornbury Nursing Services,Childrens Services,Children's Services,Professional Medical Services,20-Apr,852.6
5454058,Independent Clinical Services t/a: Thornbury Nursing Services,Childrens Services,Children's Services,Professional Medical Services,20-Apr,"1,230.28"
5454059,Independent Clinical Services t/a: Thornbury Nursing Services,Childrens Services,Children's Services,Professional Medical Services,20-Apr,"1,039.48"
5454060,Independent Clinical Services t/a: Thornbury Nursing Services,Childrens Services,Children's Services,Professional Medical Services,20-Apr,"1,146.92"
5454063,Independent Clinical Services t/a: Thornbury Nursing Services,Childrens Services,Children's Services,Professional Medical Services,20-Apr,710.36
5454064,Independent Clinical Services t/a: Thornbury Nursing Services,Childrens Services,Children's Services,Professional Medical Services,20-Apr,"1,208.62"
5454067,Independent Clinical Services t/a: Thornbury Nursing Services,Childrens Services,Children's Services,Professional Medical Services,20-Apr,718.72
5454068,Independent Clinical Services t/a: Thornbury Nursing Services,Childrens Services,Children's Services,Professional Medical Services,20-Apr,757.36
5454069,Independent Clinical Services t/a: Thornbury Nursing Services,Childrens Services,Children's Services,Professional Medical Services,20-Apr,"1,419.70"
5454070,Independent Clinical Services t/a: Thornbury Nursing Services,Childrens Services,Children's Services,Professional Medical Services,20-Apr,"1,146.92"
5454071,Independent Clinical Services t/a: Thornbury Nursing Services,Childrens Services,Children's Services,Professional Medical Services,20-Apr,819.56
5454072,Independent Clinical Services t/a: Thornbury Nursing Services,Childrens Services,Children's Services,Professional Medical Services,20-Apr,"1,233.08"
5454073,SmartWater Group Ltd,Population Health,Population Health,Fees,14-Apr,20
5454073,SmartWater Group Ltd,Population Health,Population Health,Security Equipment,14-Apr,"9,750.00"
5454074,Redacted Supplier,Education,Children's Services,Independent School Fees,20-Apr,"15,027.33"
5454076,Redacted Supplier,Education,Children's Services,Independent School Fees,20-Apr,"12,224.52"
5454078,Redacted Supplier,Education,Children's Services,Independent School Fees,20-Apr,"12,207.22"
5454080,Redacted Supplier,Education,Children's Services,Independent School Fees,20-Apr,"12,207.22"
5454082,Redacted Supplier,Education,Children's Services,Independent School Fees,20-Apr,"12,207.22"
5454083,Redacted Supplier,Education,Children's Services,Independent School Fees,20-Apr,"12,224.52"
5454084,Redacted Supplier,Education,Children's Services,Independent School Fees,20-Apr,"12,224.52"
5454086,Redacted Supplier,Education,Children's Services,Independent School Fees,20-Apr,"19,356.33"
5454088,Redacted Supplier,Education,Children's Services,Independent School Fees,20-Apr,"12,224.52"
5454089,Redacted Supplier,Education,Children's Services,Independent School Fees,20-Apr,"12,224.52"
5454091,Redacted Supplier,Education,Children's Services,Independent School Fees,20-Apr,"12,207.22"
5454093,Redacted Supplier,Education,Children's Services,Independent School Fees,20-Apr,"18,034.94"
5454095,Redacted Supplier,Education,Children's Services,Independent School Fees,20-Apr,"6,000.00"
5454096,Redacted Supplier,Education,Children's Services,Independent School Fees,20-Apr,"24,373.33"
5454098,Redacted Supplier,Education,Children's Services,Independent School Fees,20-Apr,"15,463.13"
5454100,Redacted Supplier,Education,Children's Services,Independent School Fees,20-Apr,"12,224.52"
5454102,Redacted Supplier,Education,Children's Services,Independent School Fees,20-Apr,"12,647.26"
5454105,NEW BRIDGE ACADEMY TRUST,Education,Children's Services,Other Local Authorities Fees,20-Apr,"31,618.15"
5454119,ASKEWS  AND HOLTS LIBRARY SERVICES LTD,Operations and Neighbourhoods,Operations and Neighbourhoods,Purchase Books,20-Apr,"1,954.51"
5454122,NEW BRIDGE ACADEMY TRUST,Education,Children's Services,Other Local Authorities Fees,20-Apr,"20,185.58"
5454124,Pennine Learning Associates,Education,Children's Services,Professional Services,20-Apr,"2,500.00"
5454125,BTTLR LIMITED T/A Connecting Hands Healthcare Services,Childrens Services,Children's Services,Childrens Homes Outside Local Authority Fees,20-Apr,"11,300.00"
5454137,NEW BRIDGE ACADEMY TRUST,Education,Children's Services,Post 16 FE College Fees,20-Apr,"18,663.00"
5454145,NEW BRIDGE ACADEMY TRUST,Education,Children's Services,Post 16 FE College Fees,20-Apr,"21,888.58"
5454146,NEW BRIDGE ACADEMY TRUST,Education,Children's Services,Post 16 FE College Fees,20-Apr,"20,185.58"
5454147,NEW BRIDGE ACADEMY TRUST,Education,Children's Services,Other Local Authorities Fees,20-Apr,"33,733.36"
5454149,NEW BRIDGE ACADEMY TRUST,Education,Children's Services,Post 16 FE College Fees,20-Apr,"12,647.26"
5454150,STEP AHEAD RESOURCE SERVICES,Childrens Services,Children's Services,Living With Formal Support,28-Jun,"1,200.00"
5454152,NEW BRIDGE ACADEMY TRUST,Education,Children's Services,Other Local Authorities Fees,20-Apr,"1,250.00"
5454156,NEW BRIDGE ACADEMY TRUST,Education,Children's Services,Post 16 FE College Fees,20-Apr,"21,888.58"
5454165,Randstad Public Services Limited,Individual Schools Budget,Children's Services,Agency Staff,20-Apr,796
5454166,CYCLESCHEME LTD,(blank),(blank),Debits,06-Apr,"1,667.50"
5454167,CYCLESCHEME LTD,(blank),(blank),Debits,08-Apr,"1,667.50"
5454168,NATIONAL GOVERNORS ASSOCIATION T/A NGA,Education,Children's Services,Subscriptions,20-Apr,"3,600.00"
5454170,TURNING POINT,Adult Social Care,Adults,Homecare Fees,20-Apr,"1,864.26"
5454185,Randstad Public Services Limited,Education,Children's Services,Agency Staff,20-Apr,583.95
5454188,The Veterans Food Co,Operations and Neighbourhoods,Operations and Neighbourhoods,Project Costs,20-Apr,"6,000.00"
5454201,PMA Outdoor Media Ltd,Policy and Communications,Governance,"Marketing, Publicity and Recruitment",20-Apr,"1,650.00"
5454202,Redacted Supplier,Education,Children's Services,Independent School Fees,20-Apr,"1,260.00"
5454205,Newsquest Ltd T/A LOCALiQ,Childrens Services,Children's Services,"Marketing, Publicity and Recruitment",20-Apr,"1,750.00"
5454206,INSPIREDSPACES TAMESIDE LTD,(blank),(blank),Fees,04-Apr,"1,365.34"
5454209,INSPIREDSPACES TAMESIDE LTD,(blank),(blank),Asbestos Removal,04-Apr,"1,872.84"
5454213,INSPIREDSPACES TAMESIDE LTD,(blank),(blank),Fees,04-Apr,"136,022.06"
5454214,Holden Knight Education Ltd,Individual Schools Budget,Children's Services,Agency Staff,20-Apr,"1,125.00"
5454216,GRANART LIMITED,Operations and Neighbourhoods,Operations and Neighbourhoods,Plaques,20-Apr,"1,258.50"
5454224,EXPERIAN LTD,Policy and Communications,Governance,Licences,20-Apr,"9,963.00"
5454228,Sight and Sound Technology LTD,Education,Children's Services,Educational Equipment,20-Apr,"2,205.00"
5454234,DOMAIN CARE NORTH WEST LTD,Adult Social Care,Adults,Homecare Fees,20-Apr,"1,256.68"
5454236,The Shed Tameside,Adult Social Care,Adults,Professional Services,08-Apr,"2,829.12"
5454245,Redacted Supplier,Education,Children's Services,Professional Services,20-Apr,"2,750.00"
5454246,Redacted Supplier,Education,Children's Services,Professional Services,20-Apr,"1,100.00"
5454247,Redacted Supplier,Education,Children's Services,Professional Services,20-Apr,"1,650.00"
5454248,Redacted Supplier,Education,Children's Services,Professional Services,20-Apr,550
5454252,Social Finance LTD,(blank),(blank),Project Costs,31-May,"39,950.00"
5454254,NATIONAL GOVERNORS ASSOCIATION T/A NGA,Education,Children's Services,Subscriptions,20-Apr,"3,956.00"
5454259,ZEN EDUCATE LTD,Individual Schools Budget,Children's Services,Agency Staff,20-Apr,"1,050.00"
5454261,VISION FOR EDUCATION LIMITED,Individual Schools Budget,Children's Services,Agency Staff,20-Apr,975
5454264,MARK O'CONNOR T/A EAST MANCHESTER BUILDERS,Housing,Director of Place,Mandatory Adaptations Grant (DFG),14-Apr,"7,003.20"
5454304,ROYAL MENCAP SOCIETY,Adult Social Care,Adults,Voluntary Organisations Fees,21-Apr,"12,158.48"
5454305,TELEFONICA O2 (UK) LTD,Digital Tameside,Finance & IT,Mobile Telephones,21-Apr,"7,610.49"
5454341,Independent Together Limited,Childrens Services,Children's Services,Living With Formal Support,21-Apr,"4,406.43"
5454342,Independent Together Limited,Childrens Services,Children's Services,Living With Formal Support,21-Apr,"1,590.00"
5454344,Independent Together Limited,Childrens Services,Children's Services,Living With Formal Support,21-Apr,"3,100.00"
5454345,CARTER BROWN - THE EXPERT SERVICE LIMITED,Childrens Services,Children's Services,Professional Child Services,12-May,"1,409.59"
5454346,GLOBAL MEDIA GROUP SERVICES LTD,Policy and Communications,Governance,"Marketing, Publicity and Recruitment",01-Apr,"2,485.62"
5454349,CARTER BROWN - THE EXPERT SERVICE LIMITED,Childrens Services,Children's Services,Professional Services,21-Apr,855.8
5454356,Cathmor,Childrens Services,Children's Services,Living With Formal Support,21-Apr,"1,406.46"
5454363,Cathmor,Childrens Services,Children's Services,Living With Formal Support,21-Apr,"5,851.52"
5454369,Cathmor,Childrens Services,Children's Services,Living With Formal Support,21-Apr,"1,280.00"
5454378,HC Assessment Ltd,Adult Social Care,Adults,Professional Services,21-Apr,"3,329.25"
5454392,AUTISM INITIATIVES (UK),Adult Social Care,Adults,Homecare Fees,21-Apr,"2,962.56"
5454395,AUTISM INITIATIVES (UK),Adult Social Care,Adults,Professional Bailiff Services,21-Apr,"1,022.64"
5454397,AUTISM INITIATIVES (UK),Adult Social Care,Adults,Homecare Fees,21-Apr,"2,962.56"
5454401,DIRECT CARE (TAMESIDE) LTD,Adult Social Care,Adults,Homecare Fees,01-Apr,"40,074.86"
5454414,SEDGEMOOR DISTRICT COUNCIL,Hosted Services,Hosted Services,Professional Consultancy Services,05-Apr,"3,610.00"
5454418,STRAWBERRY GARDEN,Operations and Neighbourhoods,Operations and Neighbourhoods,Project Expenditure Home Office,01-Apr,"1,625.00"
5454420,Origin Amenity Solutions Ltd,Operations and Neighbourhoods,Operations and Neighbourhoods,Professional Weedspraying Services,21-Apr,"3,360.00"
5454423,INCOM SYSTEMS COMMUNICATION LTD,Adult Social Care,Adults,Building Maintenance,21-Apr,952
5454428,AGE UK TAMESIDE,Adult Social Care,Adults,Professional Services,01-Apr,"44,065.75"
5454430,Vernon House T/A Kedleston (WoodGrove Childcare) Limited,Childrens Services,Children's Services,Childrens Homes Outside Local Authority Fees,21-Apr,"12,414.29"
5454431,Vernon House T/A Kedleston (WoodGrove Childcare) Limited,Childrens Services,Children's Services,Childrens Homes Outside Local Authority Fees,21-Apr,"34,985.71"
5454434,SURECARE TAMESIDE & OLDHAM,Adult Social Care,Adults,Homecare Fees,21-Apr,"3,637.58"
5454437,ALPHA BIOLABS,Childrens Services,Children's Services,Professional Medical Services,21-Apr,896.63
5454438,ACTION TOGETHER CIO,Operations and Neighbourhoods,Operations and Neighbourhoods,Project Costs,21-Apr,"62,000.00"
5454446,BEDSPACE RESOURCE LTD,Adult Social Care,Adults,Residential Home Long Stay Fees,21-Apr,"1,675.00"
5454447,BEDSPACE RESOURCE LTD,Adult Social Care,Adults,Residential Home Long Stay Fees,21-Apr,"2,150.00"
5454448,BEDSPACE RESOURCE LTD,Adult Social Care,Adults,Residential Home Long Stay Fees,21-Apr,"1,500.00"
5454452,ZZ-POP Hyde CIC,Adult Social Care,Adults,Voluntary Organisations Fees,20-Apr,720
5454483,Fanco Limited t/a 365 Medicare,Adult Social Care,Adults,Homecare Fees,08-Apr,699.58
5454509,DARTINGTON HALL TRUST,Adult Social Care,Adults,Professional Services,22-Apr,"11,625.00"
5454510,HUQ Industries Ltd,(blank),(blank),Professional Services,22-Apr,"3,000.00"
5454511,NEW CHARTER HOUSING TRUST GROUP,Childrens Services,Children's Services,Professional Services,13-Apr,"17,600.00"
5454512,NEW CHARTER HOUSING TRUST GROUP,Childrens Services,Children's Services,Professional Services,13-Apr,"7,200.00"
5454514,NEW CHARTER HOUSING TRUST GROUP,Childrens Services,Children's Services,Professional Services,13-Apr,"4,000.00"
5454515,BRAKE BROS LTD,Operations and Neighbourhoods,Operations and Neighbourhoods,General Materials,22-Apr,513.7
5454517,Smartway Health and Social Care Limited,Adult Social Care,Adults,Homecare Fees,01-Apr,"5,450.04"
5454518,SWIIS FOSTER CARE LTD,Childrens Services,Children's Services,Foster Carer Agency Fees,22-Apr,"1,694.98"
5454519,SWIIS FOSTER CARE LTD,Childrens Services,Children's Services,Foster Carer Agency Fees,22-Apr,696.99
5454521,NEW CHARTER HOUSING TRUST GROUP,Childrens Services,Children's Services,Professional Services,13-Apr,"12,000.00"
5454522,NEW CHARTER HOUSING TRUST GROUP,Operations and Neighbourhoods,Operations and Neighbourhoods,Sub-contractor Services,01-Apr,"70,000.00"
5454531,SWIIS FOSTER CARE LTD,Childrens Services,Children's Services,Foster Carer Agency Fees,22-Apr,863.03
5454532,SWIIS FOSTER CARE LTD,Childrens Services,Children's Services,Foster Carer Agency Fees,22-Apr,787.78
5454534,SWIIS FOSTER CARE LTD,Childrens Services,Children's Services,Foster Carer Agency Fees,22-Apr,760.48
5454536,MHR International UK Limited,People and Workforce Development,Governance,Computer Software,22-Apr,"2,808.00"
5454557,K P DODD CONSTRUCTION LTD,Housing,Director of Place,Mandatory Adaptations Grant (DFG),22-Apr,"3,671.96"
5454558,Redacted Supplier,Childrens Services,Children's Services,Childrens Homes Outside Local Authority Fees,04-May,"14,785.80"
5454559,Redacted Supplier,Childrens Services,Children's Services,Childrens Homes Outside Local Authority Fees,22-Apr,"3,621.30"
5454560,Redacted Supplier,Childrens Services,Children's Services,Childrens Homes Outside Local Authority Fees,26-Apr,"14,785.80"
5454561,Redacted Supplier,Childrens Services,Children's Services,Childrens Homes Outside Local Authority Fees,04-May,"14,785.80"
5454562,Redacted Supplier,Childrens Services,Children's Services,Childrens Homes Outside Local Authority Fees,26-Apr,"17,121.30"
5454568,Medgen Limited,Childrens Services,Children's Services,Homecare Fees,22-Apr,596.4
5454580,Cathmor,Childrens Services,Children's Services,Living With Formal Support,21-Apr,"3,580.08"
5454580,Cathmor,Childrens Services,Children's Services,Semi independent - Weekly Living Allowances,21-Apr,59.2
5454583,Cathmor,Childrens Services,Children's Services,Living With Formal Support,21-Apr,"3,963.66"
5454585,TRANSPORT FOR GREATER MANCHESTER,(blank),(blank),External  Consultants,22-Apr,"6,423.20"
5454593,Bloom Procurement Services Limited,(blank),(blank),Engineers -External,07-Apr,"16,322.75"
5454595,SOLON SECURITY LTD,Population Health,Population Health,Security Equipment,22-Apr,"10,229.20"
5454596,PERSON CENTRED CARE SERVICES LIMITED,Adult Social Care,Adults,Homecare Fees,11-Apr,"1,315.35"
5454598,PERSON CENTRED CARE SERVICES LIMITED,Adult Social Care,Adults,Homecare Fees,11-Apr,"1,332.00"
5454599,Curated Place,Operations and Neighbourhoods,Operations and Neighbourhoods,Professional Entertainment Services,22-Apr,"10,000.00"
5454600,G2V Recruitment Group Limited t/a Vivid Resourcing,Place,Growth,Recruitment Campaign,22-Apr,"2,600.00"
5454601,G2V Recruitment Group Limited t/a Vivid Resourcing,Place,Growth,Agency Staff,22-Apr,"1,358.25"
5454607,TAMESIDE ARTS LTD,Adult Social Care,Adults,Professional Services,01-Apr,"3,064.88"
5454608,Randstad Public Services Limited,Education,Children's Services,Agency Staff,22-Apr,583.95
5454611,Randstad Public Services Limited,Education,Children's Services,Agency Staff,22-Apr,583.95
5454612,TAMESIDE ARTS LTD,Adult Social Care,Adults,Professional Services,01-Apr,"6,129.76"
5454613,HEXAGON CARE SERVICES LTD,Childrens Services,Children's Services,Childrens Homes Outside Local Authority Fees,22-Apr,"19,862.14"
5454614,HEXAGON CARE SERVICES LTD,Childrens Services,Children's Services,Childrens Homes Outside Local Authority Fees,22-Apr,"24,335.00"
5454617,HEXAGON CARE SERVICES LTD,Childrens Services,Children's Services,Childrens Homes Outside Local Authority Fees,22-Apr,"19,950.18"
5454618,HEXAGON CARE SERVICES LTD,Childrens Services,Children's Services,Childrens Homes Outside Local Authority Fees,22-Apr,"11,325.54"
5454620,JACKSON & TAYLOR LTD,Housing,Director of Place,Mandatory Adaptations Grant (DFG),01-Apr,"11,418.05"
5454625,LAVAT CONSULTING LIMITED,Finance,Finance & IT,Subscriptions,22-Apr,"2,950.00"
5454643,SALFORD CITY COUNCIL,Childrens Services,Children's Services,Professional Services,06-Apr,500
5454646,Oxford Innovation LTD - ASHTON OLD BATHS,Place,Growth,Professional Services,22-Apr,"31,677.19"
5454647,STOCKPORT CP  SOCIETY,Adult Social Care,Adults,Homecare Fees,22-Apr,"2,179.54"
5454651,CITY LIFT SERVICES (NW) LTD,Adult Social Care,Adults,General Equipment Repair & Maintenance,20-Apr,"1,580.00"
5454677,K P DODD CONSTRUCTION LTD,Housing,Director of Place,Mandatory Adaptations Grant (DFG),06-Apr,"6,655.24"
5454679,Oyster Partnership,Governance,Governance,Agency Staff,22-Apr,"1,920.00"
5454681,The Veterans Food Co,(blank),(blank),Other Accommodation Related Costs,22-Apr,"5,000.00"
5454682,Footsteps A Path To Change 08 Ltd,Childrens Services,Children's Services,Childrens Homes Outside Local Authority Fees,28-Apr,"18,043.50"
5454694,FOSTERING SOLUTIONS LTD,Childrens Services,Children's Services,Foster Carer Agency Fees,22-Apr,"3,144.33"
5454696,VISION FOR EDUCATION LIMITED,Education,Children's Services,Professional Services,22-Apr,"1,634.00"
5454699,HANDICARE LIMITED,Housing,Director of Place,Mandatory Adaptations Grant (DFG),22-Apr,"1,712.50"
5454703,MANCHESTER METROPOLITAN UNIVERSITY,People and Workforce Development,Governance,Training Course Costs,22-Apr,800
5454709,THRESHOLD HOUSING PROJECT,Operations and Neighbourhoods,Operations and Neighbourhoods,Sub-contractor Services,01-Apr,"51,321.57"
5454713,K P DODD CONSTRUCTION LTD,Housing,Director of Place,Mandatory Adaptations Grant (DFG),08-Apr,"4,284.20"
5454718,RIGHT - STEP LIMITED T/A RSL,Childrens Services,Children's Services,Living With Formal Support,22-Apr,"4,207.14"
5454723,Inspire Scotland Limited,Childrens Services,Children's Services,Childrens Homes Outside Local Authority Fees,14-Apr,"16,806.43"
5454727,Oxford Innovation LTD - ASHTON OLD BATHS,Place,Growth,Professional Services,22-Apr,"37,575.35"
5454730,MHR International UK Limited,People and Workforce Development,Governance,Computer Software,22-Apr,"22,978.20"
5454733,MANLEC ELECTRICAL(MANCHESTER) LTD,Housing,Director of Place,Minor Works - Building,01-Apr,852.5
5454737,Onward Homes,Place,Growth,Contributions,22-Apr,"13,810.00"
5454747,MOSSCARE HOUSING LTD,Childrens Services,Children's Services,Living With Formal Support,22-Apr,696.8
5454749,MOSSCARE HOUSING LTD,Childrens Services,Children's Services,Living With Formal Support,22-Apr,696.8
5454751,MOSSCARE HOUSING LTD,Childrens Services,Children's Services,Living With Formal Support,22-Apr,725.44
5454752,MOSSCARE HOUSING LTD,Childrens Services,Children's Services,Living With Formal Support,22-Apr,725.44
5454756,YOUNG PEOPLE FIRST LIMITED,Childrens Services,Children's Services,Living With Formal Support,22-Apr,"2,100.00"
5454757,YOUNG PEOPLE FIRST LIMITED,Childrens Services,Children's Services,Living With Formal Support,22-Apr,"2,100.00"
5454775,MANCHESTER CITY COUNCIL,Childrens Services,Children's Services,Professional Services,07-Apr,"4,293.85"
5454776,MANCHESTER CITY COUNCIL,Childrens Services,Children's Services,Professional Services,07-Apr,"2,094.72"
5454779,Origin Amenity Solutions Ltd,Operations and Neighbourhoods,Operations and Neighbourhoods,General Materials,22-Apr,"1,170.00"
5454780,TRANSPORT FOR GREATER MANCHESTER,Place,Growth,Professional Consultancy Services,22-Apr,"10,464.33"
5454787,CREATIVE SUPPORT LTD,Adult Social Care,Adults,Homecare Fees,22-Apr,"11,572.76"
5454789,CREATIVE SUPPORT LTD,Adult Social Care,Adults,Homecare Fees,22-Apr,"11,998.59"
5454790,NMA Travel LTD,Childrens Services,Children's Services,"Activity (Materials, Trips)",01-Apr,550
5454795,Redacted Supplier,Childrens Services,Children's Services,Childrens Homes Outside Local Authority Fees,22-Apr,"19,928.66"
5454798,Furniture Resource Centre Ltd,Operations and Neighbourhoods,Operations and Neighbourhoods,"Fixtures, Fittings & Furniture Purchase",22-Apr,520.14
5454808,SOFTCAT LIMITED,Digital Tameside,Finance & IT,IT Equipment,22-Apr,"1,298.00"
5454809,Redacted Supplier,Childrens Services,Children's Services,Childrens Homes Outside Local Authority Fees,22-Apr,"19,928.66"
5454810,SOFTCAT LIMITED,Digital Tameside,Finance & IT,IT Equipment,22-Apr,"1,445.00"
5454811,TRANSPORT FOR GREATER MANCHESTER,Place,Growth,Professional Consultancy Services,22-Apr,"25,746.00"
5454814,Permanent Education,Operations and Neighbourhoods,Operations and Neighbourhoods,Project Costs,01-Apr,"6,259.03"
5454818,K P DODD CONSTRUCTION LTD,Housing,Director of Place,Minor Works - Building,22-Apr,500
5454819,K P DODD CONSTRUCTION LTD,Housing,Director of Place,Minor Works - Building,22-Apr,500
5454823,Shabach Health Care Ltd,Adult Social Care,Adults,Homecare Fees,01-Apr,"5,815.01"
5454824,Shabach Health Care Ltd,Adult Social Care,Adults,Homecare Fees,01-Apr,"5,881.61"
5454825,MANCHESTER METROPOLITAN UNIVERSITY,People and Workforce Development,Governance,Training Course Costs,22-Apr,800
5454835,Nationwide Franking Sense Limited,Governance,Governance,Printing And Stationery,22-Apr,690
5454836,T KIRK FORESTRY,Operations and Neighbourhoods,Operations and Neighbourhoods,Training Course Costs,22-Apr,961
5454839,Redacted Supplier,Childrens Services,Children's Services,Childrens Homes Outside Local Authority Fees,22-Apr,"10,928.62"
5454840,CREATIVE SUPPORT LTD,Adult Social Care,Adults,Homecare Fees,22-Apr,"10,876.28"
5454861,We Support LTD,Adult Social Care,Adults,Homecare Fees,22-Apr,"5,493.60"
5454864,Fairfield Care Services,Adult Social Care,Adults,Homecare Fees,22-Apr,"2,412.80"
5454865,Redacted Supplier,Education,Children's Services,Independent School Fees,22-Apr,"1,120.00"
5454866,YOUNG PEOPLE FIRST LIMITED,Childrens Services,Children's Services,Living With Formal Support,22-Apr,"1,225.00"
5454867,CFS CARE LIMITED,Childrens Services,Children's Services,Living With Formal Support,27-Apr,"5,314.29"
5454868,CFS CARE LIMITED,Childrens Services,Children's Services,Living With Formal Support,26-Apr,"4,871.43"
5454868,CFS CARE LIMITED,Childrens Services,Children's Services,Semi independent - Weekly Living Allowances,26-Apr,236.8
5454869,CFS CARE LIMITED,Childrens Services,Children's Services,Living With Formal Support,26-Apr,"4,871.43"
5454869,CFS CARE LIMITED,Childrens Services,Children's Services,Semi independent - Weekly Living Allowances,26-Apr,235.6
5454870,CFS CARE LIMITED,Childrens Services,Children's Services,Living With Formal Support,26-Apr,"5,314.29"
5454870,CFS CARE LIMITED,Childrens Services,Children's Services,Semi independent - Weekly Living Allowances,26-Apr,235.6
5454871,CFS CARE LIMITED,Childrens Services,Children's Services,Living With Formal Support,26-Apr,"5,092.86"
5454871,CFS CARE LIMITED,Childrens Services,Children's Services,Semi independent - Weekly Living Allowances,26-Apr,235.6
5454872,CFS CARE LIMITED,Childrens Services,Children's Services,Living With Formal Support,26-Apr,"5,092.86"
5454872,CFS CARE LIMITED,Childrens Services,Children's Services,Semi independent - Weekly Living Allowances,26-Apr,235.6
5454873,MASTER QUALITY HEALTHCARE SERVICES LTD,Adult Social Care,Adults,Homecare Fees,22-Apr,"1,298.70"
5454874,MASTER QUALITY HEALTHCARE SERVICES LTD,Adult Social Care,Adults,Homecare Fees,22-Apr,"1,298.70"
5454875,Redacted Supplier,People and Workforce Development,Governance,Training Course Costs,22-Apr,"1,500.00"
5454876,TPR Care Services Ltd,Childrens Services,Children's Services,Living With Formal Support,04-Apr,"1,229.20"
5454877,TPR Care Services Ltd,Childrens Services,Children's Services,Living With Formal Support,04-Apr,"1,544.20"
5454881,ROCK POOL LIFE CIC,Population Health,Population Health,Project Costs,22-Apr,"64,650.00"
5454884,Redacted Supplier,Education,Children's Services,Independent School Fees,22-Apr,554.6
5454885,Amore Social Care Ltd,Childrens Services,Children's Services,Childrens Homes Outside Local Authority Fees,22-Apr,"12,793.36"
5454887,TMP UK LTD,Operations and Neighbourhoods,Operations and Neighbourhoods,"Marketing, Publicity and Recruitment",22-Apr,"1,563.20"
5454891,MASTER QUALITY HEALTHCARE SERVICES LTD,Adult Social Care,Adults,Homecare Fees,22-Apr,"1,814.85"
5454894,GREENSCAPE,Adult Social Care,Adults,Professional Services,04-Apr,"1,111.44"
5454896,GREENSCAPE,Adult Social Care,Adults,Professional Services,01-Apr,"1,111.44"
5454897,Redacted Supplier,Adult Social Care,Adults,Professional Services,22-Apr,"1,440.00"
5454898,TAMESIDE ARTS LTD,Adult Social Care,Adults,Professional Services,04-Apr,"6,028.72"
5454900,ROSS AUTO ENGINEERING LIMITED TRADING AS ROSS CARE,Adult Social Care,Adults,Joint Loans Store Fee,22-Apr,"15,002.15"
5454902,ROSS AUTO ENGINEERING LIMITED TRADING AS ROSS CARE,Adult Social Care,Adults,Joint Loans Store Fee,22-Apr,"145,058.77"
5454905,JACKSON & TAYLOR LTD,Housing,Director of Place,Mandatory Adaptations Grant (DFG),04-Apr,"4,434.20"
5454911,GREENSCAPE,Adult Social Care,Adults,Professional Services,01-Apr,794.56
5454913,PLATINUM STAIRLIFTS LIMITED,Housing,Director of Place,Mandatory Adaptations Grant (DFG),22-Apr,"2,459.49"
5454917,MEW CARE LTD,Adult Social Care,Adults,Professional Services,22-Apr,550
5454946,DHL Parcel UK Ltd (UK Mail),Exchequer,Governance,Printing And Stationery,22-Apr,"7,409.68"
5454952,AMAZING PROMOTIONAL MERCHANDISE LTD,Population Health,Population Health,"Marketing, Publicity and Recruitment",22-Apr,804.7
5454953,Redacted Supplier,Education,Children's Services,Professional Services,22-Apr,550
5454954,Solace Group LTD,People and Workforce Development,Governance,Training Course Costs,22-Apr,"5,250.00"
5454955,ADCS LTD,Childrens Services,Children's Services,Purchase General Office Equipment,22-Apr,"2,740.00"
5454956,M.C. & M.A. STEWART HAULAGE LTD,Operations and Neighbourhoods,Operations and Neighbourhoods,General Materials,22-Apr,"2,630.00"
5454957,Redacted Supplier,Operations and Neighbourhoods,Operations and Neighbourhoods,Professional Entertainment Services,22-Apr,940
5454958,TELEFONICA O2 (UK) LTD,Digital Tameside,Finance & IT,Mobile Telephones,22-Apr,"6,120.00"
5454961,TAMESIDE ARTS LTD,Adult Social Care,Adults,Professional Services,04-Apr,"6,230.80"
5454963,XMA LIMITED,GMPF (FX),GMPF (FX),IT Equipment,22-Apr,956.05
5454965,XMA LIMITED,GMPF (FX),GMPF (FX),IT Equipment,22-Apr,"3,936.24"
5454971,CAMPEY TURF CARE SYSTEMS,Operations and Neighbourhoods,Operations and Neighbourhoods,General Materials,22-Apr,"1,275.00"
5454972,MEDACS HEALTHCARE,Adult Social Care,Adults,Homecare Fees,14-Apr,"16,105.31"
5454973,STAGECOACH SERVICES LTD T/A GREATER MANCHESTER BUSES SOUTH LTD,Place,Growth,Discretionary Student Award Travel Expenses,22-Apr,735
5454974,PLATINUM STAIRLIFTS LIMITED,Housing,Director of Place,Mandatory Adaptations Grant (DFG),22-Apr,"3,734.00"
5454976,PLATINUM STAIRLIFTS LIMITED,Housing,Director of Place,Minor Works - Building,22-Apr,500
5454979,ROYAL MENCAP SOCIETY,Adult Social Care,Adults,Voluntary Organisations Fees,22-Apr,"13,000.48"
5454981,BARNARDO SERVICES LIMITED,Childrens Services,Children's Services,Professional Services,29-Apr,"18,555.83"
5454982,Redacted Supplier,Education,Children's Services,Independent School Fees,22-Apr,"3,582.00"
5454983,HCRG Care Services Ltd,Population Health,Population Health,Professional Services,22-Apr,655
5454984,ABLE CARE AND SUPPORT SERVICES LTD,Adult Social Care,Adults,Homecare Fees,08-Apr,"59,601.15"
5454985,Randstad Public Services Limited,Education,Children's Services,Professional Services,22-Apr,590
5454987,ABLE CARE AND SUPPORT SERVICES LTD,Adult Social Care,Adults,Homecare Fees,04-Apr,504.11
5454989,Redacted Supplier,Education,Children's Services,Independent School Fees,22-Apr,"2,985.00"
5454990,Redacted Supplier,Education,Children's Services,Independent School Fees,22-Apr,"4,577.00"
5455035,Wellbeing Property Solutions Ltd,Childrens Services,Children's Services,Childrens Homes Outside Local Authority Fees,04-Apr,700
5455038,Montrose Recruitment Limited TA Montrose Living,Childrens Services,Children's Services,Living With Formal Support,07-Apr,"5,115.00"
5455038,Montrose Recruitment Limited TA Montrose Living,Childrens Services,Children's Services,Semi independent - Weekly Living Allowances,07-Apr,260.84
5455064,Point North Brand Co Ltd t/a Michelle Lyons,(blank),(blank),Professional Services,07-Apr,"1,800.00"
5455065,Point North Brand Co Ltd t/a Michelle Lyons,(blank),(blank),Professional Services,07-Apr,"1,500.00"
5455078,Fanco Limited t/a 365 Medicare,Adult Social Care,Adults,Homecare Fees,08-Apr,544.04
5455087,Fanco Limited t/a 365 Medicare,Adult Social Care,Adults,Homecare Fees,08-Apr,738.28
5455138,Redacted Supplier,Education,Children's Services,Independent School Fees,01-Apr,"3,545.46"
5455139,Redacted Supplier,Education,Children's Services,Independent School Fees,01-Apr,"3,545.46"
5455140,Redacted Supplier,Education,Children's Services,Independent School Fees,01-Apr,"3,545.46"
5455141,Redacted Supplier,Education,Children's Services,Independent School Fees,01-Apr,"3,545.46"
5455148,STAMFORD PARK TRUST T/A ASHTON SIXTH FORM COLLEGE,Education,Children's Services,Post 16 FE College Fees,08-Apr,"5,311.34"
5455149,TAMESIDE SPORTS TRUST,Adult Social Care,Adults,Professional Services,08-Apr,795
5455150,Redacted Supplier,Childrens Services,Children's Services,Childrens Homes Outside Local Authority Fees,29-Apr,"18,600.00"
5455151,TAMESIDE SPORTS TRUST,Adult Social Care,Adults,Professional Services,08-Apr,795
5455152,Redacted Supplier,Education,Children's Services,Independent School Fees,27-Apr,960
5455154,TAMESIDE SPORTS TRUST,Adult Social Care,Adults,Professional Services,07-Apr,"1,590.00"
5455155,BANNER GROUP LIMITED,Operations and Neighbourhoods,Operations and Neighbourhoods,Purchase General Office Equipment,28-Apr,"1,003.02"
5455157,PERSON CENTRED CARE SERVICES LIMITED,Adult Social Care,Adults,Homecare Fees,08-Apr,"7,925.59"
5455158,TAMESIDE SPORTS TRUST,Adult Social Care,Adults,Professional Services,08-Apr,530
5455161,Redacted Supplier,Education,Children's Services,Transport Of Ola Pupils,08-Apr,"1,380.00"
5455162,TAMESIDE SPORTS TRUST,Adult Social Care,Adults,Professional Services,08-Apr,"1,060.00"
5455164,TAMESIDE SPORTS TRUST,(blank),(blank),External Secondments,17-May,"9,196.58"
5455165,TAMESIDE SPORTS TRUST,Adult Social Care,Adults,Professional Services,08-Apr,795
5455166,Redacted Supplier,Education,Children's Services,Independent School Fees,08-Apr,"11,277.78"
5455169,TAMESIDE SPORTS TRUST,Adult Social Care,Adults,Professional Services,08-Apr,"1,060.00"
5455170,TAMESIDE SPORTS TRUST,Adult Social Care,Adults,Professional Services,08-Apr,"1,060.00"
5455174,TAMESIDE SPORTS TRUST,Adult Social Care,Adults,Professional Services,08-Apr,"1,325.00"
5455176,TAMESIDE SPORTS TRUST,Adult Social Care,Adults,Professional Services,08-Apr,"1,060.00"
5455182,TAMESIDE SPORTS TRUST,Adult Social Care,Adults,Professional Services,08-Apr,"1,325.00"
5455183,STAMFORD PROPERTIES,Adult Social Care,Adults,Non-Authority Accommodation Rental,08-Apr,"1,060.40"
5455185,HAMILTON PROPERTIES,Adult Social Care,Adults,Non-Authority Accommodation Rental,05-Apr,"1,641.13"
5455186,TAMESIDE SPORTS TRUST,Adult Social Care,Adults,Professional Services,08-Apr,795
5455187,CROFT INVESTMENTS LTD,Adult Social Care,Adults,Non-Authority Accommodation Rental,08-Apr,"2,108.22"
5455188,WESLEY PROPERTIES (NORTHERN) LTD,Adult Social Care,Adults,Non-Authority Accommodation Rental,29-Apr,"1,426.52"
5455193,TAMESIDE SPORTS TRUST,Adult Social Care,Adults,Professional Services,08-Apr,662.5
5455194,TAMESIDE SPORTS TRUST,Adult Social Care,Adults,Professional Services,08-Apr,"42,155.68"
5455196,GRANART LIMITED,Operations and Neighbourhoods,Operations and Neighbourhoods,Plaques,29-Apr,"3,010.00"
5455197,Redacted Supplier,Education,Children's Services,Independent School Fees,29-Apr,"6,000.00"
5455198,TAMESIDE SPORTS TRUST,Childrens Services,Children's Services,Short Breaks (Respite),08-Apr,520
5455199,TAMESIDE SPORTS TRUST,Adult Social Care,Adults,Professional Services,08-Apr,530
5455200,ROCHDALE MBC,Education,Children's Services,Other Local Authorities Fees,14-Apr,"5,505.00"
5455204,Arthur J. Gallagher Insurance Brokers Limited,Finance,Finance & IT,Professional Services,01-Apr,"4,000.00"
5455206,TAMESIDE SPORTS TRUST,Adult Social Care,Adults,Professional Services,08-Apr,795
5455208,TAMESIDE SPORTS TRUST,Adult Social Care,Adults,Professional Services,08-Apr,530
5455209,TAMESIDE SPORTS TRUST,Adult Social Care,Adults,Professional Services,08-Apr,"1,590.00"
5455211,TAMESIDE SPORTS TRUST,Adult Social Care,Adults,Professional Services,08-Apr,530
5455213,TAMESIDE SPORTS TRUST,Adult Social Care,Adults,Professional Services,08-Apr,"1,060.00"
5455214,COOLSPIRIT LTD,Digital Tameside,Finance & IT,Network Equipment/Setup,29-Apr,"1,337.50"
5455217,TAMESIDE SPORTS TRUST,Adult Social Care,Adults,Professional Services,08-Apr,795
5455218,CMA Training,Operations and Neighbourhoods,Operations and Neighbourhoods,Professional Services,27-Apr,"8,500.00"
5455220,TAMESIDE SPORTS TRUST,Adult Social Care,Adults,Professional Services,08-Apr,"1,060.00"
5455223,Milestone Living Limited,Childrens Services,Children's Services,Childrens Homes Outside Local Authority Fees,05-Apr,"29,295.00"
5455224,TAMESIDE SPORTS TRUST,Adult Social Care,Adults,Professional Services,08-Apr,"1,060.00"
5455226,Disabled Living (Training & Exhibitions) Ltd,People and Workforce Development,Governance,Training Course Costs,29-Apr,750
5455227,TAMESIDE SPORTS TRUST,Adult Social Care,Adults,Professional Services,08-Apr,"1,325.00"
5455228,G2V Recruitment Group Limited t/a Vivid Resourcing,Place,Growth,Recruitment Campaign,29-Apr,"2,600.00"
5455230,G2V Recruitment Group Limited t/a Vivid Resourcing,Place,Growth,Agency Staff,29-Apr,"1,358.25"
5455232,TAMESIDE SPORTS TRUST,Adult Social Care,Adults,Professional Services,08-Apr,"1,060.00"
5455233,TAMESIDE SPORTS TRUST,Adult Social Care,Adults,Professional Services,08-Apr,"1,325.00"
5455234,TAMESIDE SPORTS TRUST,Childrens Services,Children's Services,Short Breaks (Respite),08-Apr,800
5455235,TAMESIDE SPORTS TRUST,Adult Social Care,Adults,Professional Services,08-Apr,795
5455237,TAMESIDE SPORTS TRUST,Childrens Services,Children's Services,Short Breaks (Respite),08-Apr,640
5455238,TAMESIDE SPORTS TRUST,Adult Social Care,Adults,Professional Services,08-Apr,662.5
5455240,TAMESIDE SPORTS TRUST,Adult Social Care,Adults,Professional Services,08-Apr,530
5455241,TAMESIDE SPORTS TRUST,Childrens Services,Children's Services,Short Breaks (Respite),08-Apr,640
5455242,ZURICH INSURANCE PLC,Finance,Finance & IT,Miscellaneous Insurance,16-May,850.94
5455243,TAMESIDE SPORTS TRUST,Childrens Services,Children's Services,Short Breaks (Respite),08-Apr,720
5455245,TAMESIDE SPORTS TRUST,Childrens Services,Children's Services,Short Breaks (Respite),08-Apr,"1,152.00"
5455248,TAMESIDE SPORTS TRUST,Childrens Services,Children's Services,Short Breaks (Respite),08-Apr,640
5455249,TOUGH FURNITURE LTD,Adult Social Care,Adults,"Fixtures, Fittings & Furniture Purchase",29-Apr,"2,513.00"
5455251,TAMESIDE SPORTS TRUST,Childrens Services,Children's Services,Short Breaks (Respite),08-Apr,"1,280.00"
5455252,IRWELL VALLEY HOUSING ASSOCIATION LTD,Adult Social Care,Adults,Non-Authority Accommodation Rental,19-May,"1,979.25"
5455257,VALE  ENGINEERING(YORK)LTD,Operations and Neighbourhoods,Operations and Neighbourhoods,General Materials,29-Apr,"11,025.00"
5455258,FAIRWAY LANDSCAPES LTD,(blank),(blank),"Marketing, Publicity and Recruitment",29-Apr,540
5455263,P MCGUINNESS & CO LTD,Place,Growth,Engineers Works,27-Apr,"1,930.00"
5455267,TAMESIDE SPORTS TRUST,Adult Social Care,Adults,Professional Services,08-Apr,576
5455269,TAMESIDE SPORTS TRUST,Adult Social Care,Adults,Professional Services,08-Apr,"50,553.68"
5455273,Redacted Supplier,Operations and Neighbourhoods,Operations and Neighbourhoods,Hired Transport,08-Apr,"2,537.00"
5455274,Redacted Supplier,Operations and Neighbourhoods,Operations and Neighbourhoods,Hired Transport,08-Apr,"1,207.00"
5455279,Compass Childrens Homes Limited,Childrens Services,Children's Services,Childrens Homes Outside Local Authority Fees,29-Apr,"20,814.33"
5455280,Redacted Supplier,Education,Children's Services,Other Local Authorities Fees,29-Apr,"1,647.00"
5455281,iCare Solutions,Adult Social Care,Adults,Homecare Fees,27-Apr,"14,144.18"
5455282,iCare Solutions,Adult Social Care,Adults,Homecare Fees,27-Apr,"13,873.61"
5455283,YOUNG PEOPLE FIRST LIMITED,Childrens Services,Children's Services,Living With Formal Support,29-Apr,"1,225.00"
5455285,Aitkens Sportsturf Ltd,Operations and Neighbourhoods,Operations and Neighbourhoods,General Materials,29-Apr,"4,687.50"
5455286,Zeno Ltd,Adult Social Care,Adults,Homecare Fees,27-Apr,"10,256.66"
5455287,Positive Care Solutions Ltd,Childrens Services,Children's Services,Childrens Homes Outside Local Authority Fees,05-Apr,"7,300.00"
5455288,Shabach Health Care Ltd,Adult Social Care,Adults,Homecare Fees,08-Apr,"5,448.71"
5455289,Redacted Supplier,Education,Children's Services,Other Local Authorities Fees,04-Apr,"1,317.00"
5455290,REED SPECIALIST RECRUITMENT LIMITED,Childrens Services,Children's Services,Homecare Fees,25-Apr,519.8
5455291,REED SPECIALIST RECRUITMENT LIMITED,Childrens Services,Children's Services,Homecare Fees,25-Apr,519.8
5455295,S & M Builders,Operations and Neighbourhoods,Operations and Neighbourhoods,Engineers -External,25-Apr,"1,081.00"
5455303,CARRICK SIGNS LTD,(blank),(blank),Printing And Stationery,28-Apr,"1,450.00"
5455308,NHS Manchester CCG,Hosted Services,Hosted Services,Professional Services,05-Apr,"77,515.00"
5455311,Jill Shaw T/A Kip McGrath St Helens,Education,Children's Services,Professional Services,27-Apr,504
5455312,Redacted Supplier,Childrens Services,Children's Services,Transport Of Pupils,06-Apr,864
5455317,TPR Care Services Ltd,Childrens Services,Children's Services,Living With Formal Support,05-Apr,"1,229.20"
5455318,TPR Care Services Ltd,Childrens Services,Children's Services,Living With Formal Support,05-Apr,"1,544.20"
5455323,Randstad Public Services Limited,Education,Children's Services,Professional Services,27-Apr,590
5455324,Randstad Public Services Limited,Education,Children's Services,Professional Services,27-Apr,590
5455327,HALFORDS LIMITED,Operations and Neighbourhoods,Operations and Neighbourhoods,General Equipment Purchase,27-Apr,"5,677.80"
5455330,CREATIVE SUPPORT LTD,Adult Social Care,Adults,Residential Home Long Stay Fees,27-Apr,"1,817.20"
5455331,CREATIVE SUPPORT LTD,Adult Social Care,Adults,Homecare Fees,27-Apr,"19,013.67"
5455338,ACORN CARE & EDUCATION LTD (SALES),Education,Children's Services,Transport Of Ola Pupils,28-Apr,"1,748.00"
5455339,St Helens Council,Education,Children's Services,Independent School Fees,12-Apr,"1,050.00"
5455340,Engage Support LTD,Childrens Services,Children's Services,Living With Formal Support,04-May,"9,180.00"
5455341,COMFORT CALL LIMITED,Adult Social Care,Adults,Homecare Fees,19-Apr,"32,848.75"
5455345,CITY LIFT SERVICES (NW) LTD,Adult Social Care,Adults,General Equipment Repair & Maintenance,25-Apr,650
5455349,CITY LIFT SERVICES (NW) LTD,Adult Social Care,Adults,General Equipment Repair & Maintenance,25-Apr,830
5455354,STEP AHEAD RESOURCE SERVICES,Childrens Services,Children's Services,Living With Formal Support,28-Jun,"1,200.00"
5455356,BRANAS ISAF LTD,Childrens Services,Children's Services,Childrens Homes Outside Local Authority Fees,29-Apr,"21,214.20"
5455357,CARETECH COMMUNITY SERVICES LIMITED,Adult Social Care,Adults,Residential Home Long Stay Fees,27-Apr,"3,934.20"
5455358,CARETECH COMMUNITY SERVICES LIMITED,Adult Social Care,Adults,Residential Home Long Stay Fees,27-Apr,"5,725.50"
5455360,CARETECH COMMUNITY SERVICES LIMITED,Adult Social Care,Adults,Residential Home Long Stay Fees,27-Apr,"3,123.00"
5455361,CARETECH COMMUNITY SERVICES LIMITED,Adult Social Care,Adults,Residential Home Long Stay Fees,27-Apr,"3,123.00"
5455362,CARETECH COMMUNITY SERVICES LIMITED,Adult Social Care,Adults,Residential Home Long Stay Fees,27-Apr,"9,837.60"
5455363,CARETECH COMMUNITY SERVICES LIMITED,Adult Social Care,Adults,Residential Home Long Stay Fees,27-Apr,"5,673.60"
5455364,CARETECH COMMUNITY SERVICES LIMITED,Adult Social Care,Adults,Residential Home Long Stay Fees,27-Apr,"4,632.60"
5455365,CARETECH COMMUNITY SERVICES LIMITED,Adult Social Care,Adults,Residential Home Long Stay Fees,27-Apr,"4,632.60"
5455366,CARETECH COMMUNITY SERVICES LIMITED,Adult Social Care,Adults,Residential Home Long Stay Fees,27-Apr,"6,066.30"
5455367,CARETECH COMMUNITY SERVICES LIMITED,Adult Social Care,Adults,Residential Home Long Stay Fees,27-Apr,"6,766.50"
5455368,CARETECH COMMUNITY SERVICES LIMITED,Adult Social Care,Adults,Residential Home Long Stay Fees,27-Apr,"6,766.50"
5455369,Redacted Supplier,Childrens Services,Children's Services,Nursery Services,27-Apr,645.38
5455372,CARETECH COMMUNITY SERVICES LIMITED,Adult Social Care,Adults,Residential Home Long Stay Fees,27-Apr,"7,287.00"
5455376,Complete Care & Enablement Services LTD,Adult Social Care,Adults,Residential Home Long Stay Fees,27-Apr,"5,725.50"
5455377,Complete Care & Enablement Services LTD,Adult Social Care,Adults,Residential Home Long Stay Fees,27-Apr,"5,725.50"
5455379,J. ELWYN THOMAS,Education,Children's Services,Professional Services,27-Apr,"1,100.00"
5455380,ABOUT TAMESIDE,Policy and Communications,Governance,"Marketing, Publicity and Recruitment",04-Apr,550
5455381,CARELINE HOMECARE LTD,Adult Social Care,Adults,Homecare Fees,19-Apr,514.77
5455383,DJS Research Ltd,Policy and Communications,Governance,Professional Services,27-Apr,"21,680.00"
5455388,Complete Care & Enablement Services LTD,Adult Social Care,Adults,Residential Home Long Stay Fees,27-Apr,"5,725.50"
5455390,BUCHANAN COMPUTING LTD,Operations and Neighbourhoods,Operations and Neighbourhoods,Ward Schemes,28-Apr,"1,050.00"
5455394,Gallagher Bassett International Ltd,Finance,Finance & IT,Transport Insurance,16-May,"6,462.40"
5455394,Gallagher Bassett International Ltd,Multiple Heads of Service,Multiple Strategic Directorates,Public Liability Insurance Claims,16-May,"11,225.00"
5455394,Gallagher Bassett International Ltd,Multiple Heads of Service,Multiple Strategic Directorates,Transport Insurance Claims,16-May,450
5455397,CARETECH COMMUNITY SERVICES LIMITED,Adult Social Care,Adults,Residential Home Long Stay Fees,27-Apr,"4,461.30"
5455398,Excel Fostering Limited,Childrens Services,Children's Services,Foster Carer Agency Fees,29-Apr,"6,385.80"
5455400,Excel Fostering Limited,Childrens Services,Children's Services,Foster Carer Agency Fees,29-Apr,"6,385.80"
5455401,CARETECH COMMUNITY SERVICES LIMITED,Adult Social Care,Adults,Residential Home Long Stay Fees,27-Apr,"4,164.00"
5455402,Excel Fostering Limited,Childrens Services,Children's Services,Foster Carer Agency Fees,29-Apr,"6,385.80"
5455403,THE UNIVERSITY OF MANCHESTER,Adult Social Care,Adults,Training Course Costs,27-Apr,"1,000.00"
5455404,CAPSTONE FOSTER CARE,Childrens Services,Children's Services,Foster Carer Agency Fees,29-Apr,"3,686.96"
5455406,COMPLETE BACKGROUND SCREENING LTD,People and Workforce Development,Governance,Professional Services,06-Apr,"6,621.50"
5455407,CAPSTONE FOSTER CARE,Childrens Services,Children's Services,Foster Carer Agency Fees,29-Apr,"6,555.09"
5455410,CARETECH COMMUNITY SERVICES LIMITED,Adult Social Care,Adults,Residential Home Long Stay Fees,27-Apr,"4,981.80"
5455411,CAPSTONE FOSTER CARE,Childrens Services,Children's Services,Foster Carer Agency Fees,29-Apr,"6,555.09"
5455412,CARETECH COMMUNITY SERVICES LIMITED,Adult Social Care,Adults,Residential Home Long Stay Fees,27-Apr,"7,287.00"
5455417,Redacted Supplier,Childrens Services,Children's Services,Childrens Homes Outside Local Authority Fees,27-Apr,"13,241.34"
5455421,Valtech,Operations and Neighbourhoods,Operations and Neighbourhoods,Professional Medical Services,27-Apr,511.85
5455423,Redacted Supplier,Childrens Services,Children's Services,Childrens Homes Outside Local Authority Fees,29-Apr,"18,600.00"
5455426,ASKEWS  AND HOLTS LIBRARY SERVICES LTD,Operations and Neighbourhoods,Operations and Neighbourhoods,Purchase Books,27-Apr,"2,305.79"
5455427,BTTLR LIMITED T/A Connecting Hands Healthcare Services,Childrens Services,Children's Services,Childrens Homes Outside Local Authority Fees,27-Apr,"11,300.00"
5455432,MEDACS HEALTHCARE,Adult Social Care,Adults,Homecare Fees,14-Apr,"26,859.09"
5455434,CAPSTONE FOSTER CARE,Childrens Services,Children's Services,Foster Carer Agency Fees,29-Apr,"3,835.80"
5455435,CAPSTONE FOSTER CARE,Childrens Services,Children's Services,Foster Carer Agency Fees,29-Apr,"3,420.00"
5455436,CAPSTONE FOSTER CARE,Childrens Services,Children's Services,Foster Carer Agency Fees,29-Apr,"3,420.00"
5455437,CAPSTONE FOSTER CARE,Childrens Services,Children's Services,Foster Carer Agency Fees,29-Apr,"3,420.00"
5455439,CAPSTONE FOSTER CARE,Childrens Services,Children's Services,Foster Carer Agency Fees,29-Apr,"3,385.80"
5455440,Randstad Public Services Limited,Education,Children's Services,Agency Staff,29-Apr,553.33
5455441,UNITED UTILITIES,Place,Growth,Water (Metered and Rates),27-Apr,"1,217.23"
5455442,K P DODD CONSTRUCTION LTD,Housing,Director of Place,Mandatory Adaptations Grant (DFG),29-Apr,"2,624.32"
5455444,CARETECH COMMUNITY SERVICES LIMITED,Adult Social Care,Adults,Residential Home Long Stay Fees,27-Apr,"2,316.30"
5455446,CARETECH COMMUNITY SERVICES LIMITED,Adult Social Care,Adults,Residential Home Long Stay Fees,27-Apr,"5,465.10"
5455450,ALPHA BIOLABS,Childrens Services,Children's Services,Professional Medical Services,28-Apr,"1,049.00"
5455454,TAMESIDE ARTS LTD,Adult Social Care,Adults,Homecare Fees,08-Apr,886.4
5455456,Compass Fostering North LTD,Childrens Services,Children's Services,Foster Carer Agency Fees,04-May,"1,237.68"
5455458,Greatwood House t/a Meridian Healthcare LTD,Contingency,Contingency,Nursing Home Long Stay Fees,29-Apr,"24,047.49"
5455459,Greatwood House t/a Meridian Healthcare LTD,Contingency,Contingency,Nursing Home Long Stay Fees,29-Apr,"2,615.69"
5455460,Mallard and Mckellar Home Improvements Ltd t/a Sunshine Windows,Housing,Director of Place,Mandatory Adaptations Grant (DFG),07-Apr,"1,233.33"
5455462,GREENSCAPE,Adult Social Care,Adults,Professional Services,08-Apr,"1,212.48"
5455464,GREENSCAPE,Adult Social Care,Adults,Professional Services,08-Apr,"1,212.48"
5455468,AECOM LTD,(blank),(blank),External  Consultants,29-Apr,"14,692.25"
5455472,ULVERSCROFT LARGE PRINT  BOOKS LTD,Operations and Neighbourhoods,Operations and Neighbourhoods,Purchase Books,28-Apr,"1,823.66"
5455473,K P DODD CONSTRUCTION LTD,Housing,Director of Place,Mandatory Adaptations Grant (DFG),28-Apr,"1,772.00"
5455476,VISION FOR EDUCATION LIMITED,Education,Children's Services,Professional Services,28-Apr,"1,520.00"
5455478,YOUNG PEOPLE FIRST LIMITED,Childrens Services,Children's Services,Living With Formal Support,29-Apr,"2,100.00"
5455479,GRANART LIMITED,Operations and Neighbourhoods,Operations and Neighbourhoods,Plaques,29-Apr,694
5455486,THE HELPING HAND COMPANY,Operations and Neighbourhoods,Operations and Neighbourhoods,General Materials,28-Apr,"3,385.90"
5455497,NEC Software Solutions UK Ltd,Digital Tameside,Finance & IT,Computer Software,26-Apr,"55,000.00"
5455508,Access UK Ltd,Adult Social Care,Adults,Computer Software Maintenance Costs,19-Apr,"2,529.36"
5455510,Access UK Ltd,Adult Social Care,Adults,Computer Software Maintenance Costs,19-Apr,"2,529.36"
5455513,CHRISTINE COLEMAN EDUCATION,Education,Children's Services,Professional Services,22-Apr,"5,000.00"
5455518,CHRISTINE COLEMAN EDUCATION,Education,Children's Services,Professional Services,22-Apr,"1,600.00"
5455519,CITY LIFT SERVICES (NW) LTD,Adult Social Care,Adults,General Equipment Repair & Maintenance,26-Apr,"1,870.00"
5455524,Smartway Health and Social Care Limited,Adult Social Care,Adults,Homecare Fees,08-Apr,"5,599.89"
5455527,STAFF CARE SERVICES,Adult Social Care,Adults,Professional Consultancy Services,29-Apr,"1,012.50"
5455536,PENNINE MENCAP,Adult Social Care,Adults,Voluntary Organisations Fees,08-Apr,"2,690.00"
5455539,ABLE CARE AND SUPPORT SERVICES LTD,Adult Social Care,Adults,Homecare Fees,05-Apr,"10,132.19"
5455541,Inspired Spaces (ProjectCo1) LTD,Asset & Investment Partnership Management,Growth,PFI FM Fees and Insurance Costs,19-Apr,"1,736.49"
5455542,ABLE CARE AND SUPPORT SERVICES LTD,Adult Social Care,Adults,Homecare Fees,08-Apr,693.84
5455543,Inspired Spaces (ProjectCo1) LTD,Asset & Investment Partnership Management,Growth,Free School Meal Costs,19-Apr,"7,560.00"
5455546,Inspired Spaces (ProjectCo1) LTD,Asset & Investment Partnership Management,Growth,Free School Meal Costs,19-Apr,"6,424.80"
5455547,Inspired Spaces (ProjectCo1) LTD,Asset & Investment Partnership Management,Growth,PFI FM Fees and Insurance Costs,19-Apr,"7,653.80"
5455548,INSPIREDSPACES TAMESIDE (PROJECTCO2) LTD,Asset & Investment Partnership Management,Growth,Food & Refreshments,19-Apr,"12,383.20"
5455548,INSPIREDSPACES TAMESIDE (PROJECTCO2) LTD,Asset & Investment Partnership Management,Growth,Free School Meal Costs,19-Apr,"13,468.50"
5455550,SURECARE TAMESIDE & OLDHAM,Adult Social Care,Adults,Homecare Fees,28-Apr,"3,570.14"
5455551,INSPIREDSPACES TAMESIDE (PROJECTCO2) LTD,Asset & Investment Partnership Management,Growth,Food & Refreshments,19-Apr,"1,113.00"
5455551,INSPIREDSPACES TAMESIDE (PROJECTCO2) LTD,Asset & Investment Partnership Management,Growth,Free School Meal Costs,19-Apr,"22,016.70"
5455553,ABLE CARE AND SUPPORT SERVICES LTD,Adult Social Care,Adults,Homecare Fees,08-Apr,"9,879.98"
5455554,CROMWELL POLYTHENE LTD.,Operations and Neighbourhoods,Operations and Neighbourhoods,Purchase Plastic Sacks,28-Apr,"8,284.50"
5455557,Noahs Art,Adult Social Care,Adults,Voluntary Organisations Fees,08-Apr,"1,080.00"
5455558,BARNARDO'S,Childrens Services,Children's Services,Foster Carer Agency Fees,28-Apr,"7,528.57"
5455563,CORAM BAAF,Childrens Services,Children's Services,Professional Services,28-Apr,"3,881.30"
5455564,TUDOR (UK) LTD T/A TUDOR ENVIRONMENTAL,Operations and Neighbourhoods,Operations and Neighbourhoods,General Materials,29-Apr,935
5455571,TAMESIDE SPORTS TRUST,Adult Social Care,Adults,Professional Services,08-Apr,834.75
5455573,TAMESIDE SPORTS TRUST,Adult Social Care,Adults,Professional Services,08-Apr,640
5455576,TAMESIDE SPORTS TRUST,Adult Social Care,Adults,Professional Services,08-Apr,640
5455583,TAMESIDE SPORTS TRUST,Childrens Services,Children's Services,Short Breaks (Respite),10-May,720
5455586,TAMESIDE SPORTS TRUST,Adult Social Care,Adults,Professional Services,08-Apr,512
5455591,TAMESIDE SPORTS TRUST,Childrens Services,Children's Services,Short Breaks (Respite),08-Apr,720
5455593,TAMESIDE SPORTS TRUST,Childrens Services,Children's Services,Short Breaks (Respite),19-May,720
5455598,TAMESIDE SPORTS TRUST,Childrens Services,Children's Services,Short Breaks (Respite),29-Apr,640
5455601,STAMFORD CARS UK LTD,Education,Children's Services,Transport Of Ola Pupils,08-Apr,"1,743.75"
5455602,TAMESIDE SPORTS TRUST,Childrens Services,Children's Services,Short Breaks (Respite),29-Apr,640
5455604,STAMFORD CARS UK LTD,Operations and Neighbourhoods,Operations and Neighbourhoods,Hired Transport,08-Apr,833.75
5455607,TAMESIDE SPORTS TRUST,Childrens Services,Children's Services,Short Breaks (Respite),29-Apr,640
5455608,STAMFORD CARS UK LTD,Education,Children's Services,Transport Of Pupils,08-Apr,"1,380.00"
5455611,STAMFORD CARS UK LTD,Operations and Neighbourhoods,Operations and Neighbourhoods,Hired Transport,08-Apr,"1,035.00"
5455615,TAMESIDE SPORTS TRUST,Childrens Services,Children's Services,Short Breaks (Respite),14-Apr,720
5455616,TAMESIDE SPORTS TRUST,Childrens Services,Children's Services,Short Breaks (Respite),08-Apr,640
5455619,TAMESIDE SPORTS TRUST,Childrens Services,Children's Services,Short Breaks (Respite),08-Apr,640
5455623,STAMFORD CARS UK LTD,Operations and Neighbourhoods,Operations and Neighbourhoods,Transport Of Pupils,08-Apr,"1,495.00"
5455624,STOCKPORT MBC,Corporate Costs,Corporate Costs,Coroners Service Costs,13-Apr,"174,466.00"
5455628,STAMFORD CARS UK LTD,Education,Children's Services,Transport Of Pupils,08-Apr,"1,897.50"
5455630,STAMFORD CARS UK LTD,Education,Children's Services,Transport Of Ola Pupils,08-Apr,"1,782.50"
5455631,STAMFORD CARS UK LTD,Education,Children's Services,Transport Of Ola Pupils,08-Apr,"3,047.50"
5455635,STAMFORD CARS UK LTD,Education,Children's Services,Transport Of Ola Pupils,08-Apr,"2,875.00"
5455636,Connect Care Solutions Limited,Childrens Services,Children's Services,Childrens Homes Outside Local Authority Fees,06-Apr,"38,550.00"
5455637,STAMFORD CARS UK LTD,Education,Children's Services,Transport Of Pupils,08-Apr,"2,185.00"
5455638,STAMFORD CARS UK LTD,Education,Children's Services,Transport Of Pupils,08-Apr,"2,185.00"
5455639,TAMESIDE SPORTS TRUST,Childrens Services,Children's Services,Short Breaks (Respite),11-Apr,816
5455681,STAMFORD CARS UK LTD,Education,Children's Services,Transport Of Post 16 Pupils,08-Apr,"1,495.00"
5455682,STAMFORD CARS UK LTD,Education,Children's Services,Transport Of Ola Pupils,08-Apr,"2,357.50"
